Workbook

Sheet Directions
B3: Directions for Residential Buildings Data Pivot Table
B4: 1) | C4: Select building characteristics in the white cells of the next tab:
C5: A) | D5: Select type(s) of residential building.
C6: B) | D6: Select the geographic region(s) (census division), climate zone(s), and/or the location type(s) (large city, small city, rural).
C7: C) | D7: Select the construction year range(s).
C8: D) | D8: Select the building façade type(s).
C9: E) | D9: Select the heating equipment type(s).
C10: F) | D10: Select the cooling equipment type(s).
B11: 2) | C11: Record the results in the YELLOW highlighted cells: the number of homes/buildings, square feet, EUI, and other energy consumption data for your applicable building market.
B12: 3) | C12: Next, calculate your retrofit prototype solution's estimated potential site energy reductions at the building level.
C13: A) | D13: Enter the estimated percentage reductions achievable by your retrofit prototype solution into the WHITE cells.
B14: 4) | C14: Record the resulting technical potential energy reductions in the YELLOW highlighted cells if your retrofit prototype solution was applied to the building market(s) (per the above selections).
B15: 5) | C15: Repeat the above analysis using the building characteristics and percentage reductions you anticipate to achieve through your multi-system retrofit for Phase 2.
C16: A) | D16: Select the appropriate building characteristics and market applicable to your multi-system retrofit for Phase 2 and record the results.
C17: B) | D17: Enter the estimated percentage reductions achievable by your multi-system retrofit to estimate the technical potential of energy reductions for the applicable market in Phase 2 and record the results.
B18: Note: | C18: All energy data in this table is given in site energy consumption for 2015. Data is publically available from the EIA 2015 Residential Buildings Energy Consumption Survey microdata.

Sheet Residential Buildings Data
G2: Source: | H2: EIA 2015 Residential Energy Consumption Survey (RECS) Microdata.
B3: Select Building Characteristics: | D3: Characteristic | E3: Filter
D4: Housing Type | E4: (All)
D5: Census Division | E5: (All)
D6: BA Climate Zone | E6: (All)
D7: Location Type | E7: (All)
D8: Year Built | E8: (All)
D9: Façade Type | E9: (All)
D10: Heating Equipment | E10: (All)
D11: Cooling Equipment | E11: (All)
D12: Summary | G12: Total Site Energy | H12: Site Energy by End Use
D13: Total Homes/Units | E13: Total Buildings | F13: Total Square Feet (Millions) | G13: Total Site Energy (TBtu) | H13: Site Heating (TBtu) | I13: Site Cooling (TBtu) | J13: Site Water Heating (TBtu) | K13: Site All Other (TBtu)
B14: Results: | C14: Total | D14: 118208250 | E14: 92481089 | F14: 237420.5364 | G14: 9113.851351 | H14: 4013.723318 | I14: 774.0311065 | J14: 1745.339528 | K14: 2575.772837
C15: % of Total Residential | D15: =GETPIVOTDATA("Total Homes/Units",$D$13)/D16 -> 1 | E15: =GETPIVOTDATA("Total Buildings",$D$13)/E16 -> 1 | F15: =GETPIVOTDATA("Total Square Feet (Millions)",$D$13)/F16 -> 1 | G15: =GETPIVOTDATA("Total Site Energy (TBtu)",$D$13)/G16 -> 1 | H15: =GETPIVOTDATA("Site Heating (TBtu)",$D$13)/H16 -> 1 | I15: =GETPIVOTDATA("Site Cooling (TBtu)",$D$13)/I16 -> 1 | J15: =GETPIVOTDATA("Site Water Heating (TBtu)",$D$13)/J16 -> 1 | K15: =GETPIVOTDATA("Site All Other (TBtu)",$D$13)/K16 -> 1
C16: All Residential | D16: 118208250 | E16: 92481089 | F16: 237420.5364 | G16: 9113.851351 | H16: 4013.723318 | I16: 774.0311065 | J16: 1745.339528 | K16: 2575.772837
C19: Provide below inputs: | E19: Technical Potential Energy Savings
C20: % Total Site Energy Savings | D20: 0.2 | E20: Annual Site Energy Savings (TBtu) | F20: =D20*GETPIVOTDATA("Total Site Energy (TBtu)",$D$13) -> 1822.77027
C21: % Total Site Heating Savings | D21: 0.2 | E21: Annual Site Heating Savings (TBtu) | F21: =D21*GETPIVOTDATA("Site Heating (TBtu)",$D$13) -> 802.7446636
C22: % Total Site Cooling Savings | D22: 0.2 | E22: Annual Site Cooling Savings (TBtu) | F22: =D22*GETPIVOTDATA("Site Cooling (TBtu)",$D$13) -> 154.8062213
C23: % Total Site Water Heating | D23: 0.2 | E23: Annual Site Water Heating Savings (TBtu) | F23: =D23*GETPIVOTDATA("Site Water Heating (TBtu)",$D$13) -> 349.0679056
C24: % Total Site Other | D24: 0.2 | E24: Annual Site Other Savings (TBtu) | F24: =D24*GETPIVOTDATA("Site All Other (TBtu)",$D$13) -> 515.1545675

Sheet RECS_2015_Cut (hidden)
A1: Housing Type | B1: DOEID | C1: Census Division | D1: Year Built | E1: Façade Type | F1: Heating Equipment | G1: Cooling Equipment | H1: Total Sq Ft (Millions) | I1: Number of Homes/ Units | J1: Number of Buildings | K1: BA Climate Zone | L1: Weighted Total Site Electricity Use (GWh) | M1: Location Type | N1: Wtd Site Space Heating (TBtu) | O1: Wtd Site Water Heating (TBtu) | P1: Wtd Site Total Cooling (TBtu) | Q1: Wtd Site Ventilation (TBtu) | R1: Wtd Other Energy (Tbtu) | S1: Wtd Total Site Energy (Tbtu) | T1: Air Handlers Heat | U1: Air Handlers Cool | V1: Wtd Air Handlers Heat (Tbtu) | W1: Wtd Air Handlers Cool (Tbtu) | X1: New Wtd Site Heating (Tbtu) | Y1: New Wtd Site Cooling (Tbtu)
A2: Single Family Detached | B2: 10001 | C2: Pacific | D2: 2000s | E2: Stucco | F2: central furnace | G2: central AC | H2: 21.84997339 | I2: 12085.16227 | J2: =IF(Table1343[[#This Row],[Housing Type]]="Multi-Family (2-4 units)",Table1343[[#This Row],[Number of Homes/ Units]]/3,IF(Table1343[[#This Row],[Housing Type]]="Multi-Family (5+ units)",Table1343[[#This Row],[Number of Homes/ Units]]/12.5720642567977,IF(Table1343[[#This Row],[Housing Type]]="Single Family Detached",Table1343[[#This Row],[Number of Homes/ Units]],IF(Table1343[[#This Row],[Housing Type]]="Single Family Attached",Table1343[[#This Row],[Number of Homes/ Units]],IF(Table1343[[#This Row],[Housing Type]]="Mobile Home",Table1343[[#This Row],[Number of Homes/ Units]]))))) -> 12085.16227 | K2: Hot-Dry/Mixed-Dry | L2: 63.69777237 | M2: Metropolitan Area | N2: 0.1561870661 | O2: 0.2119208736 | P2: 0.08631877909 | Q2: 0.009688299952 | R2: 0.1374389067 | S2: 0.5918656256 | T2: 454.143 | U2: 347.526 | V2: =T2*Table1343[[#This Row],[Number of Buildings]]/1000000000 -> 0.005488391849 | W2: =U2*Table1343[[#This Row],[Number of Buildings]]/1000000000 -> 0.004199908103 | X2: =Table1343[[#This Row],[Wtd Air Handlers Heat (Tbtu)]]+Table1343[[#This Row],[Wtd Site Space Heating (TBtu)]] -> 0.161675458 | Y2: =Table1343[[#This Row],[Wtd Site Total Cooling (TBtu)]]+Table1343[[#This Row],[Wtd Air Handlers Cool (Tbtu)]] -> 0.09051868719
A3: Single Family Detached | B3: 10002 | C3: West South Central | D3: 1980s | E3: Siding | F3: fireplace | G3: window/wall unit | H3: 10.93733897 | I3: 14410.19627 | J3: =IF(Table1343[[#This Row],[Housing Type]]="Multi-Family (2-4 units)",Table1343[[#This Row],[Number of Homes/ Units]]/3,IF(Table1343[[#This Row],[Housing Type]]="Multi-Family (5+ units)",Table1343[[#This Row],[Number of Homes/ Units]]/12.5720642567977,IF(Table1343[[#This Row],[Housing Type]]="Single Family Detached",Table1343[[#This Row],[Number of Homes/ Units]],IF(Table1343[[#This Row],[Housing Type]]="Single Family Attached",Table1343[[#This Row],[Number of Homes/ Units]],IF(Table1343[[#This Row],[Housing Type]]="Mobile Home",Table1343[[#This Row],[Number of Homes/ Units]]))))) -> 14410.19627 | K3: Hot-Humid | L3: 175.4153191 | M3: Rural | N3: 0.166726259 | O3: 0.1027444833 | P3: 0.1093347992 | Q3: 0 | R3: 0.2197075504 | S3: 0.5985130919 | T3: 0 | U3: 0 | V3: =T3*Table1343[[#This Row],[Number of Buildings]]/1000000000 -> 0 | W3: =U3*Table1343[[#This Row],[Number of Buildings]]/1000000000 -> 0 | X3: =Table1343[[#This Row],[Wtd Air Handlers Heat (Tbtu)]]+Table1343[[#This Row],[Wtd Site Space Heating (TBtu)]] -> 0.166726259 | Y3: =Table1343[[#This Row],[Wtd Site Total Cooling (TBtu)]]+Table1343[[#This Row],[Wtd Air Handlers Cool (Tbtu)]] -> 0.1093347992
A4: Single Family Detached | B4: 10003 | C4: East South Central | D4: 1970s | E4: Wood | F4: central furnace | G4: both central and individual units | H4: 53.3697824 | I4: 23325.95385 | J4: =IF(Table1343[[#This Row],[Housing Type]]="Multi-Family (2-4 units)",Table1343[[#This Row],[Number of Homes/ Units]]/3,IF(Table1343[[#This Row],[Housing Type]]="Multi-Family (5+ units)",Table1343[[#This Row],[Number of Homes/ Units]]/12.5720642567977,IF(Table1343[[#This Row],[Housing Type]]="Single Family Detached",Table1343[[#This Row],[Number of Homes/ Units]],IF(Table1343[[#This Row],[Housing Type]]="Single Family Attached",Table1343[[#This Row],[Number of Homes/ Units]],IF(Table1343[[#This Row],[Housing Type]]="Mobile Home",Table1343[[#This Row],[Number of Homes/ Units]]))))) -> 23325.95385 | K4: Mixed-Humid | L4: 458.4808133 | M4: Metropolitan Area | N4: 0.5641081267 | O4: 0.4302342029 | P4: 0.5651852726 | Q4: 0.03697375951 | R4: 0.6925503223 | S4: 2.252077924 | T4: 684.194 | U4: 900.897 | V4: =T4*Table1343[[#This Row],[Number of Buildings]]/1000000000 -> 0.01595947767 | W4: =U4*Table1343[[#This Row],[Number of Buildings]]/1000000000 -> 0.02101428185 | X4: =Table1343[[#This Row],[Wtd Air Handlers Heat (Tbtu)]]+Table1343[[#This Row],[Wtd Site Space Heating (TBtu)]] -> 0.5800676044 | Y4: =Table1343[[#This Row],[Wtd Site Total Cooling (TBtu)]]+Table1343[[#This Row],[Wtd Air Handlers Cool (Tbtu)]] -> 0.5861995545
A5: Single Family Detached | B5: 10004 | C5: West North Central | D5: 1950s | E5: Siding | F5: central furnace | G5: central AC | H5: 31.30140229 | I5: 12165.33319 | J5: =IF(Table1343[[#This Row],[Housing Type]]="Multi-Family (2-4 units)",Table1343[[#This Row],[Number of Homes/ Units]]/3,IF(Table1343[[#This Row],[Housing Type]]="Multi-Family (5+ units)",Table1343[[#This Row],[Number of Homes/ Units]]/12.5720642567977,IF(Table1343[[#This Row],[Housing Type]]="Single Family Detached",Table1343[[#This Row],[Number of Homes/ Units]],IF(Table1343[[#This Row],[Housing Type]]="Single Family Attached",Table1343[[#This Row],[Number of Homes/ Units]],IF(Table1343[[#This Row],[Housing Type]]="Mobile Home",Table1343[[#This Row],[Number of Homes/ Units]]))))) -> 12165.33319 | K5: Mixed-Humid | L5: 119.859371 | M5: Micropolitan Area | N5: 0.6582969694 | O5: 0.09826960289 | P5: 0.1548836208 | Q5: 0.02888846929 | R5: 0.1747236125 | S5: 1.086173806 | T5: 1704.342 | U5: 670.313 | V5: =T5*Table1343[[#This Row],[Number of Buildings]]/1000000000 -> 0.0207338883 | W5: =U5*Table1343[[#This Row],[Number of Buildings]]/1000000000 -> 0.008154580987 | X5: =Table1343[[#This Row],[Wtd Air Handlers Heat (Tbtu)]]+Table1343[[#This Row],[Wtd Site Space Heating (TBtu)]] -> 0.6790308577 | Y5: =Table1343[[#This Row],[Wtd Site Total Cooling (TBtu)]]+Table1343[[#This Row],[Wtd Air Handlers Cool (Tbtu)]] -> 0.1630382018
A6: Single Family Detached | B6: 10005 | C6: Middle Atlantic | D6: 1970s | E6: Brick | F6: central furnace | G6: central AC | H6: 17.11889502 | I6: 16717.67092 | J6: =IF(Table1343[[#This Row],[Housing Type]]="Multi-Family (2-4 units)",Table1343[[#This Row],[Number of Homes/ Units]]/3,IF(Table1343[[#This Row],[Housing Type]]="Multi-Family (5+ units)",Table1343[[#This Row],[Number of Homes/ Units]]/12.5720642567977,IF(Table1343[[#This Row],[Housing Type]]="Single Family Detached",Table1343[[#This Row],[Number of Homes/ Units]],IF(Table1343[[#This Row],[Housing Type]]="Single Family Attached",Table1343[[#This Row],[Number of Homes/ Units]],IF(Table1343[[#This Row],[Housing Type]]="Mobile Home",Table1343[[#This Row],[Number of Homes/ Units]]))))) -> 16717.67092 | K6: Cold/Very Cold | L6: 52.086495 | M6: Metropolitan Area | N6: 0.09523274736 | O6: 0.2897341386 | P6: 0.01988889607 | Q6: 0.006874440024 | R6: 0.2067124963 | S6: 0.6115682784 | T6: 356.691 | U6: 54.517 | V6: =T6*Table1343[[#This Row],[Number of Buildings]]/1000000000 -> 0.005963042758 | W6: =U6*Table1343[[#This Row],[Number of Buildings]]/1000000000 -> 0.0009113972655 | X6: =Table1343[[#This Row],[Wtd Air Handlers Heat (Tbtu)]]+Table1343[[#This Row],[Wtd Site Space Heating (TBtu)]] -> 0.1011957901 | Y6: =Table1343[[#This Row],[Wtd Site Total Cooling (TBtu)]]+Table1343[[#This Row],[Wtd Air Handlers Cool (Tbtu)]] -> 0.02080029334
A7: Multi-Family (5+ units) | B7: 10006 | C7: New England | D7: 1980s | E7: Siding | F7: central furnace | G7: window/wall unit | H7: 16.23469115 | I7: 26058.89431 | J7: =IF(Table1343[[#This Row],[Housing Type]]="Multi-Family (2-4 units)",Table1343[[#This Row],[Number of Homes/ Units]]/3,IF(Table1343[[#This Row],[Housing Type]]="Multi-Family (5+ units)",Table1343[[#This Row],[Number of Homes/ Units]]/12.5720642567977,IF(Table1343[[#This Row],[Housing Type]]="Single Family Detached",Table1343[[#This Row],[Number of Homes/ Units]],IF(Table1343[[#This Row],[Housing Type]]="Single Family Attached",Table1343[[#This Row],[Number of Homes/ Units]],IF(Table1343[[#This Row],[Housing Type]]="Mobile Home",Table1343[[#This Row],[Number of Homes/ Units]]))))) -> 2072.761782 | K7: Cold/Very Cold | L7: 72.36554949 | M7: Rural | N7: 0.2654672508 | O7: 0.2775178693 | P7: 0.01397739155 | Q7: 0.005797843395 | R7: 0.2271327886 | S7: 0.7894319749 | T7: 222.49 | U7: 0 | V7: =T7*Table1343[[#This Row],[Number of Buildings]]/1000000000 -> 0.0004611687688 | W7: =U7*Table1343[[#This Row],[Number of Buildings]]/1000000000 -> 0 | X7: =Table1343[[#This Row],[Wtd Air Handlers Heat (Tbtu)]]+Table1343[[#This Row],[Wtd Site Space Heating (TBtu)]] -> 0.2659284196 | Y7: =Table1343[[#This Row],[Wtd Site Total Cooling (TBtu)]]+Table1343[[#This Row],[Wtd Air Handlers Cool (Tbtu)]] -> 0.01397739155
A8: Multi-Family (2-4 units) | B8: 10007 | C8: South Atlantic | D8: 1960s | E8: Brick | F8: central furnace | G8: central AC | H8: 38.23269249 | I8: 45952.75539 | J8: =IF(Table1343[[#This Row],[Housing Type]]="Multi-Family (2-4 units)",Table1343[[#This Row],[Number of Homes/ Units]]/3,IF(Table1343[[#This Row],[Housing Type]]="Multi-Family (5+ units)",Table1343[[#This Row],[Number of Homes/ Units]]/12.5720642567977,IF(Table1343[[#This Row],[Housing Type]]="Single Family Detached",Table1343[[#This Row],[Number of Homes/ Units]],IF(Table1343[[#This Row],[Housing Type]]="Single Family Attached",Table1343[[#This Row],[Number of Homes/ Units]],IF(Table1343[[#This Row],[Housing Type]]="Mobile Home",Table1343[[#This Row],[Number of Homes/ Units]]))))) -> 15317.58513 | K8: Hot-Humid | L8: 110.1835869 | M8: Metropolitan Area | N8: 0.63230296 | O8: 0.4754178789 | P8: 0.1489290355 | Q8: 0.01093409052 | R8: 1.15601187 | S8: 2.419951138 | T8: 83.981 | U8: 153.961 | V8: =T8*Table1343[[#This Row],[Number of Buildings]]/1000000000 -> 0.001286386117 | W8: =U8*Table1343[[#This Row],[Number of Buildings]]/1000000000 -> 0.002358310724 | X8: =Table1343[[#This Row],[Wtd Air Handlers Heat (Tbtu)]]+Table1343[[#This Row],[Wtd Site Space Heating (TBtu)]] -> 0.6335893461 | Y8: =Table1343[[#This Row],[Wtd Site Total Cooling (TBtu)]]+Table1343[[#This Row],[Wtd Air Handlers Cool (Tbtu)]] -> 0.1512873462
A9: Single Family Detached | B9: 10008 | C9: East North Central | D9: 1970s | E9: Siding | F9: central furnace | G9: window/wall unit | H9: 40.98359787 | I9: 15280.98355 | J9: =IF(Table1343[[#This Row],[Housing Type]]="Multi-Family (2-4 units)",Table1343[[#This Row],[Number of Homes/ Units]]/3,IF(Table1343[[#This Row],[Housing Type]]="Multi-Family (5+ units)",Table1343[[#This Row],[Number of Homes/ Units]]/12.5720642567977,IF(Table1343[[#This Row],[Housing Type]]="Single Family Detached",Table1343[[#This Row],[Number of Homes/ Units]],IF(Table1343[[#This Row],[Housing Type]]="Single Family Attached",Table1343[[#This Row],[Number of Homes/ Units]],IF(Table1343[[#This Row],[Housing Type]]="Mobile Home",Table1343[[#This Row],[Number of Homes/ Units]]))))) -> 15280.98355 | K9: Cold/Very Cold | L9: 212.266599 | M9: Metropolitan Area | N9: 1.038908213 | O9: 0.2649901641 | P9: 0.03527968043 | Q9: 0.02427886981 | R9: 0.6646950647 | S9: 2.003873123 | T9: 1588.829 | U9: 0 | V9: =T9*Table1343[[#This Row],[Number of Buildings]]/1000000000 -> 0.02427886981 | W9: =U9*Table1343[[#This Row],[Number of Buildings]]/1000000000 -> 0 | X9: =Table1343[[#This Row],[Wtd Air Handlers Heat (Tbtu)]]+Table1343[[#This Row],[Wtd Site Space Heating (TBtu)]] -> 1.063187083 | Y9: =Table1343[[#This Row],[Wtd Site Total Cooling (TBtu)]]+Table1343[[#This Row],[Wtd Air Handlers Cool (Tbtu)]] -> 0.03527968043
A10: Single Family Detached | B10: 10009 | C10: Middle Atlantic | D10: 1980s | E10: Siding | F10: central furnace | G10: central AC | H10: 26.66595849 | I10: 14034.71499 | J10: =IF(Table1343[[#This Row],[Housing Type]]="Multi-Family (2-4 units)",Table1343[[#This Row],[Number of Homes/ Units]]/3,IF(Table1343[[#This Row],[Housing Type]]="Multi-Family (5+ units)",Table1343[[#This Row],[Number of Homes/ Units]]/12.5720642567977,IF(Table1343[[#This Row],[Housing Type]]="Single Family Detached",Table1343[[#This Row],[Number of Homes/ Units]],IF(Table1343[[#This Row],[Housing Type]]="Single Family Attached",Table1343[[#This Row],[Number of Homes/ Units]],IF(Table1343[[#This Row],[Housing Type]]="Mobile Home",Table1343[[#This Row],[Number of Homes/ Units]]))))) -> 14034.71499 | K10: Cold/Very Cold | L10: 146.2757504 | M10: Metropolitan Area | N10: 0.8265470734 | O10: 0.1597157303 | P10: 0.04050999783 | Q10: 0.01278646744 | R10: 0.2880470168 | S10: 1.314819818 | T10: 770.955 | U10: 140.105 | V10: =T10*Table1343[[#This Row],[Number of Buildings]]/1000000000 -> 0.0108201337 | W10: =U10*Table1343[[#This Row],[Number of Buildings]]/1000000000 -> 0.001966333744 | X10: =Table1343[[#This Row],[Wtd Air Handlers Heat (Tbtu)]]+Table1343[[#This Row],[Wtd Site Space Heating (TBtu)]] -> 0.8373672071 | Y10: =Table1343[[#This Row],[Wtd Site Total Cooling (TBtu)]]+Table1343[[#This Row],[Wtd Air Handlers Cool (Tbtu)]] -> 0.04247633158
A11: Single Family Detached | B11: 10010 | C11: West South Central | D11: 1950s | E11: Brick | F11: central furnace | G11: central AC | H11: 53.33176199 | I11: 43359.15609 | J11: =IF(Table1343[[#This Row],[Housing Type]]="Multi-Family (2-4 units)",Table1343[[#This Row],[Number of Homes/ Units]]/3,IF(Table1343[[#This Row],[Housing Type]]="Multi-Family (5+ units)",Table1343[[#This Row],[Number of Homes/ Units]]/12.5720642567977,IF(Table1343[[#This Row],[Housing Type]]="Single Family Detached",Table1343[[#This Row],[Number of Homes/ Units]],IF(Table1343[[#This Row],[Housing Type]]="Single Family Attached",Table1343[[#This Row],[Number of Homes/ Units]],IF(Table1343[[#This Row],[Housing Type]]="Mobile Home",Table1343[[#This Row],[Number of Homes/ Units]]))))) -> 43359.15609 | K11: Hot-Humid | L11: 802.3959575 | M11: Metropolitan Area | N11: 0.3858495746 | O11: 0.4681815011 | P11: 0.4812070685 | Q11: 0.02782014509 | R11: 1.402536931 | S11: 2.737775075 | T11: 129.248 | U11: 512.373 | V11: =T11*Table1343[[#This Row],[Number of Buildings]]/1000000000 -> 0.005604084206 | W11: =U11*Table1343[[#This Row],[Number of Buildings]]/1000000000 -> 0.02221606088 | X11: =Table1343[[#This Row],[Wtd Air Handlers Heat (Tbtu)]]+Table1343[[#This Row],[Wtd Site Space Heating (TBtu)]] -> 0.3914536588 | Y11: =Table1343[[#This Row],[Wtd Site Total Cooling (TBtu)]]+Table1343[[#This Row],[Wtd Air Handlers Cool (Tbtu)]] -> 0.5034231294
A12: Single Family Detached | B12: 10011 | C12: New England | D12: 1960s | E12: Siding | F12: central furnace | G12: window/wall unit | H12: 26.98839441 | I12: 12617.29519 | J12: =IF(Table1343[[#This Row],[Housing Type]]="Multi-Family (2-4 units)",Table1343[[#This Row],[Number of Homes/ Units]]/3,IF(Table1343[[#This Row],[Housing Type]]="Multi-Family (5+ units)",Table1343[[#This Row],[Number of Homes/ Units]]/12.5720642567977,IF(Table1343[[#This Row],[Housing Type]]="Single Family Detached",Table1343[[#This Row],[Number of Homes/ Units]],IF(Table1343[[#This Row],[Housing Type]]="Single Family Attached",Table1343[[#This Row],[Number of Homes/ Units]],IF(Table1343[[#This Row],[Housing Type]]="Mobile Home",Table1343[[#This Row],[Number of Homes/ Units]]))))) -> 12617.29519 | K12: Cold/Very Cold | L12: 31.15468837 | M12: Metropolitan Area | N12: 0.9135141385 | O12: 0.01647706458 | P12: 0.003395238432 | Q12: 0.001617045169 | R12: 0.08481043012 | S12: 1.018196872 | T12: 128.161 | U12: 0 | V12: =T12*Table1343[[#This Row],[Number of Buildings]]/1000000000 -> 0.001617045169 | W12: =U12*Table1343[[#This Row],[Number of Buildings]]/1000000000 -> 0 | X12: =Table1343[[#This Row],[Wtd Air Handlers Heat (Tbtu)]]+Table1343[[#This Row],[Wtd Site Space Heating (TBtu)]] -> 0.9151311836 | Y12: =Table1343[[#This Row],[Wtd Site Total Cooling (TBtu)]]+Table1343[[#This Row],[Wtd Air Handlers Cool (Tbtu)]] -> 0.003395238432
A13: Single Family Detached | B13: 10012 | C13: West North Central | D13: Before 1950 | E13: Stucco | F13: central furnace | G13: N/A | H13: 27.99383403 | I13: 46656.39005 | J13: =IF(Table1343[[#This Row],[Housing Type]]="Multi-Family (2-4 units)",Table1343[[#This Row],[Number of Homes/ Units]]/3,IF(Table1343[[#This Row],[Housing Type]]="Multi-Family (5+ units)",Table1343[[#This Row],[Number of Homes/ Units]]/12.5720642567977,IF(Table1343[[#This Row],[Housing Type]]="Single Family Detached",Table1343[[#This Row],[Number of Homes/ Units]],IF(Table1343[[#This Row],[Housing Type]]="Single Family Attached",Table1343[[#This Row],[Number of Homes/ Units]],IF(Table1343[[#This Row],[Housing Type]]="Mobile Home",Table1343[[#This Row],[Number of Homes/ Units]]))))) -> 46656.39005 | K13: Mixed-Humid | L13: 516.2776371 | M13: Metropolitan Area | N13: 1.411844291 | O13: 0.296234111 | P13: 0 | Q13: 0.01892336524 | R13: 0.4132280417 | S13: 2.121306444 | T13: 405.59 | U13: 0 | V13: =T13*Table1343[[#This Row],[Number of Buildings]]/1000000000 -> 0.01892336524 | W13: =U13*Table1343[[#This Row],[Number of Buildings]]/1000000000 -> 0 | X13: =Table1343[[#This Row],[Wtd Air Handlers Heat (Tbtu)]]+Table1343[[#This Row],[Wtd Site Space Heating (TBtu)]] -> 1.430767657 | Y13: =Table1343[[#This Row],[Wtd Site Total Cooling (TBtu)]]+Table1343[[#This Row],[Wtd Air Handlers Cool (Tbtu)]] -> 0
A14: Single Family Detached | B14: 10013 | C14: East South Central | D14: 2010s | E14: Brick | F14: central furnace | G14: central AC | H14: 37.25418311 | I14: 19773.98254 | J14: =IF(Table1343[[#This Row],[Housing Type]]="Multi-Family (2-4 units)",Table1343[[#This Row],[Number of Homes/ Units]]/3,IF(Table1343[[#This Row],[Housing Type]]="Multi-Family (5+ units)",Table1343[[#This Row],[Number of Homes/ Units]]/12.5720642567977,IF(Table1343[[#This Row],[Housing Type]]="Single Family Detached",Table1343[[#This Row],[Number of Homes/ Units]],IF(Table1343[[#This Row],[Housing Type]]="Single Family Attached",Table1343[[#This Row],[Number of Homes/ Units]],IF(Table1343[[#This Row],[Housing Type]]="Mobile Home",Table1343[[#This Row],[Number of Homes/ Units]]))))) -> 19773.98254 | K14: Hot-Humid | L14: 291.9976149 | M14: Metropolitan Area | N14: 0.2779113416 | O14: 0.08976945136 | P14: 0.2182952362 | Q14: 0.01569945457 | R14: 0.4257023441 | S14: 1.011678373 | T14: 234.503 | U14: 559.442 | V14: =T14*Table1343[[#This Row],[Number of Buildings]]/1000000000 -> 0.004637058228 | W14: =U14*Table1343[[#This Row],[Number of Buildings]]/1000000000 -> 0.01106239634 | X14: =Table1343[[#This Row],[Wtd Air Handlers Heat (Tbtu)]]+Table1343[[#This Row],[Wtd Site Space Heating (TBtu)]] -> 0.2825483998 | Y14: =Table1343[[#This Row],[Wtd Site Total Cooling (TBtu)]]+Table1343[[#This Row],[Wtd Air Handlers Cool (Tbtu)]] -> 0.2293576325
A15: Multi-Family (5+ units) | B15: 10014 | C15: East North Central | D15: 1970s | E15: Brick | F15: built-in electric unit | G15: window/wall unit | H15: 10.41921561 | I15: 13323.80513 | J15: =IF(Table1343[[#This Row],[Housing Type]]="Multi-Family (2-4 units)",Table1343[[#This Row],[Number of Homes/ Units]]/3,IF(Table1343[[#This Row],[Housing Type]]="Multi-Family (5+ units)",Table1343[[#This Row],[Number of Homes/ Units]]/12.5720642567977,IF(Table1343[[#This Row],[Housing Type]]="Single Family Detached",Table1343[[#This Row],[Number of Homes/ Units]],IF(Table1343[[#This Row],[Housing Type]]="Single Family Attached",Table1343[[#This Row],[Number of Homes/ Units]],IF(Table1343[[#This Row],[Housing Type]]="Mobile Home",Table1343[[#This Row],[Number of Homes/ Units]]))))) -> 1059.794546 | K15: Cold/Very Cold | L15: 89.94339909 | M15: Metropolitan Area | N15: 0.1992922009 | O15: 0.1581181655 | P15: 0.01141715529 | Q15: 0 | R15: 0.09617750094 | S15: 0.4650050227 | T15: 0 | U15: 0 | V15: =T15*Table1343[[#This Row],[Number of Buildings]]/1000000000 -> 0 | W15: =U15*Table1343[[#This Row],[Number of Buildings]]/1000000000 -> 0 | X15: =Table1343[[#This Row],[Wtd Air Handlers Heat (Tbtu)]]+Table1343[[#This Row],[Wtd Site Space Heating (TBtu)]] -> 0.1992922009 | Y15: =Table1343[[#This Row],[Wtd Site Total Cooling (TBtu)]]+Table1343[[#This Row],[Wtd Air Handlers Cool (Tbtu)]] -> 0.01141715529
A16: Single Family Detached | B16: 10015 | C16: Mountain North | D16: 2000s | E16: Brick | F16: central furnace | G16: central AC | H16: 38.51114425 | I16: 8939.448526 | J16: =IF(Table1343[[#This Row],[Housing Type]]="Multi-Family (2-4 units)",Table1343[[#This Row],[Number of Homes/ Units]]/3,IF(Table1343[[#This Row],[Housing Type]]="Multi-Family (5+ units)",Table1343[[#This Row],[Number of Homes/ Units]]/12.5720642567977,IF(Table1343[[#This Row],[Housing Type]]="Single Family Detached",Table1343[[#This Row],[Number of Homes/ Units]],IF(Table1343[[#This Row],[Housing Type]]="Single Family Attached",Table1343[[#This Row],[Number of Homes/ Units]],IF(Table1343[[#This Row],[Housing Type]]="Mobile Home",Table1343[[#This Row],[Number of Homes/ Units]]))))) -> 8939.448526 | K16: Cold/Very Cold | L16: 148.2675567 | M16: Metropolitan Area | N16: 0.6129167055 | O16: 0.3145282745 | P16: 0.05267405558 | Q16: 0.02360658945 | R16: 0.3779918511 | S16: 1.358110887 | T16: 2309.732 | U16: 330.989 | V16: =T16*Table1343[[#This Row],[Number of Buildings]]/1000000000 -> 0.02064773032 | W16: =U16*Table1343[[#This Row],[Number of Buildings]]/1000000000 -> 0.002958859128 | X16: =Table1343[[#This Row],[Wtd Air Handlers Heat (Tbtu)]]+Table1343[[#This Row],[Wtd Site Space Heating (TBtu)]] -> 0.6335644358 | Y16: =Table1343[[#This Row],[Wtd Site Total Cooling (TBtu)]]+Table1343[[#This Row],[Wtd Air Handlers Cool (Tbtu)]] -> 0.05563291471
A17: Multi-Family (5+ units) | B17: 10016 | C17: West South Central | D17: 2010s | E17: Stucco | F17: central furnace | G17: central AC | H17: 83.77025775 | I17: 52454.76377 | J17: =IF(Table1343[[#This Row],[Housing Type]]="Multi-Family (2-4 units)",Table1343[[#This Row],[Number of Homes/ Units]]/3,IF(Table1343[[#This Row],[Housing Type]]="Multi-Family (5+ units)",Table1343[[#This Row],[Number of Homes/ Units]]/12.5720642567977,IF(Table1343[[#This Row],[Housing Type]]="Single Family Detached",Table1343[[#This Row],[Number of Homes/ Units]],IF(Table1343[[#This Row],[Housing Type]]="Single Family Attached",Table1343[[#This Row],[Number of Homes/ Units]],IF(Table1343[[#This Row],[Housing Type]]="Mobile Home",Table1343[[#This Row],[Number of Homes/ Units]]))))) -> 4172.32705 | K17: Hot-Humid | L17: 1078.155949 | M17: Metropolitan Area | N17: 0.3538022359 | O17: 1.405699335 | P17: 0.4395780985 | Q17: 0.02806335107 | R17: 1.453757341 | S17: 3.678668162 | T17: 114.92 | U17: 420.081 | V17: =T17*Table1343[[#This Row],[Number of Buildings]]/1000000000 -> 0.0004794838246 | W17: =U17*Table1343[[#This Row],[Number of Buildings]]/1000000000 -> 0.001752715319 | X17: =Table1343[[#This Row],[Wtd Air Handlers Heat (Tbtu)]]+Table1343[[#This Row],[Wtd Site Space Heating (TBtu)]] -> 0.3542817197 | Y17: =Table1343[[#This Row],[Wtd Site Total Cooling (TBtu)]]+Table1343[[#This Row],[Wtd Air Handlers Cool (Tbtu)]] -> 0.4413308139
A18: Mobile Home | B18: 10017 | C18: South Atlantic | D18: 1990s | E18: Siding | F18: central furnace | G18: central AC | H18: 27.05988972 | I18: 29285.59493 | J18: =IF(Table1343[[#This Row],[Housing Type]]="Multi-Family (2-4 units)",Table1343[[#This Row],[Number of Homes/ Units]]/3,IF(Table1343[[#This Row],[Housing Type]]="Multi-Family (5+ units)",Table1343[[#This Row],[Number of Homes/ Units]]/12.5720642567977,IF(Table1343[[#This Row],[Housing Type]]="Single Family Detached",Table1343[[#This Row],[Number of Homes/ Units]],IF(Table1343[[#This Row],[Housing Type]]="Single Family Attached",Table1343[[#This Row],[Number of Homes/ Units]],IF(Table1343[[#This Row],[Housing Type]]="Mobile Home",Table1343[[#This Row],[Number of Homes/ Units]]))))) -> 29285.59493 | K18: Mixed-Humid | L18: 349.2014339 | M18: Metropolitan Area | N18: 0.3447669799 | O18: 0.4208284935 | P18: 0.1334597275 | Q18: 0.01031781295 | R18: 0.6871991364 | S18: 1.586254337 | T18: 198.449 | U18: 153.868 | V18: =T18*Table1343[[#This Row],[Number of Buildings]]/1000000000 -> 0.005811697028 | W18: =U18*Table1343[[#This Row],[Number of Buildings]]/1000000000 -> 0.004506115921 | X18: =Table1343[[#This Row],[Wtd Air Handlers Heat (Tbtu)]]+Table1343[[#This Row],[Wtd Site Space Heating (TBtu)]] -> 0.3505786769 | Y18: =Table1343[[#This Row],[Wtd Site Total Cooling (TBtu)]]+Table1343[[#This Row],[Wtd Air Handlers Cool (Tbtu)]] -> 0.1379658434
A19: Multi-Family (2-4 units) | B19: 10018 | C19: Middle Atlantic | D19: Before 1950 | E19: Siding | F19: central furnace | G19: N/A | H19: 53.46529254 | I19: 43752.28522 | J19: =IF(Table1343[[#This Row],[Housing Type]]="Multi-Family (2-4 units)",Table1343[[#This Row],[Number of Homes/ Units]]/3,IF(Table1343[[#This Row],[Housing Type]]="Multi-Family (5+ units)",Table1343[[#This Row],[Number of Homes/ Units]]/12.5720642567977,IF(Table1343[[#This Row],[Housing Type]]="Single Family Detached",Table1343[[#This Row],[Number of Homes/ Units]],IF(Table1343[[#This Row],[Housing Type]]="Single Family Attached",Table1343[[#This Row],[Number of Homes/ Units]],IF(Table1343[[#This Row],[Housing Type]]="Mobile Home",Table1343[[#This Row],[Number of Homes/ Units]]))))) -> 14584.09507 | K19: Cold/Very Cold | L19: 100.5151437 | M19: Metropolitan Area | N19: 0.8357033141 | O19: 1.196588424 | P19: 0 | Q19: 0.009783142232 | R19: 0.4334921729 | S19: 2.472306006 | T19: 223.603 | U19: 0 | V19: =T19*Table1343[[#This Row],[Number of Buildings]]/1000000000 -> 0.003261047411 | W19: =U19*Table1343[[#This Row],[Number of Buildings]]/1000000000 -> 0 | X19: =Table1343[[#This Row],[Wtd Air Handlers Heat (Tbtu)]]+Table1343[[#This Row],[Wtd Site Space Heating (TBtu)]] -> 0.8389643615 | Y19: =Table1343[[#This Row],[Wtd Site Total Cooling (TBtu)]]+Table1343[[#This Row],[Wtd Air Handlers Cool (Tbtu)]] -> 0
A20: Single Family Detached | B20: 10019 | C20: Pacific | D20: 1990s | E20: Wood | F20: central furnace | G20: central AC | H20: 21.53053746 | I20: 12939.02491 | J20: =IF(Table1343[[#This Row],[Housing Type]]="Multi-Family (2-4 units)",Table1343[[#This Row],[Number of Homes/ Units]]/3,IF(Table1343[[#This Row],[Housing Type]]="Multi-Family (5+ units)",Table1343[[#This Row],[Number of Homes/ Units]]/12.5720642567977,IF(Table1343[[#This Row],[Housing Type]]="Single Family Detached",Table1343[[#This Row],[Number of Homes/ Units]],IF(Table1343[[#This Row],[Housing Type]]="Single Family Attached",Table1343[[#This Row],[Number of Homes/ Units]],IF(Table1343[[#This Row],[Housing Type]]="Mobile Home",Table1343[[#This Row],[Number of Homes/ Units]]))))) -> 12939.02491 | K20: Marine | L20: 61.22834575 | M20: Metropolitan Area | N20: 0.3784972864 | O20: 0.252420851 | P20: 0.0118282355 | Q20: 0.003133857711 | R20: 0.2848852527 | S20: 0.9276316256 | T20: 197.999 | U20: 44.203 | V20: =T20*Table1343[[#This Row],[Number of Buildings]]/1000000000 -> 0.002561913993 | W20: =U20*Table1343[[#This Row],[Number of Buildings]]/1000000000 -> 0.0005719437181 | X20: =Table1343[[#This Row],[Wtd Air Handlers Heat (Tbtu)]]+Table1343[[#This Row],[Wtd Site Space Heating (TBtu)]] -> 0.3810592004 | Y20: =Table1343[[#This Row],[Wtd Site Total Cooling (TBtu)]]+Table1343[[#This Row],[Wtd Air Handlers Cool (Tbtu)]] -> 0.01240017922
A21: Single Family Detached | B21: 10020 | C21: South Atlantic | D21: 1970s | E21: Siding | F21: heater burning gas/oil/kerosene | G21: window/wall unit | H21: 71.96588692 | I21: 25702.10247 | J21: =IF(Table1343[[#This Row],[Housing Type]]="Multi-Family (2-4 units)",Table1343[[#This Row],[Number of Homes/ Units]]/3,IF(Table1343[[#This Row],[Housing Type]]="Multi-Family (5+ units)",Table1343[[#This Row],[Number of Homes/ Units]]/12.5720642567977,IF(Table1343[[#This Row],[Housing Type]]="Single Family Detached",Table1343[[#This Row],[Number of Homes/ Units]],IF(Table1343[[#This Row],[Housing Type]]="Single Family Attached",Table1343[[#This Row],[Number of Homes/ Units]],IF(Table1343[[#This Row],[Housing Type]]="Mobile Home",Table1343[[#This Row],[Number of Homes/ Units]]))))) -> 25702.10247 | K21: Mixed-Humid | L21: 230.6366599 | M21: Metropolitan Area | N21: 1.815915764 | O21: 0.6228752377 | P21: 0.1684229989 | Q21: 0 | R21: 0.6185092473 | S21: 3.225723248 | T21: 0 | U21: 0 | V21: =T21*Table1343[[#This Row],[Number of Buildings]]/1000000000 -> 0 | W21: =U21*Table1343[[#This Row],[Number of Buildings]]/1000000000 -> 0 | X21: =Table1343[[#This Row],[Wtd Air Handlers Heat (Tbtu)]]+Table1343[[#This Row],[Wtd Site Space Heating (TBtu)]] -> 1.815915764 | Y21: =Table1343[[#This Row],[Wtd Site Total Cooling (TBtu)]]+Table1343[[#This Row],[Wtd Air Handlers Cool (Tbtu)]] -> 0.1684229989
A22: Single Family Detached | B22: 10021 | C22: Pacific | D22: Before 1950 | E22: Stucco | F22: heater burning gas/oil/kerosene | G22: N/A | H22: 78.04770327 | I22: 25946.70986 | J22: =IF(Table1343[[#This Row],[Housing Type]]="Multi-Family (2-4 units)",Table1343[[#This Row],[Number of Homes/ Units]]/3,IF(Table1343[[#This Row],[Housing Type]]="Multi-Family (5+ units)",Table1343[[#This Row],[Number of Homes/ Units]]/12.5720642567977,IF(Table1343[[#This Row],[Housing Type]]="Single Family Detached",Table1343[[#This Row],[Number of Homes/ Units]],IF(Table1343[[#This Row],[Housing Type]]="Single Family Attached",Table1343[[#This Row],[Number of Homes/ Units]],IF(Table1343[[#This Row],[Housing Type]]="Mobile Home",Table1343[[#This Row],[Number of Homes/ Units]]))))) -> 25946.70986 | K22: Marine | L22: 95.41419944 | M22: Metropolitan Area | N22: 0.9948147852 | O22: 0.4141753421 | P22: 0 | Q22: 0 | R22: 0.4039830334 | S22: 1.812973161 | T22: 0 | U22: 0 | V22: =T22*Table1343[[#This Row],[Number of Buildings]]/1000000000 -> 0 | W22: =U22*Table1343[[#This Row],[Number of Buildings]]/1000000000 -> 0 | X22: =Table1343[[#This Row],[Wtd Air Handlers Heat (Tbtu)]]+Table1343[[#This Row],[Wtd Site Space Heating (TBtu)]] -> 0.9948147852 | Y22: =Table1343[[#This Row],[Wtd Site Total Cooling (TBtu)]]+Table1343[[#This Row],[Wtd Air Handlers Cool (Tbtu)]] -> 0
A23: Single Family Attached | B23: 10022 | C23: South Atlantic | D23: 1970s | E23: Brick | F23: central furnace | G23: window/wall unit | H23: 57.31468668 | I23: 28387.66056 | J23: =IF(Table1343[[#This Row],[Housing Type]]="Multi-Family (2-4 units)",Table1343[[#This Row],[Number of Homes/ Units]]/3,IF(Table1343[[#This Row],[Housing Type]]="Multi-Family (5+ units)",Table1343[[#This Row],[Number of Homes/ Units]]/12.5720642567977,IF(Table1343[[#This Row],[Housing Type]]="Single Family Detached",Table1343[[#This Row],[Number of Homes/ Units]],IF(Table1343[[#This Row],[Housing Type]]="Single Family Attached",Table1343[[#This Row],[Number of Homes/ Units]],IF(Table1343[[#This Row],[Housing Type]]="Mobile Home",Table1343[[#This Row],[Number of Homes/ Units]]))))) -> 28387.66056 | K23: Mixed-Humid | L23: 462.038415 | M23: Metropolitan Area | N23: 1.523947272 | O23: 0.875297972 | P23: 0.2107805371 | Q23: 0.0267180403 | R23: 1.404485155 | S23: 4.014510937 | T23: 941.185 | U23: 0 | V23: =T23*Table1343[[#This Row],[Number of Buildings]]/1000000000 -> 0.0267180403 | W23: =U23*Table1343[[#This Row],[Number of Buildings]]/1000000000 -> 0 | X23: =Table1343[[#This Row],[Wtd Air Handlers Heat (Tbtu)]]+Table1343[[#This Row],[Wtd Site Space Heating (TBtu)]] -> 1.550665313 | Y23: =Table1343[[#This Row],[Wtd Site Total Cooling (TBtu)]]+Table1343[[#This Row],[Wtd Air Handlers Cool (Tbtu)]] -> 0.2107805371
A24: Single Family Detached | B24: 10023 | C24: East North Central | D24: 1970s | E24: Brick | F24: central furnace | G24: central AC | H24: 48.6147793 | I24: 16319.16056 | J24: =IF(Table1343[[#This Row],[Housing Type]]="Multi-Family (2-4 units)",Table1343[[#This Row],[Number of Homes/ Units]]/3,IF(Table1343[[#This Row],[Housing Type]]="Multi-Family (5+ units)",Table1343[[#This Row],[Number of Homes/ Units]]/12.5720642567977,IF(Table1343[[#This Row],[Housing Type]]="Single Family Detached",Table1343[[#This Row],[Number of Homes/ Units]],IF(Table1343[[#This Row],[Housing Type]]="Single Family Attached",Table1343[[#This Row],[Number of Homes/ Units]],IF(Table1343[[#This Row],[Housing Type]]="Mobile Home",Table1343[[#This Row],[Number of Homes/ Units]]))))) -> 16319.16056 | K24: Cold/Very Cold | L24: 90.14608009 | M24: Metropolitan Area | N24: 1.22885567 | O24: 0.2631981305 | P24: 0.03923739799 | Q24: 0.028797623 | R24: 0.3262323079 | S24: 1.857523506 | T24: 1652.726 | U24: 111.925 | V24: =T24*Table1343[[#This Row],[Number of Buildings]]/1000000000 -> 0.02697110096 | W24: =U24*Table1343[[#This Row],[Number of Buildings]]/1000000000 -> 0.001826522046 | X24: =Table1343[[#This Row],[Wtd Air Handlers Heat (Tbtu)]]+Table1343[[#This Row],[Wtd Site Space Heating (TBtu)]] -> 1.255826771 | Y24: =Table1343[[#This Row],[Wtd Site Total Cooling (TBtu)]]+Table1343[[#This Row],[Wtd Air Handlers Cool (Tbtu)]] -> 0.04106392004
A25: Multi-Family (5+ units) | B25: 10024 | C25: South Atlantic | D25: 2000s | E25: Siding | F25: central furnace | G25: central AC | H25: 58.82105202 | I25: 34846.5948 | J25: =IF(Table1343[[#This Row],[Housing Type]]="Multi-Family (2-4 units)",Table1343[[#This Row],[Number of Homes/ Units]]/3,IF(Table1343[[#This Row],[Housing Type]]="Multi-Family (5+ units)",Table1343[[#This Row],[Number of Homes/ Units]]/12.5720642567977,IF(Table1343[[#This Row],[Housing Type]]="Single Family Detached",Table1343[[#This Row],[Number of Homes/ Units]],IF(Table1343[[#This Row],[Housing Type]]="Single Family Attached",Table1343[[#This Row],[Number of Homes/ Units]],IF(Table1343[[#This Row],[Housing Type]]="Mobile Home",Table1343[[#This Row],[Number of Homes/ Units]]))))) -> 2771.748067 | K25: Mixed-Humid | L25: 271.5943598 | M25: Metropolitan Area | N25: 0.3463067498 | O25: 0.1976517674 | P25: 0.1051911943 | Q25: 0.01149850512 | R25: 0.2669767331 | S25: 0.9267103421 | T25: 179.693 | U25: 150.282 | V25: =T25*Table1343[[#This Row],[Number of Buildings]]/1000000000 -> 0.0004980637254 | W25: =U25*Table1343[[#This Row],[Number of Buildings]]/1000000000 -> 0.000416543843 | X25: =Table1343[[#This Row],[Wtd Air Handlers Heat (Tbtu)]]+Table1343[[#This Row],[Wtd Site Space Heating (TBtu)]] -> 0.3468048135 | Y25: =Table1343[[#This Row],[Wtd Site Total Cooling (TBtu)]]+Table1343[[#This Row],[Wtd Air Handlers Cool (Tbtu)]] -> 0.1056077381
A26: Single Family Detached | B26: 10025 | C26: East North Central | D26: 2000s | E26: Siding | F26: central furnace | G26: central AC | H26: 55.99242069 | I26: 16565.80494 | J26: =IF(Table1343[[#This Row],[Housing Type]]="Multi-Family (2-4 units)",Table1343[[#This Row],[Number of Homes/ Units]]/3,IF(Table1343[[#This Row],[Housing Type]]="Multi-Family (5+ units)",Table1343[[#This Row],[Number of Homes/ Units]]/12.5720642567977,IF(Table1343[[#This Row],[Housing Type]]="Single Family Detached",Table1343[[#This Row],[Number of Homes/ Units]],IF(Table1343[[#This Row],[Housing Type]]="Single Family Attached",Table1343[[#This Row],[Number of Homes/ Units]],IF(Table1343[[#This Row],[Housing Type]]="Mobile Home",Table1343[[#This Row],[Number of Homes/ Units]]))))) -> 16565.80494 | K26: Cold/Very Cold | L26: 173.870365 | M26: Metropolitan Area | N26: 0.9556317552 | O26: 0.5941425999 | P26: 0.04128702192 | Q26: 0.0247663091 | R26: 0.5294163224 | S26: 2.120477699 | T26: 1360.777 | U26: 134.249 | V26: =T26*Table1343[[#This Row],[Number of Buildings]]/1000000000 -> 0.02254236635 | W26: =U26*Table1343[[#This Row],[Number of Buildings]]/1000000000 -> 0.002223942747 | X26: =Table1343[[#This Row],[Wtd Air Handlers Heat (Tbtu)]]+Table1343[[#This Row],[Wtd Site Space Heating (TBtu)]] -> 0.9781741216 | Y26: =Table1343[[#This Row],[Wtd Site Total Cooling (TBtu)]]+Table1343[[#This Row],[Wtd Air Handlers Cool (Tbtu)]] -> 0.04351096466
A27: Single Family Attached | B27: 10026 | C27: Middle Atlantic | D27: 1980s | E27: Siding | F27: central furnace | G27: central AC | H27: 26.98270381 | I27: 17241.34428 | J27: =IF(Table1343[[#This Row],[Housing Type]]="Multi-Family (2-4 units)",Table1343[[#This Row],[Number of Homes/ Units]]/3,IF(Table1343[[#This Row],[Housing Type]]="Multi-Family (5+ units)",Table1343[[#This Row],[Number of Homes/ Units]]/12.5720642567977,IF(Table1343[[#This Row],[Housing Type]]="Single Family Detached",Table1343[[#This Row],[Number of Homes/ Units]],IF(Table1343[[#This Row],[Housing Type]]="Single Family Attached",Table1343[[#This Row],[Number of Homes/ Units]],IF(Table1343[[#This Row],[Housing Type]]="Mobile Home",Table1343[[#This Row],[Number of Homes/ Units]]))))) -> 17241.34428 | K27: Mixed-Humid | L27: 204.2340334 | M27: Metropolitan Area | N27: 0.3554991225 | O27: 0.09973659046 | P27: 0.06315557858 | Q27: 0.009147067622 | R27: 0.1784552409 | S27: 0.6968465324 | T27: 358.325 | U27: 172.206 | V27: =T27*Table1343[[#This Row],[Number of Buildings]]/1000000000 -> 0.006178004689 | W27: =U27*Table1343[[#This Row],[Number of Buildings]]/1000000000 -> 0.002969062933 | X27: =Table1343[[#This Row],[Wtd Air Handlers Heat (Tbtu)]]+Table1343[[#This Row],[Wtd Site Space Heating (TBtu)]] -> 0.3616771272 | Y27: =Table1343[[#This Row],[Wtd Site Total Cooling (TBtu)]]+Table1343[[#This Row],[Wtd Air Handlers Cool (Tbtu)]] -> 0.06612464151
A28: Single Family Detached | B28: 10027 | C28: South Atlantic | D28: 1970s | E28: Siding | F28: central furnace | G28: both central and individual units | H28: 62.7608725 | I28: 19686.5974 | J28: =IF(Table1343[[#This Row],[Housing Type]]="Multi-Family (2-4 units)",Table1343[[#This Row],[Number of Homes/ Units]]/3,IF(Table1343[[#This Row],[Housing Type]]="Multi-Family (5+ units)",Table1343[[#This Row],[Number of Homes/ Units]]/12.5720642567977,IF(Table1343[[#This Row],[Housing Type]]="Single Family Detached",Table1343[[#This Row],[Number of Homes/ Units]],IF(Table1343[[#This Row],[Housing Type]]="Single Family Attached",Table1343[[#This Row],[Number of Homes/ Units]],IF(Table1343[[#This Row],[Housing Type]]="Mobile Home",Table1343[[#This Row],[Number of Homes/ Units]]))))) -> 19686.5974 | K28: Mixed-Humid | L28: 209.6245625 | M28: Metropolitan Area | N28: 1.032879933 | O28: 0.2811645353 | P28: 0.2535155361 | Q28: 0.05502772113 | R28: 0.4180430059 | S28: 1.98560301 | T28: 2218.791 | U28: 576.396 | V28: =T28*Table1343[[#This Row],[Number of Buildings]]/1000000000 -> 0.04368044513 | W28: =U28*Table1343[[#This Row],[Number of Buildings]]/1000000000 -> 0.01134727599 | X28: =Table1343[[#This Row],[Wtd Air Handlers Heat (Tbtu)]]+Table1343[[#This Row],[Wtd Site Space Heating (TBtu)]] -> 1.076560378 | Y28: =Table1343[[#This Row],[Wtd Site Total Cooling (TBtu)]]+Table1343[[#This Row],[Wtd Air Handlers Cool (Tbtu)]] -> 0.2648628121
A29: Single Family Detached | B29: 10028 | C29: South Atlantic | D29: 1970s | E29: Siding | F29: built-in electric unit | G29: window/wall unit | H29: 23.22578224 | I29: 20302.2572 | J29: =IF(Table1343[[#This Row],[Housing Type]]="Multi-Family (2-4 units)",Table1343[[#This Row],[Number of Homes/ Units]]/3,IF(Table1343[[#This Row],[Housing Type]]="Multi-Family (5+ units)",Table1343[[#This Row],[Number of Homes/ Units]]/12.5720642567977,IF(Table1343[[#This Row],[Housing Type]]="Single Family Detached",Table1343[[#This Row],[Number of Homes/ Units]],IF(Table1343[[#This Row],[Housing Type]]="Single Family Attached",Table1343[[#This Row],[Number of Homes/ Units]],IF(Table1343[[#This Row],[Housing Type]]="Mobile Home",Table1343[[#This Row],[Number of Homes/ Units]]))))) -> 20302.2572 | K29: Mixed-Humid | L29: 289.5747488 | M29: Metropolitan Area | N29: 0.4446367911 | O29: 0.1812677898 | P29: 0.1012921028 | Q29: 0 | R29: 0.2608323561 | S29: 0.9880290398 | T29: 0 | U29: 0 | V29: =T29*Table1343[[#This Row],[Number of Buildings]]/1000000000 -> 0 | W29: =U29*Table1343[[#This Row],[Number of Buildings]]/1000000000 -> 0 | X29: =Table1343[[#This Row],[Wtd Air Handlers Heat (Tbtu)]]+Table1343[[#This Row],[Wtd Site Space Heating (TBtu)]] -> 0.4446367911 | Y29: =Table1343[[#This Row],[Wtd Site Total Cooling (TBtu)]]+Table1343[[#This Row],[Wtd Air Handlers Cool (Tbtu)]] -> 0.1012921028
A30: Single Family Detached | B30: 10029 | C30: South Atlantic | D30: 1960s | E30: Concrete | F30: central furnace | G30: central AC | H30: 47.11496192 | I30: 21533.3464 | J30: =IF(Table1343[[#This Row],[Housing Type]]="Multi-Family (2-4 units)",Table1343[[#This Row],[Number of Homes/ Units]]/3,IF(Table1343[[#This Row],[Housing Type]]="Multi-Family (5+ units)",Table1343[[#This Row],[Number of Homes/ Units]]/12.5720642567977,IF(Table1343[[#This Row],[Housing Type]]="Single Family Detached",Table1343[[#This Row],[Number of Homes/ Units]],IF(Table1343[[#This Row],[Housing Type]]="Single Family Attached",Table1343[[#This Row],[Number of Homes/ Units]],IF(Table1343[[#This Row],[Housing Type]]="Mobile Home",Table1343[[#This Row],[Number of Homes/ Units]]))))) -> 21533.3464 | K30: Hot-Humid | L30: 273.7808016 | M30: Metropolitan Area | N30: 0.3556503047 | O30: 0.2150204768 | P30: 0.552794185 | Q30: 0.03635304759 | R30: 0.3892038666 | S30: 1.512668833 | T30: 330.536 | U30: 1357.685 | V30: =T30*Table1343[[#This Row],[Number of Buildings]]/1000000000 -> 0.007117546186 | W30: =U30*Table1343[[#This Row],[Number of Buildings]]/1000000000 -> 0.02923550141 | X30: =Table1343[[#This Row],[Wtd Air Handlers Heat (Tbtu)]]+Table1343[[#This Row],[Wtd Site Space Heating (TBtu)]] -> 0.3627678509 | Y30: =Table1343[[#This Row],[Wtd Site Total Cooling (TBtu)]]+Table1343[[#This Row],[Wtd Air Handlers Cool (Tbtu)]] -> 0.5820296864
A31: Single Family Detached | B31: 10030 | C31: Middle Atlantic | D31: 1950s | E31: Siding | F31: central furnace | G31: central AC | H31: 48.95815964 | I31: 16004.62884 | J31: =IF(Table1343[[#This Row],[Housing Type]]="Multi-Family (2-4 units)",Table1343[[#This Row],[Number of Homes/ Units]]/3,IF(Table1343[[#This Row],[Housing Type]]="Multi-Family (5+ units)",Table1343[[#This Row],[Number of Homes/ Units]]/12.5720642567977,IF(Table1343[[#This Row],[Housing Type]]="Single Family Detached",Table1343[[#This Row],[Number of Homes/ Units]],IF(Table1343[[#This Row],[Housing Type]]="Single Family Attached",Table1343[[#This Row],[Number of Homes/ Units]],IF(Table1343[[#This Row],[Housing Type]]="Mobile Home",Table1343[[#This Row],[Number of Homes/ Units]]))))) -> 16004.62884 | K31: Cold/Very Cold | L31: 197.5126604 | M31: Metropolitan Area | N31: 1.794705671 | O31: 0.07145671463 | P31: 0.02896805811 | Q31: 0.01506307653 | R31: 0.5600660777 | S31: 2.455196521 | T31: 838.653 | U31: 102.517 | V31: =T31*Table1343[[#This Row],[Number of Buildings]]/1000000000 -> 0.01342232999 | W31: =U31*Table1343[[#This Row],[Number of Buildings]]/1000000000 -> 0.001640746535 | X31: =Table1343[[#This Row],[Wtd Air Handlers Heat (Tbtu)]]+Table1343[[#This Row],[Wtd Site Space Heating (TBtu)]] -> 1.808128001 | Y31: =Table1343[[#This Row],[Wtd Site Total Cooling (TBtu)]]+Table1343[[#This Row],[Wtd Air Handlers Cool (Tbtu)]] -> 0.03060880464
A32: Single Family Detached | B32: 10031 | C32: Mountain South | D32: 2000s | E32: Stucco | F32: central furnace | G32: central AC | H32: 31.57659245 | I32: 10172.87128 | J32: =IF(Table1343[[#This Row],[Housing Type]]="Multi-Family (2-4 units)",Table1343[[#This Row],[Number of Homes/ Units]]/3,IF(Table1343[[#This Row],[Housing Type]]="Multi-Family (5+ units)",Table1343[[#This Row],[Number of Homes/ Units]]/12.5720642567977,IF(Table1343[[#This Row],[Housing Type]]="Single Family Detached",Table1343[[#This Row],[Number of Homes/ Units]],IF(Table1343[[#This Row],[Housing Type]]="Single Family Attached",Table1343[[#This Row],[Number of Homes/ Units]],IF(Table1343[[#This Row],[Housing Type]]="Mobile Home",Table1343[[#This Row],[Number of Homes/ Units]]))))) -> 10172.87128 | K32: Hot-Dry/Mixed-Dry | L32: 133.8839992 | M32: Metropolitan Area | N32: 0.09593821274 | O32: 0.08220393113 | P32: 0.3458017237 | Q32: 0.02384669552 | R32: 0.100151582 | S32: 0.6240954496 | T32: 318.578 | U32: 2025.568 | V32: =T32*Table1343[[#This Row],[Number of Buildings]]/1000000000 -> 0.003240852987 | W32: =U32*Table1343[[#This Row],[Number of Buildings]]/1000000000 -> 0.02060584253 | X32: =Table1343[[#This Row],[Wtd Air Handlers Heat (Tbtu)]]+Table1343[[#This Row],[Wtd Site Space Heating (TBtu)]] -> 0.09917906573 | Y32: =Table1343[[#This Row],[Wtd Site Total Cooling (TBtu)]]+Table1343[[#This Row],[Wtd Air Handlers Cool (Tbtu)]] -> 0.3664075663
A33: Single Family Detached | B33: 10032 | C33: West South Central | D33: 1950s | E33: Brick | F33: central furnace | G33: central AC | H33: 56.94702015 | I33: 31602.11995 | J33: =IF(Table1343[[#This Row],[Housing Type]]="Multi-Family (2-4 units)",Table1343[[#This Row],[Number of Homes/ Units]]/3,IF(Table1343[[#This Row],[Housing Type]]="Multi-Family (5+ units)",Table1343[[#This Row],[Number of Homes/ Units]]/12.5720642567977,IF(Table1343[[#This Row],[Housing Type]]="Single Family Detached",Table1343[[#This Row],[Number of Homes/ Units]],IF(Table1343[[#This Row],[Housing Type]]="Single Family Attached",Table1343[[#This Row],[Number of Homes/ Units]],IF(Table1343[[#This Row],[Housing Type]]="Mobile Home",Table1343[[#This Row],[Number of Homes/ Units]]))))) -> 31602.11995 | K33: Hot-Humid | L33: 291.1232165 | M33: Metropolitan Area | N33: 1.170040586 | O33: 0.5091778757 | P33: 0.5883005459 | Q33: 0.04146059088 | R33: 0.4994059314 | S33: 2.76692494 | T33: 372.336 | U33: 939.62 | V33: =T33*Table1343[[#This Row],[Number of Buildings]]/1000000000 -> 0.01176660693 | W33: =U33*Table1343[[#This Row],[Number of Buildings]]/1000000000 -> 0.02969398395 | X33: =Table1343[[#This Row],[Wtd Air Handlers Heat (Tbtu)]]+Table1343[[#This Row],[Wtd Site Space Heating (TBtu)]] -> 1.181807193 | Y33: =Table1343[[#This Row],[Wtd Site Total Cooling (TBtu)]]+Table1343[[#This Row],[Wtd Air Handlers Cool (Tbtu)]] -> 0.6179945298
A34: Multi-Family (5+ units) | B34: 10033 | C34: Middle Atlantic | D34: Before 1950 | E34: Brick | F34: portable electric heaters | G34: N/A | H34: 27.72222661 | I34: 27889.56399 | J34: =IF(Table1343[[#This Row],[Housing Type]]="Multi-Family (2-4 units)",Table1343[[#This Row],[Number of Homes/ Units]]/3,IF(Table1343[[#This Row],[Housing Type]]="Multi-Family (5+ units)",Table1343[[#This Row],[Number of Homes/ Units]]/12.5720642567977,IF(Table1343[[#This Row],[Housing Type]]="Single Family Detached",Table1343[[#This Row],[Number of Homes/ Units]],IF(Table1343[[#This Row],[Housing Type]]="Single Family Attached",Table1343[[#This Row],[Number of Homes/ Units]],IF(Table1343[[#This Row],[Housing Type]]="Mobile Home",Table1343[[#This Row],[Number of Homes/ Units]]))))) -> 2218.375871 | K34: Cold/Very Cold | L34: 119.0317667 | M34: Metropolitan Area | N34: 0.1841769075 | O34: 0.1946494945 | P34: 0 | Q34: 0 | R34: 0.2219594576 | S34: 0.6007858595 | T34: 0 | U34: 0 | V34: =T34*Table1343[[#This Row],[Number of Buildings]]/1000000000 -> 0 | W34: =U34*Table1343[[#This Row],[Number of Buildings]]/1000000000 -> 0 | X34: =Table1343[[#This Row],[Wtd Air Handlers Heat (Tbtu)]]+Table1343[[#This Row],[Wtd Site Space Heating (TBtu)]] -> 0.1841769075 | Y34: =Table1343[[#This Row],[Wtd Site Total Cooling (TBtu)]]+Table1343[[#This Row],[Wtd Air Handlers Cool (Tbtu)]] -> 0
A35: Multi-Family (5+ units) | B35: 10034 | C35: Middle Atlantic | D35: 1970s | E35: Wood | F35: heat pump | G35: central AC | H35: 14.68064539 | I35: 13072.70293 | J35: =IF(Table1343[[#This Row],[Housing Type]]="Multi-Family (2-4 units)",Table1343[[#This Row],[Number of Homes/ Units]]/3,IF(Table1343[[#This Row],[Housing Type]]="Multi-Family (5+ units)",Table1343[[#This Row],[Number of Homes/ Units]]/12.5720642567977,IF(Table1343[[#This Row],[Housing Type]]="Single Family Detached",Table1343[[#This Row],[Number of Homes/ Units]],IF(Table1343[[#This Row],[Housing Type]]="Single Family Attached",Table1343[[#This Row],[Number of Homes/ Units]],IF(Table1343[[#This Row],[Housing Type]]="Mobile Home",Table1343[[#This Row],[Number of Homes/ Units]]))))) -> 1039.821517 | K35: Mixed-Humid | L35: 107.2484549 | M35: Metropolitan Area | N35: 0.1100285727 | O35: 0.0858620619 | P35: 0.0233105941 | Q35: 0.002928926019 | R35: 0.1440469893 | S35: 0.3659441731 | T35: 142.352 | U35: 81.697 | V35: =T35*Table1343[[#This Row],[Number of Buildings]]/1000000000 -> 0.0001480206726 | W35: =U35*Table1343[[#This Row],[Number of Buildings]]/1000000000 -> 8.495029849e-05 | X35: =Table1343[[#This Row],[Wtd Air Handlers Heat (Tbtu)]]+Table1343[[#This Row],[Wtd Site Space Heating (TBtu)]] -> 0.1101765934 | Y35: =Table1343[[#This Row],[Wtd Site Total Cooling (TBtu)]]+Table1343[[#This Row],[Wtd Air Handlers Cool (Tbtu)]] -> 0.0233955444
A36: Single Family Attached | B36: 10035 | C36: South Atlantic | D36: 1970s | E36: Shingle | F36: built-in electric unit | G36: central AC | H36: 25.96715249 | I36: 17712.92803 | J36: =IF(Table1343[[#This Row],[Housing Type]]="Multi-Family (2-4 units)",Table1343[[#This Row],[Number of Homes/ Units]]/3,IF(Table1343[[#This Row],[Housing Type]]="Multi-Family (5+ units)",Table1343[[#This Row],[Number of Homes/ Units]]/12.5720642567977,IF(Table1343[[#This Row],[Housing Type]]="Single Family Detached",Table1343[[#This Row],[Number of Homes/ Units]],IF(Table1343[[#This Row],[Housing Type]]="Single Family Attached",Table1343[[#This Row],[Number of Homes/ Units]],IF(Table1343[[#This Row],[Housing Type]]="Mobile Home",Table1343[[#This Row],[Number of Homes/ Units]]))))) -> 17712.92803 | K36: Mixed-Humid | L36: 250.3158929 | M36: Metropolitan Area | N36: 0.4412338374 | O36: 0.09276145275 | P36: 0.1288148601 | Q36: 0.006043155082 | R36: 0.1912676509 | S36: 0.8540778012 | T36: 0 | U36: 341.172 | V36: =T36*Table1343[[#This Row],[Number of Buildings]]/1000000000 -> 0 | W36: =U36*Table1343[[#This Row],[Number of Buildings]]/1000000000 -> 0.006043155082 | X36: =Table1343[[#This Row],[Wtd Air Handlers Heat (Tbtu)]]+Table1343[[#This Row],[Wtd Site Space Heating (TBtu)]] -> 0.4412338374 | Y36: =Table1343[[#This Row],[Wtd Site Total Cooling (TBtu)]]+Table1343[[#This Row],[Wtd Air Handlers Cool (Tbtu)]] -> 0.1348580152
A37: Single Family Attached | B37: 10036 | C37: Middle Atlantic | D37: Before 1950 | E37: Brick | F37: radiator | G37: window/wall unit | H37: 77.92626955 | I37: 33033.60303 | J37: =IF(Table1343[[#This Row],[Housing Type]]="Multi-Family (2-4 units)",Table1343[[#This Row],[Number of Homes/ Units]]/3,IF(Table1343[[#This Row],[Housing Type]]="Multi-Family (5+ units)",Table1343[[#This Row],[Number of Homes/ Units]]/12.5720642567977,IF(Table1343[[#This Row],[Housing Type]]="Single Family Detached",Table1343[[#This Row],[Number of Homes/ Units]],IF(Table1343[[#This Row],[Housing Type]]="Single Family Attached",Table1343[[#This Row],[Number of Homes/ Units]],IF(Table1343[[#This Row],[Housing Type]]="Mobile Home",Table1343[[#This Row],[Number of Homes/ Units]]))))) -> 33033.60303 | K37: Mixed-Humid | L37: 98.53451403 | M37: Metropolitan Area | N37: 2.250819463 | O37: 0.06672388105 | P37: 0.08083851199 | Q37: 0.002390707918 | R37: 0.2313537788 | S37: 2.629735635 | T37: 72.372 | U37: 0 | V37: =T37*Table1343[[#This Row],[Number of Buildings]]/1000000000 -> 0.002390707918 | W37: =U37*Table1343[[#This Row],[Number of Buildings]]/1000000000 -> 0 | X37: =Table1343[[#This Row],[Wtd Air Handlers Heat (Tbtu)]]+Table1343[[#This Row],[Wtd Site Space Heating (TBtu)]] -> 2.253210171 | Y37: =Table1343[[#This Row],[Wtd Site Total Cooling (TBtu)]]+Table1343[[#This Row],[Wtd Air Handlers Cool (Tbtu)]] -> 0.08083851199
A38: Single Family Detached | B38: 10037 | C38: East South Central | D38: 1980s | E38: Brick | F38: central furnace | G38: N/A | H38: 54.92321015 | I38: 16653.49004 | J38: =IF(Table1343[[#This Row],[Housing Type]]="Multi-Family (2-4 units)",Table1343[[#This Row],[Number of Homes/ Units]]/3,IF(Table1343[[#This Row],[Housing Type]]="Multi-Family (5+ units)",Table1343[[#This Row],[Number of Homes/ Units]]/12.5720642567977,IF(Table1343[[#This Row],[Housing Type]]="Single Family Detached",Table1343[[#This Row],[Number of Homes/ Units]],IF(Table1343[[#This Row],[Housing Type]]="Single Family Attached",Table1343[[#This Row],[Number of Homes/ Units]],IF(Table1343[[#This Row],[Housing Type]]="Mobile Home",Table1343[[#This Row],[Number of Homes/ Units]]))))) -> 16653.49004 | K38: Hot-Humid | L38: 300.3762187 | M38: Metropolitan Area | N38: 0.2738485414 | O38: 0.2873852808 | P38: 0 | Q38: 0.004996380082 | R38: 0.4636498495 | S38: 1.024883672 | T38: 300.02 | U38: 0 | V38: =T38*Table1343[[#This Row],[Number of Buildings]]/1000000000 -> 0.004996380082 | W38: =U38*Table1343[[#This Row],[Number of Buildings]]/1000000000 -> 0 | X38: =Table1343[[#This Row],[Wtd Air Handlers Heat (Tbtu)]]+Table1343[[#This Row],[Wtd Site Space Heating (TBtu)]] -> 0.2788449214 | Y38: =Table1343[[#This Row],[Wtd Site Total Cooling (TBtu)]]+Table1343[[#This Row],[Wtd Air Handlers Cool (Tbtu)]] -> 0
A39: Single Family Detached | B39: 10038 | C39: East South Central | D39: 1970s | E39: Brick | F39: central furnace | G39: central AC | H39: 56.9206863 | I39: 33841.0739 | J39: =IF(Table1343[[#This Row],[Housing Type]]="Multi-Family (2-4 units)",Table1343[[#This Row],[Number of Homes/ Units]]/3,IF(Table1343[[#This Row],[Housing Type]]="Multi-Family (5+ units)",Table1343[[#This Row],[Number of Homes/ Units]]/12.5720642567977,IF(Table1343[[#This Row],[Housing Type]]="Single Family Detached",Table1343[[#This Row],[Number of Homes/ Units]],IF(Table1343[[#This Row],[Housing Type]]="Single Family Attached",Table1343[[#This Row],[Number of Homes/ Units]],IF(Table1343[[#This Row],[Housing Type]]="Mobile Home",Table1343[[#This Row],[Number of Homes/ Units]]))))) -> 33841.0739 | K39: Mixed-Humid | L39: 293.0247151 | M39: Rural | N39: 1.580361231 | O39: 0.5439423355 | P39: 0.3466396022 | Q39: 0.03650040701 | R39: 0.6334645987 | S39: 3.104407767 | T39: 582.017 | U39: 496.566 | V39: =T39*Table1343[[#This Row],[Number of Buildings]]/1000000000 -> 0.01969608031 | W39: =U39*Table1343[[#This Row],[Number of Buildings]]/1000000000 -> 0.0168043267 | X39: =Table1343[[#This Row],[Wtd Air Handlers Heat (Tbtu)]]+Table1343[[#This Row],[Wtd Site Space Heating (TBtu)]] -> 1.600057311 | Y39: =Table1343[[#This Row],[Wtd Site Total Cooling (TBtu)]]+Table1343[[#This Row],[Wtd Air Handlers Cool (Tbtu)]] -> 0.3634439289
A40: Single Family Detached | B40: 10039 | C40: Mountain North | D40: 2000s | E40: Siding | F40: wood-burning stove | G40: N/A | H40: 24.51532678 | I40: 12257.66339 | J40: =IF(Table1343[[#This Row],[Housing Type]]="Multi-Family (2-4 units)",Table1343[[#This Row],[Number of Homes/ Units]]/3,IF(Table1343[[#This Row],[Housing Type]]="Multi-Family (5+ units)",Table1343[[#This Row],[Number of Homes/ Units]]/12.5720642567977,IF(Table1343[[#This Row],[Housing Type]]="Single Family Detached",Table1343[[#This Row],[Number of Homes/ Units]],IF(Table1343[[#This Row],[Housing Type]]="Single Family Attached",Table1343[[#This Row],[Number of Homes/ Units]],IF(Table1343[[#This Row],[Housing Type]]="Mobile Home",Table1343[[#This Row],[Number of Homes/ Units]]))))) -> 12257.66339 | K40: Cold/Very Cold | L40: 67.13522238 | M40: Metropolitan Area | N40: 0.1449482915 | O40: 0.1283379931 | P40: 0 | Q40: 0 | R40: 0.2955600157 | S40: 0.5688463003 | T40: 0 | U40: 0 | V40: =T40*Table1343[[#This Row],[Number of Buildings]]/1000000000 -> 0 | W40: =U40*Table1343[[#This Row],[Number of Buildings]]/1000000000 -> 0 | X40: =Table1343[[#This Row],[Wtd Air Handlers Heat (Tbtu)]]+Table1343[[#This Row],[Wtd Site Space Heating (TBtu)]] -> 0.1449482915 | Y40: =Table1343[[#This Row],[Wtd Site Total Cooling (TBtu)]]+Table1343[[#This Row],[Wtd Air Handlers Cool (Tbtu)]] -> 0
A41: Single Family Detached | B41: 10040 | C41: South Atlantic | D41: 1970s | E41: Siding | F41: central furnace | G41: window/wall unit | H41: 50.13661436 | I41: 47749.15653 | J41: =IF(Table1343[[#This Row],[Housing Type]]="Multi-Family (2-4 units)",Table1343[[#This Row],[Number of Homes/ Units]]/3,IF(Table1343[[#This Row],[Housing Type]]="Multi-Family (5+ units)",Table1343[[#This Row],[Number of Homes/ Units]]/12.5720642567977,IF(Table1343[[#This Row],[Housing Type]]="Single Family Detached",Table1343[[#This Row],[Number of Homes/ Units]],IF(Table1343[[#This Row],[Housing Type]]="Single Family Attached",Table1343[[#This Row],[Number of Homes/ Units]],IF(Table1343[[#This Row],[Housing Type]]="Mobile Home",Table1343[[#This Row],[Number of Homes/ Units]]))))) -> 47749.15653 | K41: Mixed-Humid | L41: 1051.197681 | M41: Metropolitan Area | N41: 1.688552849 | O41: 0.6906268491 | P41: 0.1958915832 | Q41: 0.02347305561 | R41: 1.011558862 | S41: 3.586630144 | T41: 491.591 | U41: 0 | V41: =T41*Table1343[[#This Row],[Number of Buildings]]/1000000000 -> 0.02347305561 | W41: =U41*Table1343[[#This Row],[Number of Buildings]]/1000000000 -> 0 | X41: =Table1343[[#This Row],[Wtd Air Handlers Heat (Tbtu)]]+Table1343[[#This Row],[Wtd Site Space Heating (TBtu)]] -> 1.712025905 | Y41: =Table1343[[#This Row],[Wtd Site Total Cooling (TBtu)]]+Table1343[[#This Row],[Wtd Air Handlers Cool (Tbtu)]] -> 0.1958915832
A42: Single Family Detached | B42: 10041 | C42: West North Central | D42: 1950s | E42: Brick | F42: central furnace | G42: central AC | H42: 28.93128063 | I42: 11489.7858 | J42: =IF(Table1343[[#This Row],[Housing Type]]="Multi-Family (2-4 units)",Table1343[[#This Row],[Number of Homes/ Units]]/3,IF(Table1343[[#This Row],[Housing Type]]="Multi-Family (5+ units)",Table1343[[#This Row],[Number of Homes/ Units]]/12.5720642567977,IF(Table1343[[#This Row],[Housing Type]]="Single Family Detached",Table1343[[#This Row],[Number of Homes/ Units]],IF(Table1343[[#This Row],[Housing Type]]="Single Family Attached",Table1343[[#This Row],[Number of Homes/ Units]],IF(Table1343[[#This Row],[Housing Type]]="Mobile Home",Table1343[[#This Row],[Number of Homes/ Units]]))))) -> 11489.7858 | K42: Mixed-Humid | L42: 217.5800514 | M42: Metropolitan Area | N42: 1.243809194 | O42: 0.3804768114 | P42: 0.1785722172 | Q42: 0.02798667088 | R42: 0.3016868921 | S42: 2.104545115 | T42: 1618.859 | U42: 816.928 | V42: =T42*Table1343[[#This Row],[Number of Buildings]]/1000000000 -> 0.01860034315 | W42: =U42*Table1343[[#This Row],[Number of Buildings]]/1000000000 -> 0.009386327734 | X42: =Table1343[[#This Row],[Wtd Air Handlers Heat (Tbtu)]]+Table1343[[#This Row],[Wtd Site Space Heating (TBtu)]] -> 1.262409537 | Y42: =Table1343[[#This Row],[Wtd Site Total Cooling (TBtu)]]+Table1343[[#This Row],[Wtd Air Handlers Cool (Tbtu)]] -> 0.1879585449
A43: Single Family Detached | B43: 10042 | C43: West North Central | D43: Before 1950 | E43: Stone | F43: central furnace | G43: central AC | H43: 25.83406548 | I43: 11663.23498 | J43: =IF(Table1343[[#This Row],[Housing Type]]="Multi-Family (2-4 units)",Table1343[[#This Row],[Number of Homes/ Units]]/3,IF(Table1343[[#This Row],[Housing Type]]="Multi-Family (5+ units)",Table1343[[#This Row],[Number of Homes/ Units]]/12.5720642567977,IF(Table1343[[#This Row],[Housing Type]]="Single Family Detached",Table1343[[#This Row],[Number of Homes/ Units]],IF(Table1343[[#This Row],[Housing Type]]="Single Family Attached",Table1343[[#This Row],[Number of Homes/ Units]],IF(Table1343[[#This Row],[Housing Type]]="Mobile Home",Table1343[[#This Row],[Number of Homes/ Units]]))))) -> 11663.23498 | K43: Mixed-Humid | L43: 185.48894 | M43: Metropolitan Area | N43: 0.7073701397 | O43: 0.1044103409 | P43: 0.1350288053 | Q43: 0.02213518714 | R43: 0.5155717627 | S43: 1.462381049 | T43: 1402.684 | U43: 495.176 | V43: =T43*Table1343[[#This Row],[Number of Buildings]]/1000000000 -> 0.01635983309 | W43: =U43*Table1343[[#This Row],[Number of Buildings]]/1000000000 -> 0.005775354044 | X43: =Table1343[[#This Row],[Wtd Air Handlers Heat (Tbtu)]]+Table1343[[#This Row],[Wtd Site Space Heating (TBtu)]] -> 0.7237299728 | Y43: =Table1343[[#This Row],[Wtd Site Total Cooling (TBtu)]]+Table1343[[#This Row],[Wtd Air Handlers Cool (Tbtu)]] -> 0.1408041594
A44: Single Family Detached | B44: 10043 | C44: Pacific | D44: 1960s | E44: Wood | F44: central furnace | G44: central AC | H44: 26.67275221 | I44: 17399.05558 | J44: =IF(Table1343[[#This Row],[Housing Type]]="Multi-Family (2-4 units)",Table1343[[#This Row],[Number of Homes/ Units]]/3,IF(Table1343[[#This Row],[Housing Type]]="Multi-Family (5+ units)",Table1343[[#This Row],[Number of Homes/ Units]]/12.5720642567977,IF(Table1343[[#This Row],[Housing Type]]="Single Family Detached",Table1343[[#This Row],[Number of Homes/ Units]],IF(Table1343[[#This Row],[Housing Type]]="Single Family Attached",Table1343[[#This Row],[Number of Homes/ Units]],IF(Table1343[[#This Row],[Housing Type]]="Mobile Home",Table1343[[#This Row],[Number of Homes/ Units]]))))) -> 17399.05558 | K44: Hot-Dry/Mixed-Dry | L44: 168.5473657 | M44: Metropolitan Area | N44: 0.4581340801 | O44: 0.2451383563 | P44: 0.1906324567 | Q44: 0.02127993233 | R44: 0.4043669444 | S44: 1.298271837 | T44: 721.772 | U44: 501.279 | V44: =T44*Table1343[[#This Row],[Number of Buildings]]/1000000000 -> 0.01255815114 | W44: =U44*Table1343[[#This Row],[Number of Buildings]]/1000000000 -> 0.008721781182 | X44: =Table1343[[#This Row],[Wtd Air Handlers Heat (Tbtu)]]+Table1343[[#This Row],[Wtd Site Space Heating (TBtu)]] -> 0.4706922312 | Y44: =Table1343[[#This Row],[Wtd Site Total Cooling (TBtu)]]+Table1343[[#This Row],[Wtd Air Handlers Cool (Tbtu)]] -> 0.1993542379
A45: Multi-Family (5+ units) | B45: 10044 | C45: New England | D45: 1980s | E45: Brick | F45: central furnace | G45: central AC | H45: 19.54998147 | I45: 24106.01907 | J45: =IF(Table1343[[#This Row],[Housing Type]]="Multi-Family (2-4 units)",Table1343[[#This Row],[Number of Homes/ Units]]/3,IF(Table1343[[#This Row],[Housing Type]]="Multi-Family (5+ units)",Table1343[[#This Row],[Number of Homes/ Units]]/12.5720642567977,IF(Table1343[[#This Row],[Housing Type]]="Single Family Detached",Table1343[[#This Row],[Number of Homes/ Units]],IF(Table1343[[#This Row],[Housing Type]]="Single Family Attached",Table1343[[#This Row],[Number of Homes/ Units]],IF(Table1343[[#This Row],[Housing Type]]="Mobile Home",Table1343[[#This Row],[Number of Homes/ Units]]))))) -> 1917.427288 | K45: Cold/Very Cold | L45: 138.1479071 | M45: Metropolitan Area | N45: 0.0788739141 | O45: 0.1725833071 | P45: 0.0154013926 | Q45: 0.002211052281 | R45: 0.2024668158 | S45: 0.4713606116 | T45: 63.908 | U45: 27.814 | V45: =T45*Table1343[[#This Row],[Number of Buildings]]/1000000000 -> 0.0001225389431 | W45: =U45*Table1343[[#This Row],[Number of Buildings]]/1000000000 -> 5.333132258e-05 | X45: =Table1343[[#This Row],[Wtd Air Handlers Heat (Tbtu)]]+Table1343[[#This Row],[Wtd Site Space Heating (TBtu)]] -> 0.07899645304 | Y45: =Table1343[[#This Row],[Wtd Site Total Cooling (TBtu)]]+Table1343[[#This Row],[Wtd Air Handlers Cool (Tbtu)]] -> 0.01545472393
A46: Single Family Detached | B46: 10045 | C46: Pacific | D46: 1980s | E46: Wood | F46: central furnace | G46: N/A | H46: 22.30779877 | I46: 9464.488234 | J46: =IF(Table1343[[#This Row],[Housing Type]]="Multi-Family (2-4 units)",Table1343[[#This Row],[Number of Homes/ Units]]/3,IF(Table1343[[#This Row],[Housing Type]]="Multi-Family (5+ units)",Table1343[[#This Row],[Number of Homes/ Units]]/12.5720642567977,IF(Table1343[[#This Row],[Housing Type]]="Single Family Detached",Table1343[[#This Row],[Number of Homes/ Units]],IF(Table1343[[#This Row],[Housing Type]]="Single Family Attached",Table1343[[#This Row],[Number of Homes/ Units]],IF(Table1343[[#This Row],[Housing Type]]="Mobile Home",Table1343[[#This Row],[Number of Homes/ Units]]))))) -> 9464.488234 | K46: Marine | L46: 84.56204123 | M46: Metropolitan Area | N46: 0.2123513815 | O46: 0.1226656923 | P46: 0 | Q46: 0.006442231064 | R46: 0.2695570294 | S46: 0.6045741032 | T46: 680.674 | U46: 0 | V46: =T46*Table1343[[#This Row],[Number of Buildings]]/1000000000 -> 0.006442231064 | W46: =U46*Table1343[[#This Row],[Number of Buildings]]/1000000000 -> 0 | X46: =Table1343[[#This Row],[Wtd Air Handlers Heat (Tbtu)]]+Table1343[[#This Row],[Wtd Site Space Heating (TBtu)]] -> 0.2187936126 | Y46: =Table1343[[#This Row],[Wtd Site Total Cooling (TBtu)]]+Table1343[[#This Row],[Wtd Air Handlers Cool (Tbtu)]] -> 0
A47: Single Family Detached | B47: 10046 | C47: New England | D47: 1980s | E47: Siding | F47: radiator | G47: window/wall unit | H47: 45.53837689 | I47: 15510.34635 | J47: =IF(Table1343[[#This Row],[Housing Type]]="Multi-Family (2-4 units)",Table1343[[#This Row],[Number of Homes/ Units]]/3,IF(Table1343[[#This Row],[Housing Type]]="Multi-Family (5+ units)",Table1343[[#This Row],[Number of Homes/ Units]]/12.5720642567977,IF(Table1343[[#This Row],[Housing Type]]="Single Family Detached",Table1343[[#This Row],[Number of Homes/ Units]],IF(Table1343[[#This Row],[Housing Type]]="Single Family Attached",Table1343[[#This Row],[Number of Homes/ Units]],IF(Table1343[[#This Row],[Housing Type]]="Mobile Home",Table1343[[#This Row],[Number of Homes/ Units]]))))) -> 15510.34635 | K47: Cold/Very Cold | L47: 48.14467345 | M47: Metropolitan Area | N47: 0.4208527435 | O47: 0.1854813919 | P47: 0.03175625537 | Q47: 0.001455956212 | R47: 0.38481996 | S47: 1.022910351 | T47: 93.87 | U47: 0 | V47: =T47*Table1343[[#This Row],[Number of Buildings]]/1000000000 -> 0.001455956212 | W47: =U47*Table1343[[#This Row],[Number of Buildings]]/1000000000 -> 0 | X47: =Table1343[[#This Row],[Wtd Air Handlers Heat (Tbtu)]]+Table1343[[#This Row],[Wtd Site Space Heating (TBtu)]] -> 0.4223086997 | Y47: =Table1343[[#This Row],[Wtd Site Total Cooling (TBtu)]]+Table1343[[#This Row],[Wtd Air Handlers Cool (Tbtu)]] -> 0.03175625537
A48: Single Family Attached | B48: 10047 | C48: Pacific | D48: 2010s | E48: Siding | F48: built-in electric unit | G48: N/A | H48: 11.37626238 | I48: 7624.840738 | J48: =IF(Table1343[[#This Row],[Housing Type]]="Multi-Family (2-4 units)",Table1343[[#This Row],[Number of Homes/ Units]]/3,IF(Table1343[[#This Row],[Housing Type]]="Multi-Family (5+ units)",Table1343[[#This Row],[Number of Homes/ Units]]/12.5720642567977,IF(Table1343[[#This Row],[Housing Type]]="Single Family Detached",Table1343[[#This Row],[Number of Homes/ Units]],IF(Table1343[[#This Row],[Housing Type]]="Single Family Attached",Table1343[[#This Row],[Number of Homes/ Units]],IF(Table1343[[#This Row],[Housing Type]]="Mobile Home",Table1343[[#This Row],[Number of Homes/ Units]]))))) -> 7624.840738 | K48: Marine | L48: 58.86248952 | M48: Metropolitan Area | N48: 0.05454615106 | O48: 0.06238098753 | P48: 0 | Q48: 0 | R48: 0.08391168494 | S48: 0.2008388235 | T48: 0 | U48: 0 | V48: =T48*Table1343[[#This Row],[Number of Buildings]]/1000000000 -> 0 | W48: =U48*Table1343[[#This Row],[Number of Buildings]]/1000000000 -> 0 | X48: =Table1343[[#This Row],[Wtd Air Handlers Heat (Tbtu)]]+Table1343[[#This Row],[Wtd Site Space Heating (TBtu)]] -> 0.05454615106 | Y48: =Table1343[[#This Row],[Wtd Site Total Cooling (TBtu)]]+Table1343[[#This Row],[Wtd Air Handlers Cool (Tbtu)]] -> 0
A49: Single Family Detached | B49: 10048 | C49: South Atlantic | D49: 1970s | E49: Brick | F49: central furnace | G49: central AC | H49: 38.02296703 | I49: 24218.45034 | J49: =IF(Table1343[[#This Row],[Housing Type]]="Multi-Family (2-4 units)",Table1343[[#This Row],[Number of Homes/ Units]]/3,IF(Table1343[[#This Row],[Housing Type]]="Multi-Family (5+ units)",Table1343[[#This Row],[Number of Homes/ Units]]/12.5720642567977,IF(Table1343[[#This Row],[Housing Type]]="Single Family Detached",Table1343[[#This Row],[Number of Homes/ Units]],IF(Table1343[[#This Row],[Housing Type]]="Single Family Attached",Table1343[[#This Row],[Number of Homes/ Units]],IF(Table1343[[#This Row],[Housing Type]]="Mobile Home",Table1343[[#This Row],[Number of Homes/ Units]]))))) -> 24218.45034 | K49: Mixed-Humid | L49: 637.5831821 | M49: Metropolitan Area | N49: 1.035717529 | O49: 0.5770179722 | P49: 0.2373923744 | Q49: 0.02875061848 | R49: 0.3253059304 | S49: 2.175433806 | T49: 721.548 | U49: 465.589 | V49: =T49*Table1343[[#This Row],[Number of Buildings]]/1000000000 -> 0.01747477441 | W49: =U49*Table1343[[#This Row],[Number of Buildings]]/1000000000 -> 0.01127584408 | X49: =Table1343[[#This Row],[Wtd Air Handlers Heat (Tbtu)]]+Table1343[[#This Row],[Wtd Site Space Heating (TBtu)]] -> 1.053192303 | Y49: =Table1343[[#This Row],[Wtd Site Total Cooling (TBtu)]]+Table1343[[#This Row],[Wtd Air Handlers Cool (Tbtu)]] -> 0.2486682185
A50: Single Family Detached | B50: 10049 | C50: West South Central | D50: 1960s | E50: Brick | F50: central furnace | G50: central AC | H50: 39.94880204 | I50: 24478.43262 | J50: =IF(Table1343[[#This Row],[Housing Type]]="Multi-Family (2-4 units)",Table1343[[#This Row],[Number of Homes/ Units]]/3,IF(Table1343[[#This Row],[Housing Type]]="Multi-Family (5+ units)",Table1343[[#This Row],[Number of Homes/ Units]]/12.5720642567977,IF(Table1343[[#This Row],[Housing Type]]="Single Family Detached",Table1343[[#This Row],[Number of Homes/ Units]],IF(Table1343[[#This Row],[Housing Type]]="Single Family Attached",Table1343[[#This Row],[Number of Homes/ Units]],IF(Table1343[[#This Row],[Housing Type]]="Mobile Home",Table1343[[#This Row],[Number of Homes/ Units]]))))) -> 24478.43262 | K50: Hot-Humid | L50: 569.7912812 | M50: Metropolitan Area | N50: 0.5375827308 | O50: 0.4327365858 | P50: 0.6808608962 | Q50: 0.04218982702 | R50: 0.2929476007 | S50: 1.944127814 | T50: 371.139 | U50: 1352.412 | V50: =T50*Table1343[[#This Row],[Number of Buildings]]/1000000000 -> 0.009084901004 | W50: =U50*Table1343[[#This Row],[Number of Buildings]]/1000000000 -> 0.03310492602 | X50: =Table1343[[#This Row],[Wtd Air Handlers Heat (Tbtu)]]+Table1343[[#This Row],[Wtd Site Space Heating (TBtu)]] -> 0.5466676318 | Y50: =Table1343[[#This Row],[Wtd Site Total Cooling (TBtu)]]+Table1343[[#This Row],[Wtd Air Handlers Cool (Tbtu)]] -> 0.7139658223
A51: Single Family Detached | B51: 10050 | C51: West South Central | D51: 1960s | E51: Brick | F51: central furnace | G51: central AC | H51: 111.5655397 | I51: 45315.00396 | J51: =IF(Table1343[[#This Row],[Housing Type]]="Multi-Family (2-4 units)",Table1343[[#This Row],[Number of Homes/ Units]]/3,IF(Table1343[[#This Row],[Housing Type]]="Multi-Family (5+ units)",Table1343[[#This Row],[Number of Homes/ Units]]/12.5720642567977,IF(Table1343[[#This Row],[Housing Type]]="Single Family Detached",Table1343[[#This Row],[Number of Homes/ Units]],IF(Table1343[[#This Row],[Housing Type]]="Single Family Attached",Table1343[[#This Row],[Number of Homes/ Units]],IF(Table1343[[#This Row],[Housing Type]]="Mobile Home",Table1343[[#This Row],[Number of Homes/ Units]]))))) -> 45315.00396 | K51: Hot-Humid | L51: 561.4180971 | M51: Metropolitan Area | N51: 1.354931171 | O51: 0.5641623285 | P51: 1.012153164 | Q51: 0.07866856884 | R51: 1.052399277 | S51: 3.983645941 | T51: 489.968 | U51: 1246.07 | V51: =T51*Table1343[[#This Row],[Number of Buildings]]/1000000000 -> 0.02220290186 | W51: =U51*Table1343[[#This Row],[Number of Buildings]]/1000000000 -> 0.05646566698 | X51: =Table1343[[#This Row],[Wtd Air Handlers Heat (Tbtu)]]+Table1343[[#This Row],[Wtd Site Space Heating (TBtu)]] -> 1.377134073 | Y51: =Table1343[[#This Row],[Wtd Site Total Cooling (TBtu)]]+Table1343[[#This Row],[Wtd Air Handlers Cool (Tbtu)]] -> 1.068618831
A52: Single Family Detached | B52: 10051 | C52: East North Central | D52: 1970s | E52: Siding | F52: built-in electric unit | G52: window/wall unit | H52: 40.52809217 | I52: 27570.13073 | J52: =IF(Table1343[[#This Row],[Housing Type]]="Multi-Family (2-4 units)",Table1343[[#This Row],[Number of Homes/ Units]]/3,IF(Table1343[[#This Row],[Housing Type]]="Multi-Family (5+ units)",Table1343[[#This Row],[Number of Homes/ Units]]/12.5720642567977,IF(Table1343[[#This Row],[Housing Type]]="Single Family Detached",Table1343[[#This Row],[Number of Homes/ Units]],IF(Table1343[[#This Row],[Housing Type]]="Single Family Attached",Table1343[[#This Row],[Number of Homes/ Units]],IF(Table1343[[#This Row],[Housing Type]]="Mobile Home",Table1343[[#This Row],[Number of Homes/ Units]]))))) -> 27570.13073 | K52: Cold/Very Cold | L52: 652.0970582 | M52: Metropolitan Area | N52: 1.429679429 | O52: 0.2966254926 | P52: 0.04213818781 | Q52: 0 | R52: 0.4565120144 | S52: 2.224955123 | T52: 0 | U52: 0 | V52: =T52*Table1343[[#This Row],[Number of Buildings]]/1000000000 -> 0 | W52: =U52*Table1343[[#This Row],[Number of Buildings]]/1000000000 -> 0 | X52: =Table1343[[#This Row],[Wtd Air Handlers Heat (Tbtu)]]+Table1343[[#This Row],[Wtd Site Space Heating (TBtu)]] -> 1.429679429 | Y52: =Table1343[[#This Row],[Wtd Site Total Cooling (TBtu)]]+Table1343[[#This Row],[Wtd Air Handlers Cool (Tbtu)]] -> 0.04213818781
A53: Single Family Detached | B53: 10052 | C53: Middle Atlantic | D53: 2010s | E53: Siding | F53: central furnace | G53: central AC | H53: 68.64232718 | I53: 22329.9698 | J53: =IF(Table1343[[#This Row],[Housing Type]]="Multi-Family (2-4 units)",Table1343[[#This Row],[Number of Homes/ Units]]/3,IF(Table1343[[#This Row],[Housing Type]]="Multi-Family (5+ units)",Table1343[[#This Row],[Number of Homes/ Units]]/12.5720642567977,IF(Table1343[[#This Row],[Housing Type]]="Single Family Detached",Table1343[[#This Row],[Number of Homes/ Units]],IF(Table1343[[#This Row],[Housing Type]]="Single Family Attached",Table1343[[#This Row],[Number of Homes/ Units]],IF(Table1343[[#This Row],[Housing Type]]="Mobile Home",Table1343[[#This Row],[Number of Homes/ Units]]))))) -> 22329.9698 | K53: Cold/Very Cold | L53: 284.8441317 | M53: Metropolitan Area | N53: 2.046676628 | O53: 0.914838989 | P53: 0.03241670745 | Q53: 0.02742486503 | R53: 0.6481189327 | S53: 3.642051257 | T53: 1155.547 | U53: 72.617 | V53: =T53*Table1343[[#This Row],[Number of Buildings]]/1000000000 -> 0.02580332961 | W53: =U53*Table1343[[#This Row],[Number of Buildings]]/1000000000 -> 0.001621535417 | X53: =Table1343[[#This Row],[Wtd Air Handlers Heat (Tbtu)]]+Table1343[[#This Row],[Wtd Site Space Heating (TBtu)]] -> 2.072479957 | Y53: =Table1343[[#This Row],[Wtd Site Total Cooling (TBtu)]]+Table1343[[#This Row],[Wtd Air Handlers Cool (Tbtu)]] -> 0.03403824287
A54: Single Family Detached | B54: 10053 | C54: West South Central | D54: Before 1950 | E54: Siding | F54: portable electric heaters | G54: window/wall unit | H54: 16.21274047 | I54: 14411.32487 | J54: =IF(Table1343[[#This Row],[Housing Type]]="Multi-Family (2-4 units)",Table1343[[#This Row],[Number of Homes/ Units]]/3,IF(Table1343[[#This Row],[Housing Type]]="Multi-Family (5+ units)",Table1343[[#This Row],[Number of Homes/ Units]]/12.5720642567977,IF(Table1343[[#This Row],[Housing Type]]="Single Family Detached",Table1343[[#This Row],[Number of Homes/ Units]],IF(Table1343[[#This Row],[Housing Type]]="Single Family Attached",Table1343[[#This Row],[Number of Homes/ Units]],IF(Table1343[[#This Row],[Housing Type]]="Mobile Home",Table1343[[#This Row],[Number of Homes/ Units]]))))) -> 14411.32487 | K54: Hot-Humid | L54: 78.61036166 | M54: Metropolitan Area | N54: 0.06657576692 | O54: 0.2056423426 | P54: 0.09420293962 | Q54: 0 | R54: 0.1661250919 | S54: 0.532546141 | T54: 0 | U54: 0 | V54: =T54*Table1343[[#This Row],[Number of Buildings]]/1000000000 -> 0 | W54: =U54*Table1343[[#This Row],[Number of Buildings]]/1000000000 -> 0 | X54: =Table1343[[#This Row],[Wtd Air Handlers Heat (Tbtu)]]+Table1343[[#This Row],[Wtd Site Space Heating (TBtu)]] -> 0.06657576692 | Y54: =Table1343[[#This Row],[Wtd Site Total Cooling (TBtu)]]+Table1343[[#This Row],[Wtd Air Handlers Cool (Tbtu)]] -> 0.09420293962
A55: Single Family Detached | B55: 10054 | C55: East North Central | D55: Before 1950 | E55: Siding | F55: central furnace | G55: central AC | H55: 18.74485455 | I55: 18596.08587 | J55: =IF(Table1343[[#This Row],[Housing Type]]="Multi-Family (2-4 units)",Table1343[[#This Row],[Number of Homes/ Units]]/3,IF(Table1343[[#This Row],[Housing Type]]="Multi-Family (5+ units)",Table1343[[#This Row],[Number of Homes/ Units]]/12.5720642567977,IF(Table1343[[#This Row],[Housing Type]]="Single Family Detached",Table1343[[#This Row],[Number of Homes/ Units]],IF(Table1343[[#This Row],[Housing Type]]="Single Family Attached",Table1343[[#This Row],[Number of Homes/ Units]],IF(Table1343[[#This Row],[Housing Type]]="Mobile Home",Table1343[[#This Row],[Number of Homes/ Units]]))))) -> 18596.08587 | K55: Cold/Very Cold | L55: 153.70552 | M55: Metropolitan Area | N55: 0.7617825024 | O55: 0.2085721185 | P55: 0.08618365294 | Q55: 0.02125523317 | R55: 0.2121107862 | S55: 1.26864906 | T55: 945.182 | U55: 197.813 | V55: =T55*Table1343[[#This Row],[Number of Buildings]]/1000000000 -> 0.01757668563 | W55: =U55*Table1343[[#This Row],[Number of Buildings]]/1000000000 -> 0.003678547534 | X55: =Table1343[[#This Row],[Wtd Air Handlers Heat (Tbtu)]]+Table1343[[#This Row],[Wtd Site Space Heating (TBtu)]] -> 0.779359188 | Y55: =Table1343[[#This Row],[Wtd Site Total Cooling (TBtu)]]+Table1343[[#This Row],[Wtd Air Handlers Cool (Tbtu)]] -> 0.08986220048
A56: Single Family Detached | B56: 10055 | C56: New England | D56: 1980s | E56: Wood | F56: radiator | G56: N/A | H56: 47.73331957 | I56: 18302.65321 | J56: =IF(Table1343[[#This Row],[Housing Type]]="Multi-Family (2-4 units)",Table1343[[#This Row],[Number of Homes/ Units]]/3,IF(Table1343[[#This Row],[Housing Type]]="Multi-Family (5+ units)",Table1343[[#This Row],[Number of Homes/ Units]]/12.5720642567977,IF(Table1343[[#This Row],[Housing Type]]="Single Family Detached",Table1343[[#This Row],[Number of Homes/ Units]],IF(Table1343[[#This Row],[Housing Type]]="Single Family Attached",Table1343[[#This Row],[Number of Homes/ Units]],IF(Table1343[[#This Row],[Housing Type]]="Mobile Home",Table1343[[#This Row],[Number of Homes/ Units]]))))) -> 18302.65321 | K56: Cold/Very Cold | L56: 49.71600939 | M56: Micropolitan Area | N56: 1.540035226 | O56: 0.1134151543 | P56: 0 | Q56: 0.002067376193 | R56: 0.1789887289 | S56: 1.832439109 | T56: 112.955 | U56: 0 | V56: =T56*Table1343[[#This Row],[Number of Buildings]]/1000000000 -> 0.002067376193 | W56: =U56*Table1343[[#This Row],[Number of Buildings]]/1000000000 -> 0 | X56: =Table1343[[#This Row],[Wtd Air Handlers Heat (Tbtu)]]+Table1343[[#This Row],[Wtd Site Space Heating (TBtu)]] -> 1.542102602 | Y56: =Table1343[[#This Row],[Wtd Site Total Cooling (TBtu)]]+Table1343[[#This Row],[Wtd Air Handlers Cool (Tbtu)]] -> 0
A57: Single Family Detached | B57: 10056 | C57: West North Central | D57: 2010s | E57: Siding | F57: built-in furnace | G57: central AC | H57: 56.63988441 | I57: 18509.76615 | J57: =IF(Table1343[[#This Row],[Housing Type]]="Multi-Family (2-4 units)",Table1343[[#This Row],[Number of Homes/ Units]]/3,IF(Table1343[[#This Row],[Housing Type]]="Multi-Family (5+ units)",Table1343[[#This Row],[Number of Homes/ Units]]/12.5720642567977,IF(Table1343[[#This Row],[Housing Type]]="Single Family Detached",Table1343[[#This Row],[Number of Homes/ Units]],IF(Table1343[[#This Row],[Housing Type]]="Single Family Attached",Table1343[[#This Row],[Number of Homes/ Units]],IF(Table1343[[#This Row],[Housing Type]]="Mobile Home",Table1343[[#This Row],[Number of Homes/ Units]]))))) -> 18509.76615 | K57: Cold/Very Cold | L57: 423.434482 | M57: Rural | N57: 1.113775887 | O57: 0.2131776986 | P57: 0.01672085278 | Q57: 0.0008631844346 | R57: 0.3119657458 | S57: 1.655640184 | T57: 0 | U57: 46.634 | V57: =T57*Table1343[[#This Row],[Number of Buildings]]/1000000000 -> 0 | W57: =U57*Table1343[[#This Row],[Number of Buildings]]/1000000000 -> 0.0008631844346 | X57: =Table1343[[#This Row],[Wtd Air Handlers Heat (Tbtu)]]+Table1343[[#This Row],[Wtd Site Space Heating (TBtu)]] -> 1.113775887 | Y57: =Table1343[[#This Row],[Wtd Site Total Cooling (TBtu)]]+Table1343[[#This Row],[Wtd Air Handlers Cool (Tbtu)]] -> 0.01758403722
A58: Single Family Attached | B58: 10057 | C58: Pacific | D58: 1980s | E58: Shingle | F58: portable electric heaters | G58: central AC | H58: 7.30880148 | I58: 5894.194742 | J58: =IF(Table1343[[#This Row],[Housing Type]]="Multi-Family (2-4 units)",Table1343[[#This Row],[Number of Homes/ Units]]/3,IF(Table1343[[#This Row],[Housing Type]]="Multi-Family (5+ units)",Table1343[[#This Row],[Number of Homes/ Units]]/12.5720642567977,IF(Table1343[[#This Row],[Housing Type]]="Single Family Detached",Table1343[[#This Row],[Number of Homes/ Units]],IF(Table1343[[#This Row],[Housing Type]]="Single Family Attached",Table1343[[#This Row],[Number of Homes/ Units]],IF(Table1343[[#This Row],[Housing Type]]="Mobile Home",Table1343[[#This Row],[Number of Homes/ Units]]))))) -> 5894.194742 | K58: Hot-Dry/Mixed-Dry | L58: 18.09670445 | M58: Metropolitan Area | N58: 0.005529538596 | O58: 0.05713248858 | P58: 0.006731129136 | Q58: 0.0003617974617 | R58: 0.05999542274 | S58: 0.129388579 | T58: 3.15 | U58: 58.232 | V58: =T58*Table1343[[#This Row],[Number of Buildings]]/1000000000 -> 1.856671344e-05 | W58: =U58*Table1343[[#This Row],[Number of Buildings]]/1000000000 -> 0.0003432307482 | X58: =Table1343[[#This Row],[Wtd Air Handlers Heat (Tbtu)]]+Table1343[[#This Row],[Wtd Site Space Heating (TBtu)]] -> 0.005548105309 | Y58: =Table1343[[#This Row],[Wtd Site Total Cooling (TBtu)]]+Table1343[[#This Row],[Wtd Air Handlers Cool (Tbtu)]] -> 0.007074359884
A59: Single Family Attached | B59: 10058 | C59: West South Central | D59: 1970s | E59: Brick | F59: central furnace | G59: central AC | H59: 13.66455243 | I59: 8540.345269 | J59: =IF(Table1343[[#This Row],[Housing Type]]="Multi-Family (2-4 units)",Table1343[[#This Row],[Number of Homes/ Units]]/3,IF(Table1343[[#This Row],[Housing Type]]="Multi-Family (5+ units)",Table1343[[#This Row],[Number of Homes/ Units]]/12.5720642567977,IF(Table1343[[#This Row],[Housing Type]]="Single Family Detached",Table1343[[#This Row],[Number of Homes/ Units]],IF(Table1343[[#This Row],[Housing Type]]="Single Family Attached",Table1343[[#This Row],[Number of Homes/ Units]],IF(Table1343[[#This Row],[Housing Type]]="Mobile Home",Table1343[[#This Row],[Number of Homes/ Units]]))))) -> 8540.345269 | K59: Hot-Humid | L59: 81.59234923 | M59: Metropolitan Area | N59: 0.2431447828 | O59: 0.2319146045 | P59: 0.09575934726 | Q59: 0.009244411333 | R59: 0.1779567116 | S59: 0.7487754461 | T59: 547.639 | U59: 534.801 | V59: =T59*Table1343[[#This Row],[Number of Buildings]]/1000000000 -> 0.004677026143 | W59: =U59*Table1343[[#This Row],[Number of Buildings]]/1000000000 -> 0.00456738519 | X59: =Table1343[[#This Row],[Wtd Air Handlers Heat (Tbtu)]]+Table1343[[#This Row],[Wtd Site Space Heating (TBtu)]] -> 0.2478218089 | Y59: =Table1343[[#This Row],[Wtd Site Total Cooling (TBtu)]]+Table1343[[#This Row],[Wtd Air Handlers Cool (Tbtu)]] -> 0.1003267324
A60: Single Family Detached | B60: 10059 | C60: East South Central | D60: 1970s | E60: Brick | F60: central furnace | G60: central AC | H60: 13.70391879 | I60: 10773.52106 | J60: =IF(Table1343[[#This Row],[Housing Type]]="Multi-Family (2-4 units)",Table1343[[#This Row],[Number of Homes/ Units]]/3,IF(Table1343[[#This Row],[Housing Type]]="Multi-Family (5+ units)",Table1343[[#This Row],[Number of Homes/ Units]]/12.5720642567977,IF(Table1343[[#This Row],[Housing Type]]="Single Family Detached",Table1343[[#This Row],[Number of Homes/ Units]],IF(Table1343[[#This Row],[Housing Type]]="Single Family Attached",Table1343[[#This Row],[Number of Homes/ Units]],IF(Table1343[[#This Row],[Housing Type]]="Mobile Home",Table1343[[#This Row],[Number of Homes/ Units]]))))) -> 10773.52106 | K60: Mixed-Humid | L60: 24.15655053 | M60: Rural | N60: 0.4115143632 | O60: 0.2109586214 | P60: 0.009424557715 | Q60: 0.001124356978 | R60: 0.1285232582 | S60: 0.7604208005 | T60: 62.39 | U60: 41.973 | V60: =T60*Table1343[[#This Row],[Number of Buildings]]/1000000000 -> 0.0006721599789 | W60: =U60*Table1343[[#This Row],[Number of Buildings]]/1000000000 -> 0.0004521969995 | X60: =Table1343[[#This Row],[Wtd Air Handlers Heat (Tbtu)]]+Table1343[[#This Row],[Wtd Site Space Heating (TBtu)]] -> 0.4121865232 | Y60: =Table1343[[#This Row],[Wtd Site Total Cooling (TBtu)]]+Table1343[[#This Row],[Wtd Air Handlers Cool (Tbtu)]] -> 0.009876754714
A61: Single Family Detached | B61: 10060 | C61: South Atlantic | D61: Before 1950 | E61: Siding | F61: built-in furnace | G61: central AC | H61: 41.18741529 | I61: 24342.44403 | J61: =IF(Table1343[[#This Row],[Housing Type]]="Multi-Family (2-4 units)",Table1343[[#This Row],[Number of Homes/ Units]]/3,IF(Table1343[[#This Row],[Housing Type]]="Multi-Family (5+ units)",Table1343[[#This Row],[Number of Homes/ Units]]/12.5720642567977,IF(Table1343[[#This Row],[Housing Type]]="Single Family Detached",Table1343[[#This Row],[Number of Homes/ Units]],IF(Table1343[[#This Row],[Housing Type]]="Single Family Attached",Table1343[[#This Row],[Number of Homes/ Units]],IF(Table1343[[#This Row],[Housing Type]]="Mobile Home",Table1343[[#This Row],[Number of Homes/ Units]]))))) -> 24342.44403 | K61: Mixed-Humid | L61: 285.0463682 | M61: Metropolitan Area | N61: 1.445255376 | O61: 0.1518762084 | P61: 0.4186092934 | Q61: 0.01938065064 | R61: 0.3009917645 | S61: 2.316732642 | T61: 0 | U61: 796.167 | V61: =T61*Table1343[[#This Row],[Number of Buildings]]/1000000000 -> 0 | W61: =U61*Table1343[[#This Row],[Number of Buildings]]/1000000000 -> 0.01938065064 | X61: =Table1343[[#This Row],[Wtd Air Handlers Heat (Tbtu)]]+Table1343[[#This Row],[Wtd Site Space Heating (TBtu)]] -> 1.445255376 | Y61: =Table1343[[#This Row],[Wtd Site Total Cooling (TBtu)]]+Table1343[[#This Row],[Wtd Air Handlers Cool (Tbtu)]] -> 0.4379899441
A62: Single Family Detached | B62: 10061 | C62: Pacific | D62: 1980s | E62: Stucco | F62: central furnace | G62: central AC | H62: 46.7069942 | I62: 10215.878 | J62: =IF(Table1343[[#This Row],[Housing Type]]="Multi-Family (2-4 units)",Table1343[[#This Row],[Number of Homes/ Units]]/3,IF(Table1343[[#This Row],[Housing Type]]="Multi-Family (5+ units)",Table1343[[#This Row],[Number of Homes/ Units]]/12.5720642567977,IF(Table1343[[#This Row],[Housing Type]]="Single Family Detached",Table1343[[#This Row],[Number of Homes/ Units]],IF(Table1343[[#This Row],[Housing Type]]="Single Family Attached",Table1343[[#This Row],[Number of Homes/ Units]],IF(Table1343[[#This Row],[Housing Type]]="Mobile Home",Table1343[[#This Row],[Number of Homes/ Units]]))))) -> 10215.878 | K62: Hot-Dry/Mixed-Dry | L62: 93.65164037 | M62: Metropolitan Area | N62: 0.2126468922 | O62: 0.3776749516 | P62: 0.1041525414 | Q62: 0.007736760238 | R62: 0.2261679541 | S62: 0.9206423394 | T62: 250.188 | U62: 507.139 | V62: =T62*Table1343[[#This Row],[Number of Buildings]]/1000000000 -> 0.002555890085 | W62: =U62*Table1343[[#This Row],[Number of Buildings]]/1000000000 -> 0.005180870153 | X62: =Table1343[[#This Row],[Wtd Air Handlers Heat (Tbtu)]]+Table1343[[#This Row],[Wtd Site Space Heating (TBtu)]] -> 0.2152027823 | Y62: =Table1343[[#This Row],[Wtd Site Total Cooling (TBtu)]]+Table1343[[#This Row],[Wtd Air Handlers Cool (Tbtu)]] -> 0.1093334116
A63: Multi-Family (5+ units) | B63: 10062 | C63: South Atlantic | D63: 2000s | E63: Wood | F63: heat pump | G63: central AC | H63: 16.51660129 | I63: 20093.18891 | J63: =IF(Table1343[[#This Row],[Housing Type]]="Multi-Family (2-4 units)",Table1343[[#This Row],[Number of Homes/ Units]]/3,IF(Table1343[[#This Row],[Housing Type]]="Multi-Family (5+ units)",Table1343[[#This Row],[Number of Homes/ Units]]/12.5720642567977,IF(Table1343[[#This Row],[Housing Type]]="Single Family Detached",Table1343[[#This Row],[Number of Homes/ Units]],IF(Table1343[[#This Row],[Housing Type]]="Single Family Attached",Table1343[[#This Row],[Number of Homes/ Units]],IF(Table1343[[#This Row],[Housing Type]]="Mobile Home",Table1343[[#This Row],[Number of Homes/ Units]]))))) -> 1598.241029 | K63: Hot-Humid | L63: 244.0648326 | M63: Metropolitan Area | N63: 0.001400706841 | O63: 0.08850392668 | P63: 0.1548005767 | Q63: 0.006878240148 | R63: 0.5817128687 | S63: 0.8327492141 | T63: 1.113 | U63: 341.204 | V63: =T63*Table1343[[#This Row],[Number of Buildings]]/1000000000 -> 1.778842265e-06 | W63: =U63*Table1343[[#This Row],[Number of Buildings]]/1000000000 -> 0.0005453262319 | X63: =Table1343[[#This Row],[Wtd Air Handlers Heat (Tbtu)]]+Table1343[[#This Row],[Wtd Site Space Heating (TBtu)]] -> 0.001402485683 | Y63: =Table1343[[#This Row],[Wtd Site Total Cooling (TBtu)]]+Table1343[[#This Row],[Wtd Air Handlers Cool (Tbtu)]] -> 0.155345903
A64: Single Family Attached | B64: 10063 | C64: West North Central | D64: Before 1950 | E64: Wood | F64: radiator | G64: window/wall unit | H64: 14.20701562 | I64: 6632.593661 | J64: =IF(Table1343[[#This Row],[Housing Type]]="Multi-Family (2-4 units)",Table1343[[#This Row],[Number of Homes/ Units]]/3,IF(Table1343[[#This Row],[Housing Type]]="Multi-Family (5+ units)",Table1343[[#This Row],[Number of Homes/ Units]]/12.5720642567977,IF(Table1343[[#This Row],[Housing Type]]="Single Family Detached",Table1343[[#This Row],[Number of Homes/ Units]],IF(Table1343[[#This Row],[Housing Type]]="Single Family Attached",Table1343[[#This Row],[Number of Homes/ Units]],IF(Table1343[[#This Row],[Housing Type]]="Mobile Home",Table1343[[#This Row],[Number of Homes/ Units]]))))) -> 6632.593661 | K64: Cold/Very Cold | L64: 21.47204699 | M64: Metropolitan Area | N64: 0.4972173649 | O64: 0.06510760211 | P64: 0.005506644561 | Q64: 0.0008373914801 | R64: 0.08110706291 | S64: 0.6489386745 | T64: 126.254 | U64: 0 | V64: =T64*Table1343[[#This Row],[Number of Buildings]]/1000000000 -> 0.0008373914801 | W64: =U64*Table1343[[#This Row],[Number of Buildings]]/1000000000 -> 0 | X64: =Table1343[[#This Row],[Wtd Air Handlers Heat (Tbtu)]]+Table1343[[#This Row],[Wtd Site Space Heating (TBtu)]] -> 0.4980547564 | Y64: =Table1343[[#This Row],[Wtd Site Total Cooling (TBtu)]]+Table1343[[#This Row],[Wtd Air Handlers Cool (Tbtu)]] -> 0.005506644561
A65: Single Family Detached | B65: 10064 | C65: Mountain South | D65: 1960s | E65: Wood | F65: wood-burning stove | G65: window/wall unit | H65: 24.51937014 | I65: 13576.61691 | J65: =IF(Table1343[[#This Row],[Housing Type]]="Multi-Family (2-4 units)",Table1343[[#This Row],[Number of Homes/ Units]]/3,IF(Table1343[[#This Row],[Housing Type]]="Multi-Family (5+ units)",Table1343[[#This Row],[Number of Homes/ Units]]/12.5720642567977,IF(Table1343[[#This Row],[Housing Type]]="Single Family Detached",Table1343[[#This Row],[Number of Homes/ Units]],IF(Table1343[[#This Row],[Housing Type]]="Single Family Attached",Table1343[[#This Row],[Number of Homes/ Units]],IF(Table1343[[#This Row],[Housing Type]]="Mobile Home",Table1343[[#This Row],[Number of Homes/ Units]]))))) -> 13576.61691 | K65: Cold/Very Cold | L65: 161.88758 | M65: Metropolitan Area | N65: 0 | O65: 0.2963306264 | P65: 0.04973471839 | Q65: 0 | R65: 0.3237268002 | S65: 0.6697921449 | T65: 0 | U65: 0 | V65: =T65*Table1343[[#This Row],[Number of Buildings]]/1000000000 -> 0 | W65: =U65*Table1343[[#This Row],[Number of Buildings]]/1000000000 -> 0 | X65: =Table1343[[#This Row],[Wtd Air Handlers Heat (Tbtu)]]+Table1343[[#This Row],[Wtd Site Space Heating (TBtu)]] -> 0 | Y65: =Table1343[[#This Row],[Wtd Site Total Cooling (TBtu)]]+Table1343[[#This Row],[Wtd Air Handlers Cool (Tbtu)]] -> 0.04973471839
A66: Multi-Family (5+ units) | B66: 10065 | C66: Pacific | D66: 1960s | E66: Stucco | F66: built-in electric unit | G66: N/A | H66: 11.95736137 | I66: 16050.14949 | J66: =IF(Table1343[[#This Row],[Housing Type]]="Multi-Family (2-4 units)",Table1343[[#This Row],[Number of Homes/ Units]]/3,IF(Table1343[[#This Row],[Housing Type]]="Multi-Family (5+ units)",Table1343[[#This Row],[Number of Homes/ Units]]/12.5720642567977,IF(Table1343[[#This Row],[Housing Type]]="Single Family Detached",Table1343[[#This Row],[Number of Homes/ Units]],IF(Table1343[[#This Row],[Housing Type]]="Single Family Attached",Table1343[[#This Row],[Number of Homes/ Units]],IF(Table1343[[#This Row],[Housing Type]]="Mobile Home",Table1343[[#This Row],[Number of Homes/ Units]]))))) -> 1276.651882 | K66: Hot-Dry/Mixed-Dry | L66: 130.0216832 | M66: Metropolitan Area | N66: 0.1250287546 | O66: 0.09102620791 | P66: 0 | Q66: 0 | R66: 0.3186052259 | S66: 0.5346601883 | T66: 0 | U66: 0 | V66: =T66*Table1343[[#This Row],[Number of Buildings]]/1000000000 -> 0 | W66: =U66*Table1343[[#This Row],[Number of Buildings]]/1000000000 -> 0 | X66: =Table1343[[#This Row],[Wtd Air Handlers Heat (Tbtu)]]+Table1343[[#This Row],[Wtd Site Space Heating (TBtu)]] -> 0.1250287546 | Y66: =Table1343[[#This Row],[Wtd Site Total Cooling (TBtu)]]+Table1343[[#This Row],[Wtd Air Handlers Cool (Tbtu)]] -> 0
A67: Single Family Detached | B67: 10066 | C67: East North Central | D67: Before 1950 | E67: Siding | F67: central furnace | G67: central AC | H67: 126.2104768 | I67: 25404.68534 | J67: =IF(Table1343[[#This Row],[Housing Type]]="Multi-Family (2-4 units)",Table1343[[#This Row],[Number of Homes/ Units]]/3,IF(Table1343[[#This Row],[Housing Type]]="Multi-Family (5+ units)",Table1343[[#This Row],[Number of Homes/ Units]]/12.5720642567977,IF(Table1343[[#This Row],[Housing Type]]="Single Family Detached",Table1343[[#This Row],[Number of Homes/ Units]],IF(Table1343[[#This Row],[Housing Type]]="Single Family Attached",Table1343[[#This Row],[Number of Homes/ Units]],IF(Table1343[[#This Row],[Housing Type]]="Mobile Home",Table1343[[#This Row],[Number of Homes/ Units]]))))) -> 25404.68534 | K67: Cold/Very Cold | L67: 71.64489633 | M67: Metropolitan Area | N67: 1.973562193 | O67: 0.2483765276 | P67: 0.03555977643 | Q67: 0.01317939185 | R67: 0.2668681662 | S67: 2.524366663 | T67: 435.17 | U67: 83.608 | V67: =T67*Table1343[[#This Row],[Number of Buildings]]/1000000000 -> 0.01105535692 | W67: =U67*Table1343[[#This Row],[Number of Buildings]]/1000000000 -> 0.002124034932 | X67: =Table1343[[#This Row],[Wtd Air Handlers Heat (Tbtu)]]+Table1343[[#This Row],[Wtd Site Space Heating (TBtu)]] -> 1.98461755 | Y67: =Table1343[[#This Row],[Wtd Site Total Cooling (TBtu)]]+Table1343[[#This Row],[Wtd Air Handlers Cool (Tbtu)]] -> 0.03768381136
A68: Single Family Detached | B68: 10067 | C68: East North Central | D68: 1950s | E68: Siding | F68: central furnace | G68: both central and individual units | H68: 68.45862314 | I68: 28079.82902 | J68: =IF(Table1343[[#This Row],[Housing Type]]="Multi-Family (2-4 units)",Table1343[[#This Row],[Number of Homes/ Units]]/3,IF(Table1343[[#This Row],[Housing Type]]="Multi-Family (5+ units)",Table1343[[#This Row],[Number of Homes/ Units]]/12.5720642567977,IF(Table1343[[#This Row],[Housing Type]]="Single Family Detached",Table1343[[#This Row],[Number of Homes/ Units]],IF(Table1343[[#This Row],[Housing Type]]="Single Family Attached",Table1343[[#This Row],[Number of Homes/ Units]],IF(Table1343[[#This Row],[Housing Type]]="Mobile Home",Table1343[[#This Row],[Number of Homes/ Units]]))))) -> 28079.82902 | K68: Cold/Very Cold | L68: 215.9229059 | M68: Metropolitan Area | N68: 1.098112651 | O68: 0.8049791723 | P68: 0.06776870175 | Q68: 0.04674412633 | R68: 0.6252766625 | S68: 2.596137187 | T68: 1555.692 | U68: 108.995 | V68: =T68*Table1343[[#This Row],[Number of Buildings]]/1000000000 -> 0.04368356537 | W68: =U68*Table1343[[#This Row],[Number of Buildings]]/1000000000 -> 0.003060560964 | X68: =Table1343[[#This Row],[Wtd Air Handlers Heat (Tbtu)]]+Table1343[[#This Row],[Wtd Site Space Heating (TBtu)]] -> 1.141796216 | Y68: =Table1343[[#This Row],[Wtd Site Total Cooling (TBtu)]]+Table1343[[#This Row],[Wtd Air Handlers Cool (Tbtu)]] -> 0.07082926272
A69: Single Family Detached | B69: 10068 | C69: Middle Atlantic | D69: Before 1950 | E69: Brick | F69: central furnace | G69: central AC | H69: 100.0821446 | I69: 26688.57188 | J69: =IF(Table1343[[#This Row],[Housing Type]]="Multi-Family (2-4 units)",Table1343[[#This Row],[Number of Homes/ Units]]/3,IF(Table1343[[#This Row],[Housing Type]]="Multi-Family (5+ units)",Table1343[[#This Row],[Number of Homes/ Units]]/12.5720642567977,IF(Table1343[[#This Row],[Housing Type]]="Single Family Detached",Table1343[[#This Row],[Number of Homes/ Units]],IF(Table1343[[#This Row],[Housing Type]]="Single Family Attached",Table1343[[#This Row],[Number of Homes/ Units]],IF(Table1343[[#This Row],[Housing Type]]="Mobile Home",Table1343[[#This Row],[Number of Homes/ Units]]))))) -> 26688.57188 | K69: Cold/Very Cold | L69: 209.8799968 | M69: Metropolitan Area | N69: 2.454502665 | O69: 0.6042657506 | P69: 0.1847774734 | Q69: 0.07791504376 | R69: 0.5625614943 | S69: 3.806107384 | T69: 2506.097 | U69: 413.319 | V69: =T69*Table1343[[#This Row],[Number of Buildings]]/1000000000 -> 0.06688414992 | W69: =U69*Table1343[[#This Row],[Number of Buildings]]/1000000000 -> 0.01103089384 | X69: =Table1343[[#This Row],[Wtd Air Handlers Heat (Tbtu)]]+Table1343[[#This Row],[Wtd Site Space Heating (TBtu)]] -> 2.521386815 | Y69: =Table1343[[#This Row],[Wtd Site Total Cooling (TBtu)]]+Table1343[[#This Row],[Wtd Air Handlers Cool (Tbtu)]] -> 0.1958083672
A70: Single Family Detached | B70: 10069 | C70: Pacific | D70: 1950s | E70: Shingle | F70: central furnace | G70: window/wall unit | H70: 21.27814753 | I70: 18109.06173 | J70: =IF(Table1343[[#This Row],[Housing Type]]="Multi-Family (2-4 units)",Table1343[[#This Row],[Number of Homes/ Units]]/3,IF(Table1343[[#This Row],[Housing Type]]="Multi-Family (5+ units)",Table1343[[#This Row],[Number of Homes/ Units]]/12.5720642567977,IF(Table1343[[#This Row],[Housing Type]]="Single Family Detached",Table1343[[#This Row],[Number of Homes/ Units]],IF(Table1343[[#This Row],[Housing Type]]="Single Family Attached",Table1343[[#This Row],[Number of Homes/ Units]],IF(Table1343[[#This Row],[Housing Type]]="Mobile Home",Table1343[[#This Row],[Number of Homes/ Units]]))))) -> 18109.06173 | K70: Cold/Very Cold | L70: 374.7202205 | M70: Micropolitan Area | N70: 0.8250543214 | O70: 0.1912042023 | P70: 0.03754099042 | Q70: 0.01594895852 | R70: 0.224745897 | S70: 1.278545411 | T70: 880.717 | U70: 0 | V70: =T70*Table1343[[#This Row],[Number of Buildings]]/1000000000 -> 0.01594895852 | W70: =U70*Table1343[[#This Row],[Number of Buildings]]/1000000000 -> 0 | X70: =Table1343[[#This Row],[Wtd Air Handlers Heat (Tbtu)]]+Table1343[[#This Row],[Wtd Site Space Heating (TBtu)]] -> 0.8410032799 | Y70: =Table1343[[#This Row],[Wtd Site Total Cooling (TBtu)]]+Table1343[[#This Row],[Wtd Air Handlers Cool (Tbtu)]] -> 0.03754099042
A71: Single Family Attached | B71: 10070 | C71: East South Central | D71: 1970s | E71: Concrete | F71: built-in electric unit | G71: central AC | H71: 14.11359586 | I71: 10212.44273 | J71: =IF(Table1343[[#This Row],[Housing Type]]="Multi-Family (2-4 units)",Table1343[[#This Row],[Number of Homes/ Units]]/3,IF(Table1343[[#This Row],[Housing Type]]="Multi-Family (5+ units)",Table1343[[#This Row],[Number of Homes/ Units]]/12.5720642567977,IF(Table1343[[#This Row],[Housing Type]]="Single Family Detached",Table1343[[#This Row],[Number of Homes/ Units]],IF(Table1343[[#This Row],[Housing Type]]="Single Family Attached",Table1343[[#This Row],[Number of Homes/ Units]],IF(Table1343[[#This Row],[Housing Type]]="Mobile Home",Table1343[[#This Row],[Number of Homes/ Units]]))))) -> 10212.44273 | K71: Mixed-Humid | L71: 97.45977156 | M71: Micropolitan Area | N71: 0.03881240902 | O71: 0.07034795219 | P71: 0.04704053328 | Q71: 0.002243867704 | R71: 0.1763318352 | S71: 0.3325327297 | T71: 0 | U71: 219.719 | V71: =T71*Table1343[[#This Row],[Number of Buildings]]/1000000000 -> 0 | W71: =U71*Table1343[[#This Row],[Number of Buildings]]/1000000000 -> 0.002243867704 | X71: =Table1343[[#This Row],[Wtd Air Handlers Heat (Tbtu)]]+Table1343[[#This Row],[Wtd Site Space Heating (TBtu)]] -> 0.03881240902 | Y71: =Table1343[[#This Row],[Wtd Site Total Cooling (TBtu)]]+Table1343[[#This Row],[Wtd Air Handlers Cool (Tbtu)]] -> 0.04928440098
A72: Single Family Attached | B72: 10071 | C72: New England | D72: 2000s | E72: Wood | F72: central furnace | G72: central AC | H72: 34.03000802 | I72: 6979.082859 | J72: =IF(Table1343[[#This Row],[Housing Type]]="Multi-Family (2-4 units)",Table1343[[#This Row],[Number of Homes/ Units]]/3,IF(Table1343[[#This Row],[Housing Type]]="Multi-Family (5+ units)",Table1343[[#This Row],[Number of Homes/ Units]]/12.5720642567977,IF(Table1343[[#This Row],[Housing Type]]="Single Family Detached",Table1343[[#This Row],[Number of Homes/ Units]],IF(Table1343[[#This Row],[Housing Type]]="Single Family Attached",Table1343[[#This Row],[Number of Homes/ Units]],IF(Table1343[[#This Row],[Housing Type]]="Mobile Home",Table1343[[#This Row],[Number of Homes/ Units]]))))) -> 6979.082859 | K72: Cold/Very Cold | L72: 40.95123428 | M72: Metropolitan Area | N72: 0.3629670666 | O72: 0.2007007799 | P72: 0.0236317608 | Q72: 0.01288587849 | R72: 0.116415792 | S72: 0.7037153993 | T72: 1624.875 | U72: 221.482 | V72: =T72*Table1343[[#This Row],[Number of Buildings]]/1000000000 -> 0.01134013726 | W72: =U72*Table1343[[#This Row],[Number of Buildings]]/1000000000 -> 0.00154574123 | X72: =Table1343[[#This Row],[Wtd Air Handlers Heat (Tbtu)]]+Table1343[[#This Row],[Wtd Site Space Heating (TBtu)]] -> 0.3743072038 | Y72: =Table1343[[#This Row],[Wtd Site Total Cooling (TBtu)]]+Table1343[[#This Row],[Wtd Air Handlers Cool (Tbtu)]] -> 0.02517750203
A73: Multi-Family (2-4 units) | B73: 10072 | C73: Pacific | D73: 1980s | E73: Wood | F73: central furnace | G73: central AC | H73: 16.23907817 | I73: 19565.15442 | J73: =IF(Table1343[[#This Row],[Housing Type]]="Multi-Family (2-4 units)",Table1343[[#This Row],[Number of Homes/ Units]]/3,IF(Table1343[[#This Row],[Housing Type]]="Multi-Family (5+ units)",Table1343[[#This Row],[Number of Homes/ Units]]/12.5720642567977,IF(Table1343[[#This Row],[Housing Type]]="Single Family Detached",Table1343[[#This Row],[Number of Homes/ Units]],IF(Table1343[[#This Row],[Housing Type]]="Single Family Attached",Table1343[[#This Row],[Number of Homes/ Units]],IF(Table1343[[#This Row],[Housing Type]]="Mobile Home",Table1343[[#This Row],[Number of Homes/ Units]]))))) -> 6521.71814 | K73: Hot-Dry/Mixed-Dry | L73: 48.59694793 | M73: Metropolitan Area | N73: 0.1364731086 | O73: 0.2855960417 | P73: 0.03529734509 | Q73: 0.004054271734 | R73: 0.1269648414 | S73: 0.5870341845 | T73: 129.989 | U73: 77.23 | V73: =T73*Table1343[[#This Row],[Number of Buildings]]/1000000000 -> 0.0008477516193 | W73: =U73*Table1343[[#This Row],[Number of Buildings]]/1000000000 -> 0.000503672292 | X73: =Table1343[[#This Row],[Wtd Air Handlers Heat (Tbtu)]]+Table1343[[#This Row],[Wtd Site Space Heating (TBtu)]] -> 0.1373208602 | Y73: =Table1343[[#This Row],[Wtd Site Total Cooling (TBtu)]]+Table1343[[#This Row],[Wtd Air Handlers Cool (Tbtu)]] -> 0.03580101738
A74: Single Family Detached | B74: 10073 | C74: Mountain North | D74: 2000s | E74: Concrete | F74: central furnace | G74: central AC | H74: 109.8430676 | I74: 20966.4187 | J74: =IF(Table1343[[#This Row],[Housing Type]]="Multi-Family (2-4 units)",Table1343[[#This Row],[Number of Homes/ Units]]/3,IF(Table1343[[#This Row],[Housing Type]]="Multi-Family (5+ units)",Table1343[[#This Row],[Number of Homes/ Units]]/12.5720642567977,IF(Table1343[[#This Row],[Housing Type]]="Single Family Detached",Table1343[[#This Row],[Number of Homes/ Units]],IF(Table1343[[#This Row],[Housing Type]]="Single Family Attached",Table1343[[#This Row],[Number of Homes/ Units]],IF(Table1343[[#This Row],[Housing Type]]="Mobile Home",Table1343[[#This Row],[Number of Homes/ Units]]))))) -> 20966.4187 | K74: Cold/Very Cold | L74: 288.336354 | M74: Metropolitan Area | N74: 1.577310556 | O74: 0.7917952088 | P74: 0.06094770185 | Q74: 0.02846226981 | R74: 0.668288389 | S74: 3.098341855 | T74: 1188.147 | U74: 169.37 | V74: =T74*Table1343[[#This Row],[Number of Buildings]]/1000000000 -> 0.02491118748 | W74: =U74*Table1343[[#This Row],[Number of Buildings]]/1000000000 -> 0.003551082335 | X74: =Table1343[[#This Row],[Wtd Air Handlers Heat (Tbtu)]]+Table1343[[#This Row],[Wtd Site Space Heating (TBtu)]] -> 1.602221743 | Y74: =Table1343[[#This Row],[Wtd Site Total Cooling (TBtu)]]+Table1343[[#This Row],[Wtd Air Handlers Cool (Tbtu)]] -> 0.06449878418
A75: Single Family Detached | B75: 10074 | C75: East South Central | D75: 2000s | E75: Brick | F75: heat pump | G75: central AC | H75: 88.39020422 | I75: 24745.29793 | J75: =IF(Table1343[[#This Row],[Housing Type]]="Multi-Family (2-4 units)",Table1343[[#This Row],[Number of Homes/ Units]]/3,IF(Table1343[[#This Row],[Housing Type]]="Multi-Family (5+ units)",Table1343[[#This Row],[Number of Homes/ Units]]/12.5720642567977,IF(Table1343[[#This Row],[Housing Type]]="Single Family Detached",Table1343[[#This Row],[Number of Homes/ Units]],IF(Table1343[[#This Row],[Housing Type]]="Single Family Attached",Table1343[[#This Row],[Number of Homes/ Units]],IF(Table1343[[#This Row],[Housing Type]]="Mobile Home",Table1343[[#This Row],[Number of Homes/ Units]]))))) -> 24745.29793 | K75: Mixed-Humid | L75: 562.5258011 | M75: Metropolitan Area | N75: 0.1932982412 | O75: 0.3449433658 | P75: 0.1849470001 | Q75: 0.01386592871 | R75: 1.196149446 | S75: 1.919338053 | T75: 155.625 | U75: 404.721 | V75: =T75*Table1343[[#This Row],[Number of Buildings]]/1000000000 -> 0.00385098699 | W75: =U75*Table1343[[#This Row],[Number of Buildings]]/1000000000 -> 0.01001494172 | X75: =Table1343[[#This Row],[Wtd Air Handlers Heat (Tbtu)]]+Table1343[[#This Row],[Wtd Site Space Heating (TBtu)]] -> 0.1971492282 | Y75: =Table1343[[#This Row],[Wtd Site Total Cooling (TBtu)]]+Table1343[[#This Row],[Wtd Air Handlers Cool (Tbtu)]] -> 0.1949619418
A76: Single Family Detached | B76: 10075 | C76: New England | D76: 1980s | E76: Siding | F76: central furnace | G76: window/wall unit | H76: 14.41419626 | I76: 11531.35701 | J76: =IF(Table1343[[#This Row],[Housing Type]]="Multi-Family (2-4 units)",Table1343[[#This Row],[Number of Homes/ Units]]/3,IF(Table1343[[#This Row],[Housing Type]]="Multi-Family (5+ units)",Table1343[[#This Row],[Number of Homes/ Units]]/12.5720642567977,IF(Table1343[[#This Row],[Housing Type]]="Single Family Detached",Table1343[[#This Row],[Number of Homes/ Units]],IF(Table1343[[#This Row],[Housing Type]]="Single Family Attached",Table1343[[#This Row],[Number of Homes/ Units]],IF(Table1343[[#This Row],[Housing Type]]="Mobile Home",Table1343[[#This Row],[Number of Homes/ Units]]))))) -> 11531.35701 | K76: Cold/Very Cold | L76: 148.4774069 | M76: Rural | N76: 0.8061552774 | O76: 0.3024048445 | P76: 0.008507892859 | Q76: 0.007561491326 | R76: 0.1881306763 | S76: 1.305198691 | T76: 655.733 | U76: 0 | V76: =T76*Table1343[[#This Row],[Number of Buildings]]/1000000000 -> 0.007561491326 | W76: =U76*Table1343[[#This Row],[Number of Buildings]]/1000000000 -> 0 | X76: =Table1343[[#This Row],[Wtd Air Handlers Heat (Tbtu)]]+Table1343[[#This Row],[Wtd Site Space Heating (TBtu)]] -> 0.8137167688 | Y76: =Table1343[[#This Row],[Wtd Site Total Cooling (TBtu)]]+Table1343[[#This Row],[Wtd Air Handlers Cool (Tbtu)]] -> 0.008507892859
A77: Single Family Detached | B77: 10076 | C77: West North Central | D77: Before 1950 | E77: Siding | F77: central furnace | G77: central AC | H77: 28.32326108 | I77: 12792.80085 | J77: =IF(Table1343[[#This Row],[Housing Type]]="Multi-Family (2-4 units)",Table1343[[#This Row],[Number of Homes/ Units]]/3,IF(Table1343[[#This Row],[Housing Type]]="Multi-Family (5+ units)",Table1343[[#This Row],[Number of Homes/ Units]]/12.5720642567977,IF(Table1343[[#This Row],[Housing Type]]="Single Family Detached",Table1343[[#This Row],[Number of Homes/ Units]],IF(Table1343[[#This Row],[Housing Type]]="Single Family Attached",Table1343[[#This Row],[Number of Homes/ Units]],IF(Table1343[[#This Row],[Housing Type]]="Mobile Home",Table1343[[#This Row],[Number of Homes/ Units]]))))) -> 12792.80085 | K77: Mixed-Humid | L77: 166.9462302 | M77: Metropolitan Area | N77: 1.258861687 | O77: 0.1964083576 | P77: 0.1548230301 | Q77: 0.02936511958 | R77: 0.3932756825 | S77: 2.003368758 | T77: 1682.339 | U77: 613.102 | V77: =T77*Table1343[[#This Row],[Number of Buildings]]/1000000000 -> 0.02152182779 | W77: =U77*Table1343[[#This Row],[Number of Buildings]]/1000000000 -> 0.007843291787 | X77: =Table1343[[#This Row],[Wtd Air Handlers Heat (Tbtu)]]+Table1343[[#This Row],[Wtd Site Space Heating (TBtu)]] -> 1.280383515 | Y77: =Table1343[[#This Row],[Wtd Site Total Cooling (TBtu)]]+Table1343[[#This Row],[Wtd Air Handlers Cool (Tbtu)]] -> 0.1626663219
A78: Single Family Detached | B78: 10077 | C78: West South Central | D78: 2000s | E78: Brick | F78: central furnace | G78: central AC | H78: 46.31233268 | I78: 22657.69701 | J78: =IF(Table1343[[#This Row],[Housing Type]]="Multi-Family (2-4 units)",Table1343[[#This Row],[Number of Homes/ Units]]/3,IF(Table1343[[#This Row],[Housing Type]]="Multi-Family (5+ units)",Table1343[[#This Row],[Number of Homes/ Units]]/12.5720642567977,IF(Table1343[[#This Row],[Housing Type]]="Single Family Detached",Table1343[[#This Row],[Number of Homes/ Units]],IF(Table1343[[#This Row],[Housing Type]]="Single Family Attached",Table1343[[#This Row],[Number of Homes/ Units]],IF(Table1343[[#This Row],[Housing Type]]="Mobile Home",Table1343[[#This Row],[Number of Homes/ Units]]))))) -> 22657.69701 | K78: Hot-Humid | L78: 289.9999877 | M78: Micropolitan Area | N78: 0.2080338429 | O78: 0.2227078738 | P78: 0.2042650749 | Q78: 0.01538260505 | R78: 0.3544731443 | S78: 0.9894799358 | T78: 209.429 | U78: 469.484 | V78: =T78*Table1343[[#This Row],[Number of Buildings]]/1000000000 -> 0.004745178827 | W78: =U78*Table1343[[#This Row],[Number of Buildings]]/1000000000 -> 0.01063742622 | X78: =Table1343[[#This Row],[Wtd Air Handlers Heat (Tbtu)]]+Table1343[[#This Row],[Wtd Site Space Heating (TBtu)]] -> 0.2127790217 | Y78: =Table1343[[#This Row],[Wtd Site Total Cooling (TBtu)]]+Table1343[[#This Row],[Wtd Air Handlers Cool (Tbtu)]] -> 0.2149025011
A79: Single Family Detached | B79: 10078 | C79: Pacific | D79: 1990s | E79: Siding | F79: built-in electric unit | G79: N/A | H79: 37.20791764 | I79: 19982.76995 | J79: =IF(Table1343[[#This Row],[Housing Type]]="Multi-Family (2-4 units)",Table1343[[#This Row],[Number of Homes/ Units]]/3,IF(Table1343[[#This Row],[Housing Type]]="Multi-Family (5+ units)",Table1343[[#This Row],[Number of Homes/ Units]]/12.5720642567977,IF(Table1343[[#This Row],[Housing Type]]="Single Family Detached",Table1343[[#This Row],[Number of Homes/ Units]],IF(Table1343[[#This Row],[Housing Type]]="Single Family Attached",Table1343[[#This Row],[Number of Homes/ Units]],IF(Table1343[[#This Row],[Housing Type]]="Mobile Home",Table1343[[#This Row],[Number of Homes/ Units]]))))) -> 19982.76995 | K79: Marine | L79: 571.467275 | M79: Metropolitan Area | N79: 0.7254059221 | O79: 0.5166141319 | P79: 0 | Q79: 0 | R79: 0.7078263001 | S79: 1.949846354 | T79: 0 | U79: 0 | V79: =T79*Table1343[[#This Row],[Number of Buildings]]/1000000000 -> 0 | W79: =U79*Table1343[[#This Row],[Number of Buildings]]/1000000000 -> 0 | X79: =Table1343[[#This Row],[Wtd Air Handlers Heat (Tbtu)]]+Table1343[[#This Row],[Wtd Site Space Heating (TBtu)]] -> 0.7254059221 | Y79: =Table1343[[#This Row],[Wtd Site Total Cooling (TBtu)]]+Table1343[[#This Row],[Wtd Air Handlers Cool (Tbtu)]] -> 0
A80: Single Family Detached | B80: 10079 | C80: West South Central | D80: 1980s | E80: Brick | F80: central furnace | G80: central AC | H80: 50.65325556 | I80: 19071.25586 | J80: =IF(Table1343[[#This Row],[Housing Type]]="Multi-Family (2-4 units)",Table1343[[#This Row],[Number of Homes/ Units]]/3,IF(Table1343[[#This Row],[Housing Type]]="Multi-Family (5+ units)",Table1343[[#This Row],[Number of Homes/ Units]]/12.5720642567977,IF(Table1343[[#This Row],[Housing Type]]="Single Family Detached",Table1343[[#This Row],[Number of Homes/ Units]],IF(Table1343[[#This Row],[Housing Type]]="Single Family Attached",Table1343[[#This Row],[Number of Homes/ Units]],IF(Table1343[[#This Row],[Housing Type]]="Mobile Home",Table1343[[#This Row],[Number of Homes/ Units]]))))) -> 19071.25586 | K80: Hot-Humid | L80: 305.4042306 | M80: Metropolitan Area | N80: 0.5005271697 | O80: 0.2156519255 | P80: 0.521901337 | Q80: 0.03782480367 | R80: 0.4657042771 | S80: 1.703784709 | T80: 432.353 | U80: 1550.988 | V80: =T80*Table1343[[#This Row],[Number of Buildings]]/1000000000 -> 0.008245514685 | W80: =U80*Table1343[[#This Row],[Number of Buildings]]/1000000000 -> 0.02957928898 | X80: =Table1343[[#This Row],[Wtd Air Handlers Heat (Tbtu)]]+Table1343[[#This Row],[Wtd Site Space Heating (TBtu)]] -> 0.5087726844 | Y80: =Table1343[[#This Row],[Wtd Site Total Cooling (TBtu)]]+Table1343[[#This Row],[Wtd Air Handlers Cool (Tbtu)]] -> 0.5514806259
A81: Single Family Detached | B81: 10080 | C81: West South Central | D81: 1990s | E81: Brick | F81: central furnace | G81: central AC | H81: 77.867558 | I81: 18066.71879 | J81: =IF(Table1343[[#This Row],[Housing Type]]="Multi-Family (2-4 units)",Table1343[[#This Row],[Number of Homes/ Units]]/3,IF(Table1343[[#This Row],[Housing Type]]="Multi-Family (5+ units)",Table1343[[#This Row],[Number of Homes/ Units]]/12.5720642567977,IF(Table1343[[#This Row],[Housing Type]]="Single Family Detached",Table1343[[#This Row],[Number of Homes/ Units]],IF(Table1343[[#This Row],[Housing Type]]="Single Family Attached",Table1343[[#This Row],[Number of Homes/ Units]],IF(Table1343[[#This Row],[Housing Type]]="Mobile Home",Table1343[[#This Row],[Number of Homes/ Units]]))))) -> 18066.71879 | K81: Mixed-Humid | L81: 194.220479 | M81: Metropolitan Area | N81: 1.060262158 | O81: 0.2487204706 | P81: 0.162899654 | Q81: 0.03227465745 | R81: 0.6842549508 | S81: 2.156137234 | T81: 1171.074 | U81: 615.341 | V81: =T81*Table1343[[#This Row],[Number of Buildings]]/1000000000 -> 0.02115746464 | W81: =U81*Table1343[[#This Row],[Number of Buildings]]/1000000000 -> 0.01111719281 | X81: =Table1343[[#This Row],[Wtd Air Handlers Heat (Tbtu)]]+Table1343[[#This Row],[Wtd Site Space Heating (TBtu)]] -> 1.081419623 | Y81: =Table1343[[#This Row],[Wtd Site Total Cooling (TBtu)]]+Table1343[[#This Row],[Wtd Air Handlers Cool (Tbtu)]] -> 0.1740168468
A82: Multi-Family (5+ units) | B82: 10081 | C82: East North Central | D82: 1980s | E82: Brick | F82: built-in electric unit | G82: window/wall unit | H82: 7.224672079 | I82: 10687.38473 | J82: =IF(Table1343[[#This Row],[Housing Type]]="Multi-Family (2-4 units)",Table1343[[#This Row],[Number of Homes/ Units]]/3,IF(Table1343[[#This Row],[Housing Type]]="Multi-Family (5+ units)",Table1343[[#This Row],[Number of Homes/ Units]]/12.5720642567977,IF(Table1343[[#This Row],[Housing Type]]="Single Family Detached",Table1343[[#This Row],[Number of Homes/ Units]],IF(Table1343[[#This Row],[Housing Type]]="Single Family Attached",Table1343[[#This Row],[Number of Homes/ Units]],IF(Table1343[[#This Row],[Housing Type]]="Mobile Home",Table1343[[#This Row],[Number of Homes/ Units]]))))) -> 850.0898907 | K82: Cold/Very Cold | L82: 85.49985803 | M82: Metropolitan Area | N82: 0.119435468 | O82: 0.07897097744 | P82: 0.006905365084 | Q82: 0 | R82: 0.08641371491 | S82: 0.2917255254 | T82: 0 | U82: 0 | V82: =T82*Table1343[[#This Row],[Number of Buildings]]/1000000000 -> 0 | W82: =U82*Table1343[[#This Row],[Number of Buildings]]/1000000000 -> 0 | X82: =Table1343[[#This Row],[Wtd Air Handlers Heat (Tbtu)]]+Table1343[[#This Row],[Wtd Site Space Heating (TBtu)]] -> 0.119435468 | Y82: =Table1343[[#This Row],[Wtd Site Total Cooling (TBtu)]]+Table1343[[#This Row],[Wtd Air Handlers Cool (Tbtu)]] -> 0.006905365084
A83: Single Family Detached | B83: 10082 | C83: East South Central | D83: 1980s | E83: Brick | F83: heat pump | G83: central AC | H83: 45.67648772 | I83: 15296.88135 | J83: =IF(Table1343[[#This Row],[Housing Type]]="Multi-Family (2-4 units)",Table1343[[#This Row],[Number of Homes/ Units]]/3,IF(Table1343[[#This Row],[Housing Type]]="Multi-Family (5+ units)",Table1343[[#This Row],[Number of Homes/ Units]]/12.5720642567977,IF(Table1343[[#This Row],[Housing Type]]="Single Family Detached",Table1343[[#This Row],[Number of Homes/ Units]],IF(Table1343[[#This Row],[Housing Type]]="Single Family Attached",Table1343[[#This Row],[Number of Homes/ Units]],IF(Table1343[[#This Row],[Housing Type]]="Mobile Home",Table1343[[#This Row],[Number of Homes/ Units]]))))) -> 15296.88135 | K83: Mixed-Humid | L83: 366.9366031 | M83: Metropolitan Area | N83: 1.161665025 | O83: 0.177676734 | P83: 0.3015963874 | Q83: 0.03123812853 | R83: 0.2879059998 | S83: 1.928844146 | T83: 964.405 | U83: 1077.719 | V83: =T83*Table1343[[#This Row],[Number of Buildings]]/1000000000 -> 0.01475238886 | W83: =U83*Table1343[[#This Row],[Number of Buildings]]/1000000000 -> 0.01648573967 | X83: =Table1343[[#This Row],[Wtd Air Handlers Heat (Tbtu)]]+Table1343[[#This Row],[Wtd Site Space Heating (TBtu)]] -> 1.176417414 | Y83: =Table1343[[#This Row],[Wtd Site Total Cooling (TBtu)]]+Table1343[[#This Row],[Wtd Air Handlers Cool (Tbtu)]] -> 0.318082127
A84: Single Family Detached | B84: 10083 | C84: East North Central | D84: 1990s | E84: Brick | F84: central furnace | G84: central AC | H84: 103.6414929 | I84: 13155.81276 | J84: =IF(Table1343[[#This Row],[Housing Type]]="Multi-Family (2-4 units)",Table1343[[#This Row],[Number of Homes/ Units]]/3,IF(Table1343[[#This Row],[Housing Type]]="Multi-Family (5+ units)",Table1343[[#This Row],[Number of Homes/ Units]]/12.5720642567977,IF(Table1343[[#This Row],[Housing Type]]="Single Family Detached",Table1343[[#This Row],[Number of Homes/ Units]],IF(Table1343[[#This Row],[Housing Type]]="Single Family Attached",Table1343[[#This Row],[Number of Homes/ Units]],IF(Table1343[[#This Row],[Housing Type]]="Mobile Home",Table1343[[#This Row],[Number of Homes/ Units]]))))) -> 13155.81276 | K84: Cold/Very Cold | L84: 290.635637 | M84: Metropolitan Area | N84: 3.592932413 | O84: 0.4897838575 | P84: 0.1290609438 | Q84: 0.05986893332 | R84: 0.813367425 | S84: 5.025144639 | T84: 3741.344 | U84: 809.415 | V84: =T84*Table1343[[#This Row],[Number of Buildings]]/1000000000 -> 0.04922042113 | W84: =U84*Table1343[[#This Row],[Number of Buildings]]/1000000000 -> 0.01064851219 | X84: =Table1343[[#This Row],[Wtd Air Handlers Heat (Tbtu)]]+Table1343[[#This Row],[Wtd Site Space Heating (TBtu)]] -> 3.642152834 | Y84: =Table1343[[#This Row],[Wtd Site Total Cooling (TBtu)]]+Table1343[[#This Row],[Wtd Air Handlers Cool (Tbtu)]] -> 0.139709456
A85: Single Family Detached | B85: 10084 | C85: Mountain North | D85: 1970s | E85: Wood | F85: central furnace | G85: N/A | H85: 35.09198784 | I85: 16009.11854 | J85: =IF(Table1343[[#This Row],[Housing Type]]="Multi-Family (2-4 units)",Table1343[[#This Row],[Number of Homes/ Units]]/3,IF(Table1343[[#This Row],[Housing Type]]="Multi-Family (5+ units)",Table1343[[#This Row],[Number of Homes/ Units]]/12.5720642567977,IF(Table1343[[#This Row],[Housing Type]]="Single Family Detached",Table1343[[#This Row],[Number of Homes/ Units]],IF(Table1343[[#This Row],[Housing Type]]="Single Family Attached",Table1343[[#This Row],[Number of Homes/ Units]],IF(Table1343[[#This Row],[Housing Type]]="Mobile Home",Table1343[[#This Row],[Number of Homes/ Units]]))))) -> 16009.11854 | K85: Cold/Very Cold | L85: 138.4680372 | M85: Metropolitan Area | N85: 0.340776757 | O85: 0.5014261644 | P85: 0.06952531252 | Q85: 0.02285466566 | R85: 0.3800729315 | S85: 1.291801165 | T85: 1427.603 | U85: 0 | V85: =T85*Table1343[[#This Row],[Number of Buildings]]/1000000000 -> 0.02285466566 | W85: =U85*Table1343[[#This Row],[Number of Buildings]]/1000000000 -> 0 | X85: =Table1343[[#This Row],[Wtd Air Handlers Heat (Tbtu)]]+Table1343[[#This Row],[Wtd Site Space Heating (TBtu)]] -> 0.3636314227 | Y85: =Table1343[[#This Row],[Wtd Site Total Cooling (TBtu)]]+Table1343[[#This Row],[Wtd Air Handlers Cool (Tbtu)]] -> 0.06952531252
A86: Multi-Family (2-4 units) | B86: 10085 | C86: Pacific | D86: 1950s | E86: Wood | F86: built-in electric unit | G86: N/A | H86: 10.32181277 | I86: 27378.8137 | J86: =IF(Table1343[[#This Row],[Housing Type]]="Multi-Family (2-4 units)",Table1343[[#This Row],[Number of Homes/ Units]]/3,IF(Table1343[[#This Row],[Housing Type]]="Multi-Family (5+ units)",Table1343[[#This Row],[Number of Homes/ Units]]/12.5720642567977,IF(Table1343[[#This Row],[Housing Type]]="Single Family Detached",Table1343[[#This Row],[Number of Homes/ Units]],IF(Table1343[[#This Row],[Housing Type]]="Single Family Attached",Table1343[[#This Row],[Number of Homes/ Units]],IF(Table1343[[#This Row],[Housing Type]]="Mobile Home",Table1343[[#This Row],[Number of Homes/ Units]]))))) -> 9126.271233 | K86: Hot-Dry/Mixed-Dry | L86: 210.1317381 | M86: Metropolitan Area | N86: 0.09463418508 | O86: 0.2046952639 | P86: 0 | Q86: 0 | R86: 0.4176400656 | S86: 0.7169695146 | T86: 0 | U86: 0 | V86: =T86*Table1343[[#This Row],[Number of Buildings]]/1000000000 -> 0 | W86: =U86*Table1343[[#This Row],[Number of Buildings]]/1000000000 -> 0 | X86: =Table1343[[#This Row],[Wtd Air Handlers Heat (Tbtu)]]+Table1343[[#This Row],[Wtd Site Space Heating (TBtu)]] -> 0.09463418508 | Y86: =Table1343[[#This Row],[Wtd Site Total Cooling (TBtu)]]+Table1343[[#This Row],[Wtd Air Handlers Cool (Tbtu)]] -> 0
A87: Single Family Detached | B87: 10086 | C87: Pacific | D87: 1960s | E87: Stucco | F87: central furnace | G87: N/A | H87: 18.20164285 | I87: 13664.89703 | J87: =IF(Table1343[[#This Row],[Housing Type]]="Multi-Family (2-4 units)",Table1343[[#This Row],[Number of Homes/ Units]]/3,IF(Table1343[[#This Row],[Housing Type]]="Multi-Family (5+ units)",Table1343[[#This Row],[Number of Homes/ Units]]/12.5720642567977,IF(Table1343[[#This Row],[Housing Type]]="Single Family Detached",Table1343[[#This Row],[Number of Homes/ Units]],IF(Table1343[[#This Row],[Housing Type]]="Single Family Attached",Table1343[[#This Row],[Number of Homes/ Units]],IF(Table1343[[#This Row],[Housing Type]]="Mobile Home",Table1343[[#This Row],[Number of Homes/ Units]]))))) -> 13664.89703 | K87: Marine | L87: 40.99534701 | M87: Metropolitan Area | N87: 0.3916633743 | O87: 0.02473610095 | P87: 0 | Q87: 0.003737444992 | R87: 0.1114025948 | S87: 0.52780207 | T87: 273.507 | U87: 0 | V87: =T87*Table1343[[#This Row],[Number of Buildings]]/1000000000 -> 0.003737444992 | W87: =U87*Table1343[[#This Row],[Number of Buildings]]/1000000000 -> 0 | X87: =Table1343[[#This Row],[Wtd Air Handlers Heat (Tbtu)]]+Table1343[[#This Row],[Wtd Site Space Heating (TBtu)]] -> 0.3954008193 | Y87: =Table1343[[#This Row],[Wtd Site Total Cooling (TBtu)]]+Table1343[[#This Row],[Wtd Air Handlers Cool (Tbtu)]] -> 0
A88: Single Family Attached | B88: 10087 | C88: South Atlantic | D88: 1970s | E88: Brick | F88: heat pump | G88: central AC | H88: 20.62651011 | I88: 16620.87841 | J88: =IF(Table1343[[#This Row],[Housing Type]]="Multi-Family (2-4 units)",Table1343[[#This Row],[Number of Homes/ Units]]/3,IF(Table1343[[#This Row],[Housing Type]]="Multi-Family (5+ units)",Table1343[[#This Row],[Number of Homes/ Units]]/12.5720642567977,IF(Table1343[[#This Row],[Housing Type]]="Single Family Detached",Table1343[[#This Row],[Number of Homes/ Units]],IF(Table1343[[#This Row],[Housing Type]]="Single Family Attached",Table1343[[#This Row],[Number of Homes/ Units]],IF(Table1343[[#This Row],[Housing Type]]="Mobile Home",Table1343[[#This Row],[Number of Homes/ Units]]))))) -> 16620.87841 | K88: Mixed-Humid | L88: 117.152195 | M88: Metropolitan Area | N88: 0.1168588365 | O88: 0.08702799971 | P88: 0.04294238292 | Q88: 0.004339794457 | R88: 0.152894081 | S88: 0.3997233001 | T88: 144.546 | U88: 116.559 | V88: =T88*Table1343[[#This Row],[Number of Buildings]]/1000000000 -> 0.002402481491 | W88: =U88*Table1343[[#This Row],[Number of Buildings]]/1000000000 -> 0.001937312967 | X88: =Table1343[[#This Row],[Wtd Air Handlers Heat (Tbtu)]]+Table1343[[#This Row],[Wtd Site Space Heating (TBtu)]] -> 0.119261318 | Y88: =Table1343[[#This Row],[Wtd Site Total Cooling (TBtu)]]+Table1343[[#This Row],[Wtd Air Handlers Cool (Tbtu)]] -> 0.04487969588
A89: Single Family Detached | B89: 10088 | C89: West South Central | D89: Before 1950 | E89: Wood | F89: central furnace | G89: central AC | H89: 107.7523018 | I89: 29537.36343 | J89: =IF(Table1343[[#This Row],[Housing Type]]="Multi-Family (2-4 units)",Table1343[[#This Row],[Number of Homes/ Units]]/3,IF(Table1343[[#This Row],[Housing Type]]="Multi-Family (5+ units)",Table1343[[#This Row],[Number of Homes/ Units]]/12.5720642567977,IF(Table1343[[#This Row],[Housing Type]]="Single Family Detached",Table1343[[#This Row],[Number of Homes/ Units]],IF(Table1343[[#This Row],[Housing Type]]="Single Family Attached",Table1343[[#This Row],[Number of Homes/ Units]],IF(Table1343[[#This Row],[Housing Type]]="Mobile Home",Table1343[[#This Row],[Number of Homes/ Units]]))))) -> 29537.36343 | K89: Hot-Humid | L89: 662.5017652 | M89: Metropolitan Area | N89: 1.319444274 | O89: 0.6792347112 | P89: 1.318247597 | Q89: 0.1032340599 | R89: 0.6389849436 | S89: 3.955911526 | T89: 828.165 | U89: 2666.868 | V89: =T89*Table1343[[#This Row],[Number of Buildings]]/1000000000 -> 0.02446181059 | W89: =U89*Table1343[[#This Row],[Number of Buildings]]/1000000000 -> 0.07877224934 | X89: =Table1343[[#This Row],[Wtd Air Handlers Heat (Tbtu)]]+Table1343[[#This Row],[Wtd Site Space Heating (TBtu)]] -> 1.343906084 | Y89: =Table1343[[#This Row],[Wtd Site Total Cooling (TBtu)]]+Table1343[[#This Row],[Wtd Air Handlers Cool (Tbtu)]] -> 1.397019846
A90: Single Family Detached | B90: 10089 | C90: East North Central | D90: 1990s | E90: Siding | F90: central furnace | G90: central AC | H90: 30.81215178 | I90: 20165.0208 | J90: =IF(Table1343[[#This Row],[Housing Type]]="Multi-Family (2-4 units)",Table1343[[#This Row],[Number of Homes/ Units]]/3,IF(Table1343[[#This Row],[Housing Type]]="Multi-Family (5+ units)",Table1343[[#This Row],[Number of Homes/ Units]]/12.5720642567977,IF(Table1343[[#This Row],[Housing Type]]="Single Family Detached",Table1343[[#This Row],[Number of Homes/ Units]],IF(Table1343[[#This Row],[Housing Type]]="Single Family Attached",Table1343[[#This Row],[Number of Homes/ Units]],IF(Table1343[[#This Row],[Housing Type]]="Mobile Home",Table1343[[#This Row],[Number of Homes/ Units]]))))) -> 20165.0208 | K90: Cold/Very Cold | L90: 97.83676888 | M90: Metropolitan Area | N90: 1.685855629 | O90: 0.2167926262 | P90: 0.08182570206 | Q90: 0.02172345427 | R90: 0.2529848862 | S90: 2.237458844 | T90: 894.903 | U90: 182.381 | V90: =T90*Table1343[[#This Row],[Number of Buildings]]/1000000000 -> 0.01804573761 | W90: =U90*Table1343[[#This Row],[Number of Buildings]]/1000000000 -> 0.003677716659 | X90: =Table1343[[#This Row],[Wtd Air Handlers Heat (Tbtu)]]+Table1343[[#This Row],[Wtd Site Space Heating (TBtu)]] -> 1.703901367 | Y90: =Table1343[[#This Row],[Wtd Site Total Cooling (TBtu)]]+Table1343[[#This Row],[Wtd Air Handlers Cool (Tbtu)]] -> 0.08550341872
A91: Single Family Detached | B91: 10090 | C91: Pacific | D91: 1990s | E91: Siding | F91: built-in electric unit | G91: window/wall unit | H91: 20.45384297 | I91: 12487.08362 | J91: =IF(Table1343[[#This Row],[Housing Type]]="Multi-Family (2-4 units)",Table1343[[#This Row],[Number of Homes/ Units]]/3,IF(Table1343[[#This Row],[Housing Type]]="Multi-Family (5+ units)",Table1343[[#This Row],[Number of Homes/ Units]]/12.5720642567977,IF(Table1343[[#This Row],[Housing Type]]="Single Family Detached",Table1343[[#This Row],[Number of Homes/ Units]],IF(Table1343[[#This Row],[Housing Type]]="Single Family Attached",Table1343[[#This Row],[Number of Homes/ Units]],IF(Table1343[[#This Row],[Housing Type]]="Mobile Home",Table1343[[#This Row],[Number of Homes/ Units]]))))) -> 12487.08362 | K91: Marine | L91: 130.9778068 | M91: Metropolitan Area | N91: 0.08474480423 | O91: 0.1256362445 | P91: 0.006590395532 | Q91: 0 | R91: 0.2299248081 | S91: 0.4468962523 | T91: 0 | U91: 0 | V91: =T91*Table1343[[#This Row],[Number of Buildings]]/1000000000 -> 0 | W91: =U91*Table1343[[#This Row],[Number of Buildings]]/1000000000 -> 0 | X91: =Table1343[[#This Row],[Wtd Air Handlers Heat (Tbtu)]]+Table1343[[#This Row],[Wtd Site Space Heating (TBtu)]] -> 0.08474480423 | Y91: =Table1343[[#This Row],[Wtd Site Total Cooling (TBtu)]]+Table1343[[#This Row],[Wtd Air Handlers Cool (Tbtu)]] -> 0.006590395532
A92: Single Family Detached | B92: 10091 | C92: East North Central | D92: 1950s | E92: Brick | F92: central furnace | G92: central AC | H92: 47.59170057 | I92: 21151.86692 | J92: =IF(Table1343[[#This Row],[Housing Type]]="Multi-Family (2-4 units)",Table1343[[#This Row],[Number of Homes/ Units]]/3,IF(Table1343[[#This Row],[Housing Type]]="Multi-Family (5+ units)",Table1343[[#This Row],[Number of Homes/ Units]]/12.5720642567977,IF(Table1343[[#This Row],[Housing Type]]="Single Family Detached",Table1343[[#This Row],[Number of Homes/ Units]],IF(Table1343[[#This Row],[Housing Type]]="Single Family Attached",Table1343[[#This Row],[Number of Homes/ Units]],IF(Table1343[[#This Row],[Housing Type]]="Mobile Home",Table1343[[#This Row],[Number of Homes/ Units]]))))) -> 21151.86692 | K92: Cold/Very Cold | L92: 155.2773991 | M92: Metropolitan Area | N92: 2.517854444 | O92: 0.2057398945 | P92: 0.0660574073 | Q92: 0.0221656336 | R92: 0.2387492654 | S92: 3.028401011 | T92: 910.555 | U92: 137.373 | V92: =T92*Table1343[[#This Row],[Number of Buildings]]/1000000000 -> 0.01925993818 | W92: =U92*Table1343[[#This Row],[Number of Buildings]]/1000000000 -> 0.002905695414 | X92: =Table1343[[#This Row],[Wtd Air Handlers Heat (Tbtu)]]+Table1343[[#This Row],[Wtd Site Space Heating (TBtu)]] -> 2.537114382 | Y92: =Table1343[[#This Row],[Wtd Site Total Cooling (TBtu)]]+Table1343[[#This Row],[Wtd Air Handlers Cool (Tbtu)]] -> 0.06896310272
A93: Single Family Attached | B93: 10092 | C93: East North Central | D93: 2010s | E93: Siding | F93: central furnace | G93: central AC | H93: 46.53051009 | I93: 14255.67098 | J93: =IF(Table1343[[#This Row],[Housing Type]]="Multi-Family (2-4 units)",Table1343[[#This Row],[Number of Homes/ Units]]/3,IF(Table1343[[#This Row],[Housing Type]]="Multi-Family (5+ units)",Table1343[[#This Row],[Number of Homes/ Units]]/12.5720642567977,IF(Table1343[[#This Row],[Housing Type]]="Single Family Detached",Table1343[[#This Row],[Number of Homes/ Units]],IF(Table1343[[#This Row],[Housing Type]]="Single Family Attached",Table1343[[#This Row],[Number of Homes/ Units]],IF(Table1343[[#This Row],[Housing Type]]="Mobile Home",Table1343[[#This Row],[Number of Homes/ Units]]))))) -> 14255.67098 | K93: Cold/Very Cold | L93: 178.3183435 | M93: Metropolitan Area | N93: 0.2041579446 | O93: 0.3727134343 | P93: 0.02716154375 | Q93: 0.02335506577 | R93: 0.5593917452 | S93: 1.163424668 | T93: 1534.05 | U93: 104.25 | V93: =T93*Table1343[[#This Row],[Number of Buildings]]/1000000000 -> 0.02186891207 | W93: =U93*Table1343[[#This Row],[Number of Buildings]]/1000000000 -> 0.0014861537 | X93: =Table1343[[#This Row],[Wtd Air Handlers Heat (Tbtu)]]+Table1343[[#This Row],[Wtd Site Space Heating (TBtu)]] -> 0.2260268567 | Y93: =Table1343[[#This Row],[Wtd Site Total Cooling (TBtu)]]+Table1343[[#This Row],[Wtd Air Handlers Cool (Tbtu)]] -> 0.02864769745
A94: Single Family Detached | B94: 10093 | C94: East North Central | D94: Before 1950 | E94: Siding | F94: central furnace | G94: window/wall unit | H94: 52.47632 | I94: 33595.59539 | J94: =IF(Table1343[[#This Row],[Housing Type]]="Multi-Family (2-4 units)",Table1343[[#This Row],[Number of Homes/ Units]]/3,IF(Table1343[[#This Row],[Housing Type]]="Multi-Family (5+ units)",Table1343[[#This Row],[Number of Homes/ Units]]/12.5720642567977,IF(Table1343[[#This Row],[Housing Type]]="Single Family Detached",Table1343[[#This Row],[Number of Homes/ Units]],IF(Table1343[[#This Row],[Housing Type]]="Single Family Attached",Table1343[[#This Row],[Number of Homes/ Units]],IF(Table1343[[#This Row],[Housing Type]]="Mobile Home",Table1343[[#This Row],[Number of Homes/ Units]]))))) -> 33595.59539 | K94: Mixed-Humid | L94: 523.5362888 | M94: Micropolitan Area | N94: 0.6965256872 | O94: 0.584119394 | P94: 0.2584214856 | Q94: 0.05727938149 | R94: 0.8864855981 | S94: 2.425552165 | T94: 1704.967 | U94: 0 | V94: =T94*Table1343[[#This Row],[Number of Buildings]]/1000000000 -> 0.05727938149 | W94: =U94*Table1343[[#This Row],[Number of Buildings]]/1000000000 -> 0 | X94: =Table1343[[#This Row],[Wtd Air Handlers Heat (Tbtu)]]+Table1343[[#This Row],[Wtd Site Space Heating (TBtu)]] -> 0.7538050687 | Y94: =Table1343[[#This Row],[Wtd Site Total Cooling (TBtu)]]+Table1343[[#This Row],[Wtd Air Handlers Cool (Tbtu)]] -> 0.2584214856
A95: Single Family Detached | B95: 10094 | C95: East North Central | D95: Before 1950 | E95: Siding | F95: central furnace | G95: window/wall unit | H95: 51.14052886 | I95: 39922.34884 | J95: =IF(Table1343[[#This Row],[Housing Type]]="Multi-Family (2-4 units)",Table1343[[#This Row],[Number of Homes/ Units]]/3,IF(Table1343[[#This Row],[Housing Type]]="Multi-Family (5+ units)",Table1343[[#This Row],[Number of Homes/ Units]]/12.5720642567977,IF(Table1343[[#This Row],[Housing Type]]="Single Family Detached",Table1343[[#This Row],[Number of Homes/ Units]],IF(Table1343[[#This Row],[Housing Type]]="Single Family Attached",Table1343[[#This Row],[Number of Homes/ Units]],IF(Table1343[[#This Row],[Housing Type]]="Mobile Home",Table1343[[#This Row],[Number of Homes/ Units]]))))) -> 39922.34884 | K95: Cold/Very Cold | L95: 168.1073021 | M95: Metropolitan Area | N95: 1.319192059 | O95: 0.3605455192 | P95: 0.05668298848 | Q95: 0.02335006285 | R95: 0.7443434511 | S95: 2.480764018 | T95: 584.887 | U95: 0 | V95: =T95*Table1343[[#This Row],[Number of Buildings]]/1000000000 -> 0.02335006285 | W95: =U95*Table1343[[#This Row],[Number of Buildings]]/1000000000 -> 0 | X95: =Table1343[[#This Row],[Wtd Air Handlers Heat (Tbtu)]]+Table1343[[#This Row],[Wtd Site Space Heating (TBtu)]] -> 1.342542122 | Y95: =Table1343[[#This Row],[Wtd Site Total Cooling (TBtu)]]+Table1343[[#This Row],[Wtd Air Handlers Cool (Tbtu)]] -> 0.05668298848
A96: Single Family Detached | B96: 10095 | C96: East South Central | D96: 1960s | E96: Other | F96: central furnace | G96: both central and individual units | H96: 41.25234413 | I96: 38196.61493 | J96: =IF(Table1343[[#This Row],[Housing Type]]="Multi-Family (2-4 units)",Table1343[[#This Row],[Number of Homes/ Units]]/3,IF(Table1343[[#This Row],[Housing Type]]="Multi-Family (5+ units)",Table1343[[#This Row],[Number of Homes/ Units]]/12.5720642567977,IF(Table1343[[#This Row],[Housing Type]]="Single Family Detached",Table1343[[#This Row],[Number of Homes/ Units]],IF(Table1343[[#This Row],[Housing Type]]="Single Family Attached",Table1343[[#This Row],[Number of Homes/ Units]],IF(Table1343[[#This Row],[Housing Type]]="Mobile Home",Table1343[[#This Row],[Number of Homes/ Units]]))))) -> 38196.61493 | K96: Hot-Humid | L96: 861.6086823 | M96: Micropolitan Area | N96: 1.328677272 | O96: 1.812052645 | P96: 0.6168446974 | Q96: 0.04032871178 | R96: 2.033730787 | S96: 5.791305401 | T96: 477.915 | U96: 577.904 | V96: =T96*Table1343[[#This Row],[Number of Buildings]]/1000000000 -> 0.01825473522 | W96: =U96*Table1343[[#This Row],[Number of Buildings]]/1000000000 -> 0.02207397655 | X96: =Table1343[[#This Row],[Wtd Air Handlers Heat (Tbtu)]]+Table1343[[#This Row],[Wtd Site Space Heating (TBtu)]] -> 1.346932007 | Y96: =Table1343[[#This Row],[Wtd Site Total Cooling (TBtu)]]+Table1343[[#This Row],[Wtd Air Handlers Cool (Tbtu)]] -> 0.638918674
A97: Mobile Home | B97: 10096 | C97: Mountain North | D97: 1970s | E97: Siding | F97: central furnace | G97: N/A | H97: 10.89806791 | I97: 15199.53683 | J97: =IF(Table1343[[#This Row],[Housing Type]]="Multi-Family (2-4 units)",Table1343[[#This Row],[Number of Homes/ Units]]/3,IF(Table1343[[#This Row],[Housing Type]]="Multi-Family (5+ units)",Table1343[[#This Row],[Number of Homes/ Units]]/12.5720642567977,IF(Table1343[[#This Row],[Housing Type]]="Single Family Detached",Table1343[[#This Row],[Number of Homes/ Units]],IF(Table1343[[#This Row],[Housing Type]]="Single Family Attached",Table1343[[#This Row],[Number of Homes/ Units]],IF(Table1343[[#This Row],[Housing Type]]="Mobile Home",Table1343[[#This Row],[Number of Homes/ Units]]))))) -> 15199.53683 | K97: Cold/Very Cold | L97: 87.80140127 | M97: Metropolitan Area | N97: 0.3406900335 | O97: 0.444761095 | P97: 0.05982306663 | Q97: 0.003031137233 | R97: 0.2522324378 | S97: 1.097506633 | T97: 199.423 | U97: 0 | V97: =T97*Table1343[[#This Row],[Number of Buildings]]/1000000000 -> 0.003031137233 | W97: =U97*Table1343[[#This Row],[Number of Buildings]]/1000000000 -> 0 | X97: =Table1343[[#This Row],[Wtd Air Handlers Heat (Tbtu)]]+Table1343[[#This Row],[Wtd Site Space Heating (TBtu)]] -> 0.3437211707 | Y97: =Table1343[[#This Row],[Wtd Site Total Cooling (TBtu)]]+Table1343[[#This Row],[Wtd Air Handlers Cool (Tbtu)]] -> 0.05982306663
A98: Single Family Detached | B98: 10097 | C98: East South Central | D98: 1970s | E98: Siding | F98: central furnace | G98: central AC | H98: 28.74366738 | I98: 16084.87262 | J98: =IF(Table1343[[#This Row],[Housing Type]]="Multi-Family (2-4 units)",Table1343[[#This Row],[Number of Homes/ Units]]/3,IF(Table1343[[#This Row],[Housing Type]]="Multi-Family (5+ units)",Table1343[[#This Row],[Number of Homes/ Units]]/12.5720642567977,IF(Table1343[[#This Row],[Housing Type]]="Single Family Detached",Table1343[[#This Row],[Number of Homes/ Units]],IF(Table1343[[#This Row],[Housing Type]]="Single Family Attached",Table1343[[#This Row],[Number of Homes/ Units]],IF(Table1343[[#This Row],[Housing Type]]="Mobile Home",Table1343[[#This Row],[Number of Homes/ Units]]))))) -> 16084.87262 | K98: Hot-Humid | L98: 137.4883601 | M98: Metropolitan Area | N98: 0.03718005438 | O98: 0.1319382104 | P98: 0.1317228823 | Q98: 0.008069941442 | R98: 0.1682691444 | S98: 0.4691102915 | T98: 57.133 | U98: 444.577 | V98: =T98*Table1343[[#This Row],[Number of Buildings]]/1000000000 -> 0.0009189770274 | W98: =U98*Table1343[[#This Row],[Number of Buildings]]/1000000000 -> 0.007150964415 | X98: =Table1343[[#This Row],[Wtd Air Handlers Heat (Tbtu)]]+Table1343[[#This Row],[Wtd Site Space Heating (TBtu)]] -> 0.03809903141 | Y98: =Table1343[[#This Row],[Wtd Site Total Cooling (TBtu)]]+Table1343[[#This Row],[Wtd Air Handlers Cool (Tbtu)]] -> 0.1388738467
A99: Single Family Detached | B99: 10098 | C99: Pacific | D99: 1990s | E99: Wood | F99: radiator | G99: window/wall unit | H99: 105.1515933 | I99: 15836.08333 | J99: =IF(Table1343[[#This Row],[Housing Type]]="Multi-Family (2-4 units)",Table1343[[#This Row],[Number of Homes/ Units]]/3,IF(Table1343[[#This Row],[Housing Type]]="Multi-Family (5+ units)",Table1343[[#This Row],[Number of Homes/ Units]]/12.5720642567977,IF(Table1343[[#This Row],[Housing Type]]="Single Family Detached",Table1343[[#This Row],[Number of Homes/ Units]],IF(Table1343[[#This Row],[Housing Type]]="Single Family Attached",Table1343[[#This Row],[Number of Homes/ Units]],IF(Table1343[[#This Row],[Housing Type]]="Mobile Home",Table1343[[#This Row],[Number of Homes/ Units]]))))) -> 15836.08333 | K99: Marine | L99: 229.0684861 | M99: Micropolitan Area | N99: 1.384909781 | O99: 0.279267255 | P99: 0.01277013842 | Q99: 0.00092473225 | R99: 0.8113695683 | S99: 2.488316742 | T99: 58.394 | U99: 0 | V99: =T99*Table1343[[#This Row],[Number of Buildings]]/1000000000 -> 0.00092473225 | W99: =U99*Table1343[[#This Row],[Number of Buildings]]/1000000000 -> 0 | X99: =Table1343[[#This Row],[Wtd Air Handlers Heat (Tbtu)]]+Table1343[[#This Row],[Wtd Site Space Heating (TBtu)]] -> 1.385834513 | Y99: =Table1343[[#This Row],[Wtd Site Total Cooling (TBtu)]]+Table1343[[#This Row],[Wtd Air Handlers Cool (Tbtu)]] -> 0.01277013842
A100: Mobile Home | B100: 10099 | C100: East South Central | D100: 2000s | E100: Siding | F100: central furnace | G100: central AC | H100: 50.70471179 | I100: 39003.62446 | J100: =IF(Table1343[[#This Row],[Housing Type]]="Multi-Family (2-4 units)",Table1343[[#This Row],[Number of Homes/ Units]]/3,IF(Table1343[[#This Row],[Housing Type]]="Multi-Family (5+ units)",Table1343[[#This Row],[Number of Homes/ Units]]/12.5720642567977,IF(Table1343[[#This Row],[Housing Type]]="Single Family Detached",Table1343[[#This Row],[Number of Homes/ Units]],IF(Table1343[[#This Row],[Housing Type]]="Single Family Attached",Table1343[[#This Row],[Number of Homes/ Units]],IF(Table1343[[#This Row],[Housing Type]]="Mobile Home",Table1343[[#This Row],[Number of Homes/ Units]]))))) -> 39003.62446 | K100: Mixed-Humid | L100: 571.9330405 | M100: Micropolitan Area | N100: 0.610677408 | O100: 0.2708739703 | P100: 0.262412017 | Q100: 0.01747604198 | R100: 1.274286557 | S100: 2.418249952 | T100: 202.787 | U100: 245.275 | V100: =T100*Table1343[[#This Row],[Number of Buildings]]/1000000000 -> 0.007909427993 | W100: =U100*Table1343[[#This Row],[Number of Buildings]]/1000000000 -> 0.009566613989 | X100: =Table1343[[#This Row],[Wtd Air Handlers Heat (Tbtu)]]+Table1343[[#This Row],[Wtd Site Space Heating (TBtu)]] -> 0.6185868359 | Y100: =Table1343[[#This Row],[Wtd Site Total Cooling (TBtu)]]+Table1343[[#This Row],[Wtd Air Handlers Cool (Tbtu)]] -> 0.271978631
A101: Single Family Detached | B101: 10100 | C101: Pacific | D101: 2000s | E101: Siding | F101: central furnace | G101: N/A | H101: 25.36598586 | I101: 15373.32477 | J101: =IF(Table1343[[#This Row],[Housing Type]]="Multi-Family (2-4 units)",Table1343[[#This Row],[Number of Homes/ Units]]/3,IF(Table1343[[#This Row],[Housing Type]]="Multi-Family (5+ units)",Table1343[[#This Row],[Number of Homes/ Units]]/12.5720642567977,IF(Table1343[[#This Row],[Housing Type]]="Single Family Detached",Table1343[[#This Row],[Number of Homes/ Units]],IF(Table1343[[#This Row],[Housing Type]]="Single Family Attached",Table1343[[#This Row],[Number of Homes/ Units]],IF(Table1343[[#This Row],[Housing Type]]="Mobile Home",Table1343[[#This Row],[Number of Homes/ Units]]))))) -> 15373.32477 | K101: Marine | L101: 194.8056214 | M101: Rural | N101: 0.3319131872 | O101: 0.09001593585 | P101: 0 | Q101: 0.003845175991 | R101: 0.3838036466 | S101: 0.8057327696 | T101: 250.12 | U101: 0 | V101: =T101*Table1343[[#This Row],[Number of Buildings]]/1000000000 -> 0.003845175991 | W101: =U101*Table1343[[#This Row],[Number of Buildings]]/1000000000 -> 0 | X101: =Table1343[[#This Row],[Wtd Air Handlers Heat (Tbtu)]]+Table1343[[#This Row],[Wtd Site Space Heating (TBtu)]] -> 0.3357583632 | Y101: =Table1343[[#This Row],[Wtd Site Total Cooling (TBtu)]]+Table1343[[#This Row],[Wtd Air Handlers Cool (Tbtu)]] -> 0
A102: Single Family Detached | B102: 10101 | C102: East North Central | D102: 1950s | E102: Wood | F102: central furnace | G102: N/A | H102: 20.39328959 | I102: 22046.79956 | J102: =IF(Table1343[[#This Row],[Housing Type]]="Multi-Family (2-4 units)",Table1343[[#This Row],[Number of Homes/ Units]]/3,IF(Table1343[[#This Row],[Housing Type]]="Multi-Family (5+ units)",Table1343[[#This Row],[Number of Homes/ Units]]/12.5720642567977,IF(Table1343[[#This Row],[Housing Type]]="Single Family Detached",Table1343[[#This Row],[Number of Homes/ Units]],IF(Table1343[[#This Row],[Housing Type]]="Single Family Attached",Table1343[[#This Row],[Number of Homes/ Units]],IF(Table1343[[#This Row],[Housing Type]]="Mobile Home",Table1343[[#This Row],[Number of Homes/ Units]]))))) -> 22046.79956 | K102: Cold/Very Cold | L102: 104.673839 | M102: Metropolitan Area | N102: 1.47415782 | O102: 0.1998590663 | P102: 0 | Q102: 0.02154576399 | R102: 0.3356013214 | S102: 2.009618207 | T102: 977.274 | U102: 0 | V102: =T102*Table1343[[#This Row],[Number of Buildings]]/1000000000 -> 0.02154576399 | W102: =U102*Table1343[[#This Row],[Number of Buildings]]/1000000000 -> 0 | X102: =Table1343[[#This Row],[Wtd Air Handlers Heat (Tbtu)]]+Table1343[[#This Row],[Wtd Site Space Heating (TBtu)]] -> 1.495703584 | Y102: =Table1343[[#This Row],[Wtd Site Total Cooling (TBtu)]]+Table1343[[#This Row],[Wtd Air Handlers Cool (Tbtu)]] -> 0
A103: Multi-Family (5+ units) | B103: 10102 | C103: Pacific | D103: 2010s | E103: Siding | F103: built-in electric unit | G103: N/A | H103: 17.84448758 | I103: 8833.904741 | J103: =IF(Table1343[[#This Row],[Housing Type]]="Multi-Family (2-4 units)",Table1343[[#This Row],[Number of Homes/ Units]]/3,IF(Table1343[[#This Row],[Housing Type]]="Multi-Family (5+ units)",Table1343[[#This Row],[Number of Homes/ Units]]/12.5720642567977,IF(Table1343[[#This Row],[Housing Type]]="Single Family Detached",Table1343[[#This Row],[Number of Homes/ Units]],IF(Table1343[[#This Row],[Housing Type]]="Single Family Attached",Table1343[[#This Row],[Number of Homes/ Units]],IF(Table1343[[#This Row],[Housing Type]]="Mobile Home",Table1343[[#This Row],[Number of Homes/ Units]]))))) -> 702.6614373 | K103: Marine | L103: 82.62645273 | M103: Metropolitan Area | N103: 0.0346472546 | O103: 0.1057953467 | P103: 0 | Q103: 0 | R103: 0.1414788625 | S103: 0.2819214638 | T103: 0 | U103: 0 | V103: =T103*Table1343[[#This Row],[Number of Buildings]]/1000000000 -> 0 | W103: =U103*Table1343[[#This Row],[Number of Buildings]]/1000000000 -> 0 | X103: =Table1343[[#This Row],[Wtd Air Handlers Heat (Tbtu)]]+Table1343[[#This Row],[Wtd Site Space Heating (TBtu)]] -> 0.0346472546 | Y103: =Table1343[[#This Row],[Wtd Site Total Cooling (TBtu)]]+Table1343[[#This Row],[Wtd Air Handlers Cool (Tbtu)]] -> 0
A104: Single Family Detached | B104: 10103 | C104: Pacific | D104: 2000s | E104: Brick | F104: central furnace | G104: central AC | H104: 53.51170714 | I104: 15789.82211 | J104: =IF(Table1343[[#This Row],[Housing Type]]="Multi-Family (2-4 units)",Table1343[[#This Row],[Number of Homes/ Units]]/3,IF(Table1343[[#This Row],[Housing Type]]="Multi-Family (5+ units)",Table1343[[#This Row],[Number of Homes/ Units]]/12.5720642567977,IF(Table1343[[#This Row],[Housing Type]]="Single Family Detached",Table1343[[#This Row],[Number of Homes/ Units]],IF(Table1343[[#This Row],[Housing Type]]="Single Family Attached",Table1343[[#This Row],[Number of Homes/ Units]],IF(Table1343[[#This Row],[Housing Type]]="Mobile Home",Table1343[[#This Row],[Number of Homes/ Units]]))))) -> 15789.82211 | K104: Hot-Dry/Mixed-Dry | L104: 427.3831151 | M104: Metropolitan Area | N104: 0.2855068422 | O104: 0.4790977983 | P104: 0.2187662011 | Q104: 0.0184334015 | R104: 1.284763777 | S104: 2.268134618 | T104: 339.883 | U104: 827.54 | V104: =T104*Table1343[[#This Row],[Number of Buildings]]/1000000000 -> 0.005366692108 | W104: =U104*Table1343[[#This Row],[Number of Buildings]]/1000000000 -> 0.01306670939 | X104: =Table1343[[#This Row],[Wtd Air Handlers Heat (Tbtu)]]+Table1343[[#This Row],[Wtd Site Space Heating (TBtu)]] -> 0.2908735343 | Y104: =Table1343[[#This Row],[Wtd Site Total Cooling (TBtu)]]+Table1343[[#This Row],[Wtd Air Handlers Cool (Tbtu)]] -> 0.2318329105
A105: Single Family Detached | B105: 10104 | C105: South Atlantic | D105: 1990s | E105: Stucco | F105: heat pump | G105: central AC | H105: 62.31941398 | I105: 32627.96543 | J105: =IF(Table1343[[#This Row],[Housing Type]]="Multi-Family (2-4 units)",Table1343[[#This Row],[Number of Homes/ Units]]/3,IF(Table1343[[#This Row],[Housing Type]]="Multi-Family (5+ units)",Table1343[[#This Row],[Number of Homes/ Units]]/12.5720642567977,IF(Table1343[[#This Row],[Housing Type]]="Single Family Detached",Table1343[[#This Row],[Number of Homes/ Units]],IF(Table1343[[#This Row],[Housing Type]]="Single Family Attached",Table1343[[#This Row],[Number of Homes/ Units]],IF(Table1343[[#This Row],[Housing Type]]="Mobile Home",Table1343[[#This Row],[Number of Homes/ Units]]))))) -> 32627.96543 | K105: Hot-Humid | L105: 507.8184891 | M105: Metropolitan Area | N105: 0.04694808581 | O105: 0.2049320092 | P105: 0.4739233187 | Q105: 0.02566372198 | R105: 1.063101956 | S105: 1.78890537 | T105: 25.366 | U105: 761.19 | V105: =T105*Table1343[[#This Row],[Number of Buildings]]/1000000000 -> 0.0008276409711 | W105: =U105*Table1343[[#This Row],[Number of Buildings]]/1000000000 -> 0.02483608101 | X105: =Table1343[[#This Row],[Wtd Air Handlers Heat (Tbtu)]]+Table1343[[#This Row],[Wtd Site Space Heating (TBtu)]] -> 0.04777572678 | Y105: =Table1343[[#This Row],[Wtd Site Total Cooling (TBtu)]]+Table1343[[#This Row],[Wtd Air Handlers Cool (Tbtu)]] -> 0.4987593997
A106: Single Family Attached | B106: 10105 | C106: South Atlantic | D106: 1950s | E106: Brick | F106: central furnace | G106: window/wall unit | H106: 32.88092608 | I106: 20823.89239 | J106: =IF(Table1343[[#This Row],[Housing Type]]="Multi-Family (2-4 units)",Table1343[[#This Row],[Number of Homes/ Units]]/3,IF(Table1343[[#This Row],[Housing Type]]="Multi-Family (5+ units)",Table1343[[#This Row],[Number of Homes/ Units]]/12.5720642567977,IF(Table1343[[#This Row],[Housing Type]]="Single Family Detached",Table1343[[#This Row],[Number of Homes/ Units]],IF(Table1343[[#This Row],[Housing Type]]="Single Family Attached",Table1343[[#This Row],[Number of Homes/ Units]],IF(Table1343[[#This Row],[Housing Type]]="Mobile Home",Table1343[[#This Row],[Number of Homes/ Units]]))))) -> 20823.89239 | K106: Mixed-Humid | L106: 207.0567515 | M106: Metropolitan Area | N106: 1.433199104 | O106: 0.3470937837 | P106: 0.0958194541 | Q106: 0.01223210016 | R106: 0.313248399 | S106: 2.189360741 | T106: 587.407 | U106: 0 | V106: =T106*Table1343[[#This Row],[Number of Buildings]]/1000000000 -> 0.01223210016 | W106: =U106*Table1343[[#This Row],[Number of Buildings]]/1000000000 -> 0 | X106: =Table1343[[#This Row],[Wtd Air Handlers Heat (Tbtu)]]+Table1343[[#This Row],[Wtd Site Space Heating (TBtu)]] -> 1.445431205 | Y106: =Table1343[[#This Row],[Wtd Site Total Cooling (TBtu)]]+Table1343[[#This Row],[Wtd Air Handlers Cool (Tbtu)]] -> 0.0958194541
A107: Single Family Detached | B107: 10106 | C107: East North Central | D107: 2000s | E107: Siding | F107: central furnace | G107: central AC | H107: 100.4099432 | I107: 19391.64603 | J107: =IF(Table1343[[#This Row],[Housing Type]]="Multi-Family (2-4 units)",Table1343[[#This Row],[Number of Homes/ Units]]/3,IF(Table1343[[#This Row],[Housing Type]]="Multi-Family (5+ units)",Table1343[[#This Row],[Number of Homes/ Units]]/12.5720642567977,IF(Table1343[[#This Row],[Housing Type]]="Single Family Detached",Table1343[[#This Row],[Number of Homes/ Units]],IF(Table1343[[#This Row],[Housing Type]]="Single Family Attached",Table1343[[#This Row],[Number of Homes/ Units]],IF(Table1343[[#This Row],[Housing Type]]="Mobile Home",Table1343[[#This Row],[Number of Homes/ Units]]))))) -> 19391.64603 | K107: Cold/Very Cold | L107: 222.8718335 | M107: Metropolitan Area | N107: 2.745000258 | O107: 0.3592400549 | P107: 0.1056242016 | Q107: 0.08608360836 | R107: 0.6114357221 | S107: 3.821300237 | T107: 4078.024 | U107: 361.187 | V107: =T107*Table1343[[#This Row],[Number of Buildings]]/1000000000 -> 0.07907959791 | W107: =U107*Table1343[[#This Row],[Number of Buildings]]/1000000000 -> 0.007004010455 | X107: =Table1343[[#This Row],[Wtd Air Handlers Heat (Tbtu)]]+Table1343[[#This Row],[Wtd Site Space Heating (TBtu)]] -> 2.824079856 | Y107: =Table1343[[#This Row],[Wtd Site Total Cooling (TBtu)]]+Table1343[[#This Row],[Wtd Air Handlers Cool (Tbtu)]] -> 0.1126282121
A108: Single Family Detached | B108: 10107 | C108: Middle Atlantic | D108: Before 1950 | E108: Shingle | F108: radiator | G108: window/wall unit | H108: 127.5592896 | I108: 36156.26123 | J108: =IF(Table1343[[#This Row],[Housing Type]]="Multi-Family (2-4 units)",Table1343[[#This Row],[Number of Homes/ Units]]/3,IF(Table1343[[#This Row],[Housing Type]]="Multi-Family (5+ units)",Table1343[[#This Row],[Number of Homes/ Units]]/12.5720642567977,IF(Table1343[[#This Row],[Housing Type]]="Single Family Detached",Table1343[[#This Row],[Number of Homes/ Units]],IF(Table1343[[#This Row],[Housing Type]]="Single Family Attached",Table1343[[#This Row],[Number of Homes/ Units]],IF(Table1343[[#This Row],[Housing Type]]="Mobile Home",Table1343[[#This Row],[Number of Homes/ Units]]))))) -> 36156.26123 | K108: Mixed-Humid | L108: 1043.397351 | M108: Metropolitan Area | N108: 4.851945004 | O108: 1.059646155 | P108: 0.691767297 | Q108: 0.005941739189 | R108: 1.800558235 | S108: 8.403916691 | T108: 164.335 | U108: 0 | V108: =T108*Table1343[[#This Row],[Number of Buildings]]/1000000000 -> 0.005941739189 | W108: =U108*Table1343[[#This Row],[Number of Buildings]]/1000000000 -> 0 | X108: =Table1343[[#This Row],[Wtd Air Handlers Heat (Tbtu)]]+Table1343[[#This Row],[Wtd Site Space Heating (TBtu)]] -> 4.857886743 | Y108: =Table1343[[#This Row],[Wtd Site Total Cooling (TBtu)]]+Table1343[[#This Row],[Wtd Air Handlers Cool (Tbtu)]] -> 0.691767297
A109: Single Family Attached | B109: 10108 | C109: East North Central | D109: 1990s | E109: Brick | F109: central furnace | G109: central AC | H109: 23.59606331 | I109: 10303.95778 | J109: =IF(Table1343[[#This Row],[Housing Type]]="Multi-Family (2-4 units)",Table1343[[#This Row],[Number of Homes/ Units]]/3,IF(Table1343[[#This Row],[Housing Type]]="Multi-Family (5+ units)",Table1343[[#This Row],[Number of Homes/ Units]]/12.5720642567977,IF(Table1343[[#This Row],[Housing Type]]="Single Family Detached",Table1343[[#This Row],[Number of Homes/ Units]],IF(Table1343[[#This Row],[Housing Type]]="Single Family Attached",Table1343[[#This Row],[Number of Homes/ Units]],IF(Table1343[[#This Row],[Housing Type]]="Mobile Home",Table1343[[#This Row],[Number of Homes/ Units]]))))) -> 10303.95778 | K109: Cold/Very Cold | L109: 92.67379623 | M109: Metropolitan Area | N109: 0.5677064663 | O109: 0.09961761281 | P109: 0.01781469808 | Q109: 0.007569215257 | R109: 0.296422547 | S109: 0.9815613241 | T109: 646.833 | U109: 87.76 | V109: =T109*Table1343[[#This Row],[Number of Buildings]]/1000000000 -> 0.006664939923 | W109: =U109*Table1343[[#This Row],[Number of Buildings]]/1000000000 -> 0.0009042753348 | X109: =Table1343[[#This Row],[Wtd Air Handlers Heat (Tbtu)]]+Table1343[[#This Row],[Wtd Site Space Heating (TBtu)]] -> 0.5743714062 | Y109: =Table1343[[#This Row],[Wtd Site Total Cooling (TBtu)]]+Table1343[[#This Row],[Wtd Air Handlers Cool (Tbtu)]] -> 0.01871897341
A110: Single Family Detached | B110: 10109 | C110: South Atlantic | D110: 1990s | E110: Wood | F110: central furnace | G110: central AC | H110: 109.7816664 | I110: 16168.13938 | J110: =IF(Table1343[[#This Row],[Housing Type]]="Multi-Family (2-4 units)",Table1343[[#This Row],[Number of Homes/ Units]]/3,IF(Table1343[[#This Row],[Housing Type]]="Multi-Family (5+ units)",Table1343[[#This Row],[Number of Homes/ Units]]/12.5720642567977,IF(Table1343[[#This Row],[Housing Type]]="Single Family Detached",Table1343[[#This Row],[Number of Homes/ Units]],IF(Table1343[[#This Row],[Housing Type]]="Single Family Attached",Table1343[[#This Row],[Number of Homes/ Units]],IF(Table1343[[#This Row],[Housing Type]]="Mobile Home",Table1343[[#This Row],[Number of Homes/ Units]]))))) -> 16168.13938 | K110: Mixed-Humid | L110: 289.991748 | M110: Metropolitan Area | N110: 1.178011541 | O110: 0.2854535452 | P110: 0.262033769 | Q110: 0.04921877504 | R110: 0.4594285455 | S110: 2.1849274 | T110: 1901.256 | U110: 1142.927 | V110: =T110*Table1343[[#This Row],[Number of Buildings]]/1000000000 -> 0.03073977201 | W110: =U110*Table1343[[#This Row],[Number of Buildings]]/1000000000 -> 0.01847900304 | X110: =Table1343[[#This Row],[Wtd Air Handlers Heat (Tbtu)]]+Table1343[[#This Row],[Wtd Site Space Heating (TBtu)]] -> 1.208751313 | Y110: =Table1343[[#This Row],[Wtd Site Total Cooling (TBtu)]]+Table1343[[#This Row],[Wtd Air Handlers Cool (Tbtu)]] -> 0.280512772
A111: Single Family Detached | B111: 10110 | C111: East South Central | D111: 1960s | E111: Siding | F111: central furnace | G111: central AC | H111: 47.4856367 | I111: 18658.40342 | J111: =IF(Table1343[[#This Row],[Housing Type]]="Multi-Family (2-4 units)",Table1343[[#This Row],[Number of Homes/ Units]]/3,IF(Table1343[[#This Row],[Housing Type]]="Multi-Family (5+ units)",Table1343[[#This Row],[Number of Homes/ Units]]/12.5720642567977,IF(Table1343[[#This Row],[Housing Type]]="Single Family Detached",Table1343[[#This Row],[Number of Homes/ Units]],IF(Table1343[[#This Row],[Housing Type]]="Single Family Attached",Table1343[[#This Row],[Number of Homes/ Units]],IF(Table1343[[#This Row],[Housing Type]]="Mobile Home",Table1343[[#This Row],[Number of Homes/ Units]]))))) -> 18658.40342 | K111: Mixed-Humid | L111: 345.9507941 | M111: Metropolitan Area | N111: 0.5353701033 | O111: 0.1642266956 | P111: 0.2675471567 | Q111: 0.02276286035 | R111: 0.213240157 | S111: 1.180384113 | T111: 532.133 | U111: 687.846 | V111: =T111*Table1343[[#This Row],[Number of Buildings]]/1000000000 -> 0.009928752187 | W111: =U111*Table1343[[#This Row],[Number of Buildings]]/1000000000 -> 0.01283410816 | X111: =Table1343[[#This Row],[Wtd Air Handlers Heat (Tbtu)]]+Table1343[[#This Row],[Wtd Site Space Heating (TBtu)]] -> 0.5452988555 | Y111: =Table1343[[#This Row],[Wtd Site Total Cooling (TBtu)]]+Table1343[[#This Row],[Wtd Air Handlers Cool (Tbtu)]] -> 0.2803812649
A112: Single Family Detached | B112: 10111 | C112: East South Central | D112: 1970s | E112: Brick | F112: heat pump | G112: central AC | H112: 26.00697661 | I112: 11114.09257 | J112: =IF(Table1343[[#This Row],[Housing Type]]="Multi-Family (2-4 units)",Table1343[[#This Row],[Number of Homes/ Units]]/3,IF(Table1343[[#This Row],[Housing Type]]="Multi-Family (5+ units)",Table1343[[#This Row],[Number of Homes/ Units]]/12.5720642567977,IF(Table1343[[#This Row],[Housing Type]]="Single Family Detached",Table1343[[#This Row],[Number of Homes/ Units]],IF(Table1343[[#This Row],[Housing Type]]="Single Family Attached",Table1343[[#This Row],[Number of Homes/ Units]],IF(Table1343[[#This Row],[Housing Type]]="Mobile Home",Table1343[[#This Row],[Number of Homes/ Units]]))))) -> 11114.09257 | K112: Mixed-Humid | L112: 216.103394 | M112: Micropolitan Area | N112: 0.192403025 | O112: 0.1849912256 | P112: 0.1267056566 | Q112: 0.01177162451 | R112: 0.233244859 | S112: 0.7373447663 | T112: 452.043 | U112: 607.119 | V112: =T112*Table1343[[#This Row],[Number of Buildings]]/1000000000 -> 0.005024047748 | W112: =U112*Table1343[[#This Row],[Number of Buildings]]/1000000000 -> 0.006747576767 | X112: =Table1343[[#This Row],[Wtd Air Handlers Heat (Tbtu)]]+Table1343[[#This Row],[Wtd Site Space Heating (TBtu)]] -> 0.1974270728 | Y112: =Table1343[[#This Row],[Wtd Site Total Cooling (TBtu)]]+Table1343[[#This Row],[Wtd Air Handlers Cool (Tbtu)]] -> 0.1334532334
A113: Single Family Attached | B113: 10112 | C113: South Atlantic | D113: 1970s | E113: Concrete | F113: heat pump | G113: central AC | H113: 29.06774822 | I113: 11534.82072 | J113: =IF(Table1343[[#This Row],[Housing Type]]="Multi-Family (2-4 units)",Table1343[[#This Row],[Number of Homes/ Units]]/3,IF(Table1343[[#This Row],[Housing Type]]="Multi-Family (5+ units)",Table1343[[#This Row],[Number of Homes/ Units]]/12.5720642567977,IF(Table1343[[#This Row],[Housing Type]]="Single Family Detached",Table1343[[#This Row],[Number of Homes/ Units]],IF(Table1343[[#This Row],[Housing Type]]="Single Family Attached",Table1343[[#This Row],[Number of Homes/ Units]],IF(Table1343[[#This Row],[Housing Type]]="Mobile Home",Table1343[[#This Row],[Number of Homes/ Units]]))))) -> 11534.82072 | K113: Mixed-Humid | L113: 189.2464168 | M113: Metropolitan Area | N113: 0.5893821844 | O113: 0.1762566053 | P113: 0.1938074233 | Q113: 0.0269711446 | R113: 0.3453409514 | S113: 1.304787164 | T113: 1473.202 | U113: 865.035 | V113: =T113*Table1343[[#This Row],[Number of Buildings]]/1000000000 -> 0.01699312095 | W113: =U113*Table1343[[#This Row],[Number of Buildings]]/1000000000 -> 0.009978023642 | X113: =Table1343[[#This Row],[Wtd Air Handlers Heat (Tbtu)]]+Table1343[[#This Row],[Wtd Site Space Heating (TBtu)]] -> 0.6063753054 | Y113: =Table1343[[#This Row],[Wtd Site Total Cooling (TBtu)]]+Table1343[[#This Row],[Wtd Air Handlers Cool (Tbtu)]] -> 0.203785447
A114: Single Family Detached | B114: 10113 | C114: East North Central | D114: 1980s | E114: Wood | F114: central furnace | G114: central AC | H114: 44.14049175 | I114: 23342.40706 | J114: =IF(Table1343[[#This Row],[Housing Type]]="Multi-Family (2-4 units)",Table1343[[#This Row],[Number of Homes/ Units]]/3,IF(Table1343[[#This Row],[Housing Type]]="Multi-Family (5+ units)",Table1343[[#This Row],[Number of Homes/ Units]]/12.5720642567977,IF(Table1343[[#This Row],[Housing Type]]="Single Family Detached",Table1343[[#This Row],[Number of Homes/ Units]],IF(Table1343[[#This Row],[Housing Type]]="Single Family Attached",Table1343[[#This Row],[Number of Homes/ Units]],IF(Table1343[[#This Row],[Housing Type]]="Mobile Home",Table1343[[#This Row],[Number of Homes/ Units]]))))) -> 23342.40706 | K114: Cold/Very Cold | L114: 159.4896806 | M114: Metropolitan Area | N114: 1.304024224 | O114: 0.182595279 | P114: 0.04698406378 | Q114: 0.0241864685 | R114: 0.2926826691 | S114: 1.826286236 | T114: 938.926 | U114: 97.234 | V114: =T114*Table1343[[#This Row],[Number of Buildings]]/1000000000 -> 0.02191679289 | W114: =U114*Table1343[[#This Row],[Number of Buildings]]/1000000000 -> 0.002269675608 | X114: =Table1343[[#This Row],[Wtd Air Handlers Heat (Tbtu)]]+Table1343[[#This Row],[Wtd Site Space Heating (TBtu)]] -> 1.325941017 | Y114: =Table1343[[#This Row],[Wtd Site Total Cooling (TBtu)]]+Table1343[[#This Row],[Wtd Air Handlers Cool (Tbtu)]] -> 0.04925373939
A115: Multi-Family (2-4 units) | B115: 10114 | C115: South Atlantic | D115: Before 1950 | E115: Brick | F115: central furnace | G115: central AC | H115: 40.63447151 | I115: 31646.78467 | J115: =IF(Table1343[[#This Row],[Housing Type]]="Multi-Family (2-4 units)",Table1343[[#This Row],[Number of Homes/ Units]]/3,IF(Table1343[[#This Row],[Housing Type]]="Multi-Family (5+ units)",Table1343[[#This Row],[Number of Homes/ Units]]/12.5720642567977,IF(Table1343[[#This Row],[Housing Type]]="Single Family Detached",Table1343[[#This Row],[Number of Homes/ Units]],IF(Table1343[[#This Row],[Housing Type]]="Single Family Attached",Table1343[[#This Row],[Number of Homes/ Units]],IF(Table1343[[#This Row],[Housing Type]]="Mobile Home",Table1343[[#This Row],[Number of Homes/ Units]]))))) -> 10548.92822 | K115: Mixed-Humid | L115: 303.8724264 | M115: Metropolitan Area | N115: 0.5752128654 | O115: 0.1811274606 | P115: 0.1147763793 | Q115: 0.01352596236 | R115: 0.2459296005 | S115: 1.126063614 | T115: 258.872 | U115: 168.532 | V115: =T115*Table1343[[#This Row],[Number of Buildings]]/1000000000 -> 0.002730822147 | W115: =U115*Table1343[[#This Row],[Number of Buildings]]/1000000000 -> 0.001777831971 | X115: =Table1343[[#This Row],[Wtd Air Handlers Heat (Tbtu)]]+Table1343[[#This Row],[Wtd Site Space Heating (TBtu)]] -> 0.5779436875 | Y115: =Table1343[[#This Row],[Wtd Site Total Cooling (TBtu)]]+Table1343[[#This Row],[Wtd Air Handlers Cool (Tbtu)]] -> 0.1165542113
A116: Single Family Detached | B116: 10115 | C116: East North Central | D116: 1950s | E116: Brick | F116: central furnace | G116: central AC | H116: 17.65478812 | I116: 21322.20787 | J116: =IF(Table1343[[#This Row],[Housing Type]]="Multi-Family (2-4 units)",Table1343[[#This Row],[Number of Homes/ Units]]/3,IF(Table1343[[#This Row],[Housing Type]]="Multi-Family (5+ units)",Table1343[[#This Row],[Number of Homes/ Units]]/12.5720642567977,IF(Table1343[[#This Row],[Housing Type]]="Single Family Detached",Table1343[[#This Row],[Number of Homes/ Units]],IF(Table1343[[#This Row],[Housing Type]]="Single Family Attached",Table1343[[#This Row],[Number of Homes/ Units]],IF(Table1343[[#This Row],[Housing Type]]="Mobile Home",Table1343[[#This Row],[Number of Homes/ Units]]))))) -> 21322.20787 | K116: Cold/Very Cold | L116: 33.20929612 | M116: Metropolitan Area | N116: 2.433764611 | O116: 0.2145203453 | P116: 0.01385137532 | Q116: 0.005573987615 | R116: 0.1279110295 | S116: 2.790047361 | T116: 228.155 | U116: 33.262 | V116: =T116*Table1343[[#This Row],[Number of Buildings]]/1000000000 -> 0.004864768337 | W116: =U116*Table1343[[#This Row],[Number of Buildings]]/1000000000 -> 0.0007092192782 | X116: =Table1343[[#This Row],[Wtd Air Handlers Heat (Tbtu)]]+Table1343[[#This Row],[Wtd Site Space Heating (TBtu)]] -> 2.438629379 | Y116: =Table1343[[#This Row],[Wtd Site Total Cooling (TBtu)]]+Table1343[[#This Row],[Wtd Air Handlers Cool (Tbtu)]] -> 0.0145605946
A117: Single Family Detached | B117: 10116 | C117: West South Central | D117: 1980s | E117: Wood | F117: portable electric heaters | G117: N/A | H117: 21.19621517 | I117: 23815.9721 | J117: =IF(Table1343[[#This Row],[Housing Type]]="Multi-Family (2-4 units)",Table1343[[#This Row],[Number of Homes/ Units]]/3,IF(Table1343[[#This Row],[Housing Type]]="Multi-Family (5+ units)",Table1343[[#This Row],[Number of Homes/ Units]]/12.5720642567977,IF(Table1343[[#This Row],[Housing Type]]="Single Family Detached",Table1343[[#This Row],[Number of Homes/ Units]],IF(Table1343[[#This Row],[Housing Type]]="Single Family Attached",Table1343[[#This Row],[Number of Homes/ Units]],IF(Table1343[[#This Row],[Housing Type]]="Mobile Home",Table1343[[#This Row],[Number of Homes/ Units]]))))) -> 23815.9721 | K117: Mixed-Humid | L117: 181.0428278 | M117: Metropolitan Area | N117: 0.4350963521 | O117: 0.6323684073 | P117: 0 | Q117: 0 | R117: 0.215788783 | S117: 1.283253542 | T117: 0 | U117: 0 | V117: =T117*Table1343[[#This Row],[Number of Buildings]]/1000000000 -> 0 | W117: =U117*Table1343[[#This Row],[Number of Buildings]]/1000000000 -> 0 | X117: =Table1343[[#This Row],[Wtd Air Handlers Heat (Tbtu)]]+Table1343[[#This Row],[Wtd Site Space Heating (TBtu)]] -> 0.4350963521 | Y117: =Table1343[[#This Row],[Wtd Site Total Cooling (TBtu)]]+Table1343[[#This Row],[Wtd Air Handlers Cool (Tbtu)]] -> 0
A118: Multi-Family (5+ units) | B118: 10117 | C118: East North Central | D118: 1960s | E118: Brick | F118: radiator | G118: both central and individual units | H118: 11.3031494 | I118: 14853.02155 | J118: =IF(Table1343[[#This Row],[Housing Type]]="Multi-Family (2-4 units)",Table1343[[#This Row],[Number of Homes/ Units]]/3,IF(Table1343[[#This Row],[Housing Type]]="Multi-Family (5+ units)",Table1343[[#This Row],[Number of Homes/ Units]]/12.5720642567977,IF(Table1343[[#This Row],[Housing Type]]="Single Family Detached",Table1343[[#This Row],[Number of Homes/ Units]],IF(Table1343[[#This Row],[Housing Type]]="Single Family Attached",Table1343[[#This Row],[Number of Homes/ Units]],IF(Table1343[[#This Row],[Housing Type]]="Mobile Home",Table1343[[#This Row],[Number of Homes/ Units]]))))) -> 1181.43061 | K118: Cold/Very Cold | L118: 23.69457968 | M118: Metropolitan Area | N118: 0.258168229 | O118: 0.156572488 | P118: 0.005885052609 | Q118: 0.0005784063652 | R118: 0.07047617622 | S118: 0.4916343449 | T118: 22.935 | U118: 16.007 | V118: =T118*Table1343[[#This Row],[Number of Buildings]]/1000000000 -> 2.709611105e-05 | W118: =U118*Table1343[[#This Row],[Number of Buildings]]/1000000000 -> 1.891115978e-05 | X118: =Table1343[[#This Row],[Wtd Air Handlers Heat (Tbtu)]]+Table1343[[#This Row],[Wtd Site Space Heating (TBtu)]] -> 0.2581953251 | Y118: =Table1343[[#This Row],[Wtd Site Total Cooling (TBtu)]]+Table1343[[#This Row],[Wtd Air Handlers Cool (Tbtu)]] -> 0.005903963769
A119: Mobile Home | B119: 10118 | C119: West South Central | D119: 2000s | E119: Siding | F119: central furnace | G119: central AC | H119: 52.4074206 | I119: 38762.88506 | J119: =IF(Table1343[[#This Row],[Housing Type]]="Multi-Family (2-4 units)",Table1343[[#This Row],[Number of Homes/ Units]]/3,IF(Table1343[[#This Row],[Housing Type]]="Multi-Family (5+ units)",Table1343[[#This Row],[Number of Homes/ Units]]/12.5720642567977,IF(Table1343[[#This Row],[Housing Type]]="Single Family Detached",Table1343[[#This Row],[Number of Homes/ Units]],IF(Table1343[[#This Row],[Housing Type]]="Single Family Attached",Table1343[[#This Row],[Number of Homes/ Units]],IF(Table1343[[#This Row],[Housing Type]]="Mobile Home",Table1343[[#This Row],[Number of Homes/ Units]]))))) -> 38762.88506 | K119: Hot-Humid | L119: 683.9711069 | M119: Rural | N119: 0.6691217821 | O119: 0.5635162943 | P119: 0.3864482494 | Q119: 0.02475304809 | R119: 0.7145944063 | S119: 2.333680732 | T119: 256.76 | U119: 381.816 | V119: =T119*Table1343[[#This Row],[Number of Buildings]]/1000000000 -> 0.009952758368 | W119: =U119*Table1343[[#This Row],[Number of Buildings]]/1000000000 -> 0.01480028972 | X119: =Table1343[[#This Row],[Wtd Air Handlers Heat (Tbtu)]]+Table1343[[#This Row],[Wtd Site Space Heating (TBtu)]] -> 0.6790745405 | Y119: =Table1343[[#This Row],[Wtd Site Total Cooling (TBtu)]]+Table1343[[#This Row],[Wtd Air Handlers Cool (Tbtu)]] -> 0.4012485391
A120: Single Family Detached | B120: 10119 | C120: Mountain South | D120: 1960s | E120: Concrete | F120: central furnace | G120: central AC | H120: 36.66318593 | I120: 23233.95813 | J120: =IF(Table1343[[#This Row],[Housing Type]]="Multi-Family (2-4 units)",Table1343[[#This Row],[Number of Homes/ Units]]/3,IF(Table1343[[#This Row],[Housing Type]]="Multi-Family (5+ units)",Table1343[[#This Row],[Number of Homes/ Units]]/12.5720642567977,IF(Table1343[[#This Row],[Housing Type]]="Single Family Detached",Table1343[[#This Row],[Number of Homes/ Units]],IF(Table1343[[#This Row],[Housing Type]]="Single Family Attached",Table1343[[#This Row],[Number of Homes/ Units]],IF(Table1343[[#This Row],[Housing Type]]="Mobile Home",Table1343[[#This Row],[Number of Homes/ Units]]))))) -> 23233.95813 | K120: Hot-Dry/Mixed-Dry | L120: 315.2151099 | M120: Metropolitan Area | N120: 0.2433835877 | O120: 0.2389861197 | P120: 0.5751241292 | Q120: 0.03307827913 | R120: 0.5194705747 | S120: 1.576964411 | T120: 241.911 | U120: 1181.793 | V120: =T120*Table1343[[#This Row],[Number of Buildings]]/1000000000 -> 0.005620550045 | W120: =U120*Table1343[[#This Row],[Number of Buildings]]/1000000000 -> 0.02745772908 | X120: =Table1343[[#This Row],[Wtd Air Handlers Heat (Tbtu)]]+Table1343[[#This Row],[Wtd Site Space Heating (TBtu)]] -> 0.2490041378 | Y120: =Table1343[[#This Row],[Wtd Site Total Cooling (TBtu)]]+Table1343[[#This Row],[Wtd Air Handlers Cool (Tbtu)]] -> 0.6025818583
A121: Single Family Detached | B121: 10120 | C121: Middle Atlantic | D121: 1950s | E121: Siding | F121: central furnace | G121: central AC | H121: 34.47389037 | I121: 27469.23535 | J121: =IF(Table1343[[#This Row],[Housing Type]]="Multi-Family (2-4 units)",Table1343[[#This Row],[Number of Homes/ Units]]/3,IF(Table1343[[#This Row],[Housing Type]]="Multi-Family (5+ units)",Table1343[[#This Row],[Number of Homes/ Units]]/12.5720642567977,IF(Table1343[[#This Row],[Housing Type]]="Single Family Detached",Table1343[[#This Row],[Number of Homes/ Units]],IF(Table1343[[#This Row],[Housing Type]]="Single Family Attached",Table1343[[#This Row],[Number of Homes/ Units]],IF(Table1343[[#This Row],[Housing Type]]="Mobile Home",Table1343[[#This Row],[Number of Homes/ Units]]))))) -> 27469.23535 | K121: Mixed-Humid | L121: 190.3517198 | M121: Metropolitan Area | N121: 1.271718632 | O121: 0.2421953416 | P121: 0.2390085532 | Q121: 0.04106985809 | R121: 0.4570933228 | S121: 2.210015849 | T121: 1134.664 | U121: 360.458 | V121: =T121*Table1343[[#This Row],[Number of Buildings]]/1000000000 -> 0.03116835246 | W121: =U121*Table1343[[#This Row],[Number of Buildings]]/1000000000 -> 0.009901505636 | X121: =Table1343[[#This Row],[Wtd Air Handlers Heat (Tbtu)]]+Table1343[[#This Row],[Wtd Site Space Heating (TBtu)]] -> 1.302886984 | Y121: =Table1343[[#This Row],[Wtd Site Total Cooling (TBtu)]]+Table1343[[#This Row],[Wtd Air Handlers Cool (Tbtu)]] -> 0.2489100588
A122: Multi-Family (5+ units) | B122: 10121 | C122: Middle Atlantic | D122: 2000s | E122: Wood | F122: radiator | G122: window/wall unit | H122: 12.95057106 | I122: 21161.06383 | J122: =IF(Table1343[[#This Row],[Housing Type]]="Multi-Family (2-4 units)",Table1343[[#This Row],[Number of Homes/ Units]]/3,IF(Table1343[[#This Row],[Housing Type]]="Multi-Family (5+ units)",Table1343[[#This Row],[Number of Homes/ Units]]/12.5720642567977,IF(Table1343[[#This Row],[Housing Type]]="Single Family Detached",Table1343[[#This Row],[Number of Homes/ Units]],IF(Table1343[[#This Row],[Housing Type]]="Single Family Attached",Table1343[[#This Row],[Number of Homes/ Units]],IF(Table1343[[#This Row],[Housing Type]]="Mobile Home",Table1343[[#This Row],[Number of Homes/ Units]]))))) -> 1683.181329 | K122: Mixed-Humid | L122: 112.1191035 | M122: Metropolitan Area | N122: 0.1698644747 | O122: 0.3486899148 | P122: 0.04339349116 | Q122: 0.001826115164 | R122: 0.3482146162 | S122: 0.9118433603 | T122: 86.296 | U122: 0 | V122: =T122*Table1343[[#This Row],[Number of Buildings]]/1000000000 -> 0.000145251816 | W122: =U122*Table1343[[#This Row],[Number of Buildings]]/1000000000 -> 0 | X122: =Table1343[[#This Row],[Wtd Air Handlers Heat (Tbtu)]]+Table1343[[#This Row],[Wtd Site Space Heating (TBtu)]] -> 0.1700097266 | Y122: =Table1343[[#This Row],[Wtd Site Total Cooling (TBtu)]]+Table1343[[#This Row],[Wtd Air Handlers Cool (Tbtu)]] -> 0.04339349116
A123: Multi-Family (5+ units) | B123: 10122 | C123: South Atlantic | D123: 2010s | E123: Brick | F123: built-in electric unit | G123: window/wall unit | H123: 15.13865371 | I123: 12238.20025 | J123: =IF(Table1343[[#This Row],[Housing Type]]="Multi-Family (2-4 units)",Table1343[[#This Row],[Number of Homes/ Units]]/3,IF(Table1343[[#This Row],[Housing Type]]="Multi-Family (5+ units)",Table1343[[#This Row],[Number of Homes/ Units]]/12.5720642567977,IF(Table1343[[#This Row],[Housing Type]]="Single Family Detached",Table1343[[#This Row],[Number of Homes/ Units]],IF(Table1343[[#This Row],[Housing Type]]="Single Family Attached",Table1343[[#This Row],[Number of Homes/ Units]],IF(Table1343[[#This Row],[Housing Type]]="Mobile Home",Table1343[[#This Row],[Number of Homes/ Units]]))))) -> 973.4439787 | K123: Mixed-Humid | L123: 91.97007487 | M123: Metropolitan Area | N123: 0.06580720143 | O123: 0.158037436 | P123: 0.01839459017 | Q123: 0 | R123: 0.07156046504 | S123: 0.3137996926 | T123: 0 | U123: 0 | V123: =T123*Table1343[[#This Row],[Number of Buildings]]/1000000000 -> 0 | W123: =U123*Table1343[[#This Row],[Number of Buildings]]/1000000000 -> 0 | X123: =Table1343[[#This Row],[Wtd Air Handlers Heat (Tbtu)]]+Table1343[[#This Row],[Wtd Site Space Heating (TBtu)]] -> 0.06580720143 | Y123: =Table1343[[#This Row],[Wtd Site Total Cooling (TBtu)]]+Table1343[[#This Row],[Wtd Air Handlers Cool (Tbtu)]] -> 0.01839459017
A124: Single Family Detached | B124: 10123 | C124: West South Central | D124: 1950s | E124: Shingle | F124: portable electric heaters | G124: N/A | H124: 50.31021392 | I124: 26340.42614 | J124: =IF(Table1343[[#This Row],[Housing Type]]="Multi-Family (2-4 units)",Table1343[[#This Row],[Number of Homes/ Units]]/3,IF(Table1343[[#This Row],[Housing Type]]="Multi-Family (5+ units)",Table1343[[#This Row],[Number of Homes/ Units]]/12.5720642567977,IF(Table1343[[#This Row],[Housing Type]]="Single Family Detached",Table1343[[#This Row],[Number of Homes/ Units]],IF(Table1343[[#This Row],[Housing Type]]="Single Family Attached",Table1343[[#This Row],[Number of Homes/ Units]],IF(Table1343[[#This Row],[Housing Type]]="Mobile Home",Table1343[[#This Row],[Number of Homes/ Units]]))))) -> 26340.42614 | K124: Hot-Humid | L124: 329.7820035 | M124: Metropolitan Area | N124: 0.8679846835 | O124: 0.2907175975 | P124: 0 | Q124: 0 | R124: 0.3099396025 | S124: 1.468641884 | T124: 0 | U124: 0 | V124: =T124*Table1343[[#This Row],[Number of Buildings]]/1000000000 -> 0 | W124: =U124*Table1343[[#This Row],[Number of Buildings]]/1000000000 -> 0 | X124: =Table1343[[#This Row],[Wtd Air Handlers Heat (Tbtu)]]+Table1343[[#This Row],[Wtd Site Space Heating (TBtu)]] -> 0.8679846835 | Y124: =Table1343[[#This Row],[Wtd Site Total Cooling (TBtu)]]+Table1343[[#This Row],[Wtd Air Handlers Cool (Tbtu)]] -> 0
A125: Single Family Detached | B125: 10124 | C125: East North Central | D125: 1990s | E125: Siding | F125: central furnace | G125: central AC | H125: 18.90379071 | I125: 17986.48022 | J125: =IF(Table1343[[#This Row],[Housing Type]]="Multi-Family (2-4 units)",Table1343[[#This Row],[Number of Homes/ Units]]/3,IF(Table1343[[#This Row],[Housing Type]]="Multi-Family (5+ units)",Table1343[[#This Row],[Number of Homes/ Units]]/12.5720642567977,IF(Table1343[[#This Row],[Housing Type]]="Single Family Detached",Table1343[[#This Row],[Number of Homes/ Units]],IF(Table1343[[#This Row],[Housing Type]]="Single Family Attached",Table1343[[#This Row],[Number of Homes/ Units]],IF(Table1343[[#This Row],[Housing Type]]="Mobile Home",Table1343[[#This Row],[Number of Homes/ Units]]))))) -> 17986.48022 | K125: Cold/Very Cold | L125: 242.0426075 | M125: Metropolitan Area | N125: 0.5228907042 | O125: 0.1012465447 | P125: 0.04416711519 | Q125: 0.01069625402 | R125: 0.1575450372 | S125: 0.8258494012 | T125: 488.939 | U125: 105.744 | V125: =T125*Table1343[[#This Row],[Number of Buildings]]/1000000000 -> 0.008794291652 | W125: =U125*Table1343[[#This Row],[Number of Buildings]]/1000000000 -> 0.001901962364 | X125: =Table1343[[#This Row],[Wtd Air Handlers Heat (Tbtu)]]+Table1343[[#This Row],[Wtd Site Space Heating (TBtu)]] -> 0.5316849958 | Y125: =Table1343[[#This Row],[Wtd Site Total Cooling (TBtu)]]+Table1343[[#This Row],[Wtd Air Handlers Cool (Tbtu)]] -> 0.04606907756
A126: Single Family Detached | B126: 10125 | C126: Pacific | D126: 1950s | E126: Wood | F126: central furnace | G126: N/A | H126: 14.76793152 | I126: 18646.37818 | J126: =IF(Table1343[[#This Row],[Housing Type]]="Multi-Family (2-4 units)",Table1343[[#This Row],[Number of Homes/ Units]]/3,IF(Table1343[[#This Row],[Housing Type]]="Multi-Family (5+ units)",Table1343[[#This Row],[Number of Homes/ Units]]/12.5720642567977,IF(Table1343[[#This Row],[Housing Type]]="Single Family Detached",Table1343[[#This Row],[Number of Homes/ Units]],IF(Table1343[[#This Row],[Housing Type]]="Single Family Attached",Table1343[[#This Row],[Number of Homes/ Units]],IF(Table1343[[#This Row],[Housing Type]]="Mobile Home",Table1343[[#This Row],[Number of Homes/ Units]]))))) -> 18646.37818 | K126: Marine | L126: 172.814633 | M126: Metropolitan Area | N126: 0.3646381484 | O126: 0.7314190639 | P126: 0 | Q126: 0.004959414497 | R126: 0.2602351936 | S126: 1.356292406 | T126: 265.972 | U126: 0 | V126: =T126*Table1343[[#This Row],[Number of Buildings]]/1000000000 -> 0.004959414497 | W126: =U126*Table1343[[#This Row],[Number of Buildings]]/1000000000 -> 0 | X126: =Table1343[[#This Row],[Wtd Air Handlers Heat (Tbtu)]]+Table1343[[#This Row],[Wtd Site Space Heating (TBtu)]] -> 0.3695975629 | Y126: =Table1343[[#This Row],[Wtd Site Total Cooling (TBtu)]]+Table1343[[#This Row],[Wtd Air Handlers Cool (Tbtu)]] -> 0
A127: Single Family Detached | B127: 10126 | C127: Pacific | D127: 1950s | E127: Concrete | F127: central furnace | G127: N/A | H127: 48.86448258 | I127: 10414.4251 | J127: =IF(Table1343[[#This Row],[Housing Type]]="Multi-Family (2-4 units)",Table1343[[#This Row],[Number of Homes/ Units]]/3,IF(Table1343[[#This Row],[Housing Type]]="Multi-Family (5+ units)",Table1343[[#This Row],[Number of Homes/ Units]]/12.5720642567977,IF(Table1343[[#This Row],[Housing Type]]="Single Family Detached",Table1343[[#This Row],[Number of Homes/ Units]],IF(Table1343[[#This Row],[Housing Type]]="Single Family Attached",Table1343[[#This Row],[Number of Homes/ Units]],IF(Table1343[[#This Row],[Housing Type]]="Mobile Home",Table1343[[#This Row],[Number of Homes/ Units]]))))) -> 10414.4251 | K127: Marine | L127: 40.03715338 | M127: Metropolitan Area | N127: 0.3873141983 | O127: 0.09056363238 | P127: 0 | Q127: 0.004367153778 | R127: 0.1270969878 | S127: 0.6049748185 | T127: 419.337 | U127: 0 | V127: =T127*Table1343[[#This Row],[Number of Buildings]]/1000000000 -> 0.004367153778 | W127: =U127*Table1343[[#This Row],[Number of Buildings]]/1000000000 -> 0 | X127: =Table1343[[#This Row],[Wtd Air Handlers Heat (Tbtu)]]+Table1343[[#This Row],[Wtd Site Space Heating (TBtu)]] -> 0.391681352 | Y127: =Table1343[[#This Row],[Wtd Site Total Cooling (TBtu)]]+Table1343[[#This Row],[Wtd Air Handlers Cool (Tbtu)]] -> 0
A128: Mobile Home | B128: 10127 | C128: South Atlantic | D128: 1990s | E128: Siding | F128: central furnace | G128: central AC | H128: 70.24705498 | I128: 52034.85554 | J128: =IF(Table1343[[#This Row],[Housing Type]]="Multi-Family (2-4 units)",Table1343[[#This Row],[Number of Homes/ Units]]/3,IF(Table1343[[#This Row],[Housing Type]]="Multi-Family (5+ units)",Table1343[[#This Row],[Number of Homes/ Units]]/12.5720642567977,IF(Table1343[[#This Row],[Housing Type]]="Single Family Detached",Table1343[[#This Row],[Number of Homes/ Units]],IF(Table1343[[#This Row],[Housing Type]]="Single Family Attached",Table1343[[#This Row],[Number of Homes/ Units]],IF(Table1343[[#This Row],[Housing Type]]="Mobile Home",Table1343[[#This Row],[Number of Homes/ Units]]))))) -> 52034.85554 | K128: Cold/Very Cold | L128: 438.4545387 | M128: Micropolitan Area | N128: 1.660811835 | O128: 0.7678428234 | P128: 0.1095629267 | Q128: 0.02175124607 | R128: 0.6541751791 | S128: 3.192392764 | T128: 342.344 | U128: 75.669 | V128: =T128*Table1343[[#This Row],[Number of Buildings]]/1000000000 -> 0.01781382058 | W128: =U128*Table1343[[#This Row],[Number of Buildings]]/1000000000 -> 0.003937425484 | X128: =Table1343[[#This Row],[Wtd Air Handlers Heat (Tbtu)]]+Table1343[[#This Row],[Wtd Site Space Heating (TBtu)]] -> 1.678625655 | Y128: =Table1343[[#This Row],[Wtd Site Total Cooling (TBtu)]]+Table1343[[#This Row],[Wtd Air Handlers Cool (Tbtu)]] -> 0.1135003522
A129: Mobile Home | B129: 10128 | C129: South Atlantic | D129: 1970s | E129: Siding | F129: central furnace | G129: window/wall unit | H129: 19.65974003 | I129: 26424.38176 | J129: =IF(Table1343[[#This Row],[Housing Type]]="Multi-Family (2-4 units)",Table1343[[#This Row],[Number of Homes/ Units]]/3,IF(Table1343[[#This Row],[Housing Type]]="Multi-Family (5+ units)",Table1343[[#This Row],[Number of Homes/ Units]]/12.5720642567977,IF(Table1343[[#This Row],[Housing Type]]="Single Family Detached",Table1343[[#This Row],[Number of Homes/ Units]],IF(Table1343[[#This Row],[Housing Type]]="Single Family Attached",Table1343[[#This Row],[Number of Homes/ Units]],IF(Table1343[[#This Row],[Housing Type]]="Mobile Home",Table1343[[#This Row],[Number of Homes/ Units]]))))) -> 26424.38176 | K129: Mixed-Humid | L129: 317.8944025 | M129: Rural | N129: 0.5348527931 | O129: 0.154593573 | P129: 0.1091261698 | Q129: 0.006538449023 | R129: 0.2860831199 | S129: 1.084655656 | T129: 247.44 | U129: 0 | V129: =T129*Table1343[[#This Row],[Number of Buildings]]/1000000000 -> 0.006538449023 | W129: =U129*Table1343[[#This Row],[Number of Buildings]]/1000000000 -> 0 | X129: =Table1343[[#This Row],[Wtd Air Handlers Heat (Tbtu)]]+Table1343[[#This Row],[Wtd Site Space Heating (TBtu)]] -> 0.5413912421 | Y129: =Table1343[[#This Row],[Wtd Site Total Cooling (TBtu)]]+Table1343[[#This Row],[Wtd Air Handlers Cool (Tbtu)]] -> 0.1091261698
A130: Single Family Detached | B130: 10129 | C130: South Atlantic | D130: 1970s | E130: Stucco | F130: central furnace | G130: central AC | H130: 43.69687269 | I130: 15988.61057 | J130: =IF(Table1343[[#This Row],[Housing Type]]="Multi-Family (2-4 units)",Table1343[[#This Row],[Number of Homes/ Units]]/3,IF(Table1343[[#This Row],[Housing Type]]="Multi-Family (5+ units)",Table1343[[#This Row],[Number of Homes/ Units]]/12.5720642567977,IF(Table1343[[#This Row],[Housing Type]]="Single Family Detached",Table1343[[#This Row],[Number of Homes/ Units]],IF(Table1343[[#This Row],[Housing Type]]="Single Family Attached",Table1343[[#This Row],[Number of Homes/ Units]],IF(Table1343[[#This Row],[Housing Type]]="Mobile Home",Table1343[[#This Row],[Number of Homes/ Units]]))))) -> 15988.61057 | K130: Hot-Humid | L130: 234.4593037 | M130: Metropolitan Area | N130: 0.08071607019 | O130: 0.09288573717 | P130: 0.2559020931 | Q130: 0.01720396881 | R130: 0.3704712161 | S130: 0.7999751166 | T130: 97.288 | U130: 978.726 | V130: =T130*Table1343[[#This Row],[Number of Buildings]]/1000000000 -> 0.001555499945 | W130: =U130*Table1343[[#This Row],[Number of Buildings]]/1000000000 -> 0.01564846887 | X130: =Table1343[[#This Row],[Wtd Air Handlers Heat (Tbtu)]]+Table1343[[#This Row],[Wtd Site Space Heating (TBtu)]] -> 0.08227157014 | Y130: =Table1343[[#This Row],[Wtd Site Total Cooling (TBtu)]]+Table1343[[#This Row],[Wtd Air Handlers Cool (Tbtu)]] -> 0.2715505619
A131: Single Family Attached | B131: 10130 | C131: West South Central | D131: 2000s | E131: Concrete | F131: central furnace | G131: central AC | H131: 67.74977682 | I131: 15136.23253 | J131: =IF(Table1343[[#This Row],[Housing Type]]="Multi-Family (2-4 units)",Table1343[[#This Row],[Number of Homes/ Units]]/3,IF(Table1343[[#This Row],[Housing Type]]="Multi-Family (5+ units)",Table1343[[#This Row],[Number of Homes/ Units]]/12.5720642567977,IF(Table1343[[#This Row],[Housing Type]]="Single Family Detached",Table1343[[#This Row],[Number of Homes/ Units]],IF(Table1343[[#This Row],[Housing Type]]="Single Family Attached",Table1343[[#This Row],[Number of Homes/ Units]],IF(Table1343[[#This Row],[Housing Type]]="Mobile Home",Table1343[[#This Row],[Number of Homes/ Units]]))))) -> 15136.23253 | K131: Hot-Humid | L131: 332.1300518 | M131: Metropolitan Area | N131: 0.3264946961 | O131: 0.2162719394 | P131: 0.3054170836 | Q131: 0.02694349289 | R131: 0.2850440022 | S131: 1.133227721 | T131: 456.232 | U131: 1323.834 | V131: =T131*Table1343[[#This Row],[Number of Buildings]]/1000000000 -> 0.00690563364 | W131: =U131*Table1343[[#This Row],[Number of Buildings]]/1000000000 -> 0.02003785926 | X131: =Table1343[[#This Row],[Wtd Air Handlers Heat (Tbtu)]]+Table1343[[#This Row],[Wtd Site Space Heating (TBtu)]] -> 0.3334003298 | Y131: =Table1343[[#This Row],[Wtd Site Total Cooling (TBtu)]]+Table1343[[#This Row],[Wtd Air Handlers Cool (Tbtu)]] -> 0.3254549429
A132: Single Family Detached | B132: 10131 | C132: Pacific | D132: Before 1950 | E132: Stucco | F132: central furnace | G132: N/A | H132: 28.17623497 | I132: 15954.83294 | J132: =IF(Table1343[[#This Row],[Housing Type]]="Multi-Family (2-4 units)",Table1343[[#This Row],[Number of Homes/ Units]]/3,IF(Table1343[[#This Row],[Housing Type]]="Multi-Family (5+ units)",Table1343[[#This Row],[Number of Homes/ Units]]/12.5720642567977,IF(Table1343[[#This Row],[Housing Type]]="Single Family Detached",Table1343[[#This Row],[Number of Homes/ Units]],IF(Table1343[[#This Row],[Housing Type]]="Single Family Attached",Table1343[[#This Row],[Number of Homes/ Units]],IF(Table1343[[#This Row],[Housing Type]]="Mobile Home",Table1343[[#This Row],[Number of Homes/ Units]]))))) -> 15954.83294 | K132: Hot-Dry/Mixed-Dry | L132: 65.18311897 | M132: Metropolitan Area | N132: 0.1147015755 | O132: 0.1772289647 | P132: 0 | Q132: 0.002185381332 | R132: 0.2863901926 | S132: 0.5783207329 | T132: 136.973 | U132: 0 | V132: =T132*Table1343[[#This Row],[Number of Buildings]]/1000000000 -> 0.002185381332 | W132: =U132*Table1343[[#This Row],[Number of Buildings]]/1000000000 -> 0 | X132: =Table1343[[#This Row],[Wtd Air Handlers Heat (Tbtu)]]+Table1343[[#This Row],[Wtd Site Space Heating (TBtu)]] -> 0.1168869569 | Y132: =Table1343[[#This Row],[Wtd Site Total Cooling (TBtu)]]+Table1343[[#This Row],[Wtd Air Handlers Cool (Tbtu)]] -> 0
A133: Multi-Family (2-4 units) | B133: 10132 | C133: New England | D133: Before 1950 | E133: Siding | F133: central furnace | G133: window/wall unit | H133: 32.40209493 | I133: 24602.95742 | J133: =IF(Table1343[[#This Row],[Housing Type]]="Multi-Family (2-4 units)",Table1343[[#This Row],[Number of Homes/ Units]]/3,IF(Table1343[[#This Row],[Housing Type]]="Multi-Family (5+ units)",Table1343[[#This Row],[Number of Homes/ Units]]/12.5720642567977,IF(Table1343[[#This Row],[Housing Type]]="Single Family Detached",Table1343[[#This Row],[Number of Homes/ Units]],IF(Table1343[[#This Row],[Housing Type]]="Single Family Attached",Table1343[[#This Row],[Number of Homes/ Units]],IF(Table1343[[#This Row],[Housing Type]]="Mobile Home",Table1343[[#This Row],[Number of Homes/ Units]]))))) -> 8200.985807 | K133: Cold/Very Cold | L133: 304.2893774 | M133: Rural | N133: 0.9832959101 | O133: 0.2597043162 | P133: 0.01762430394 | Q133: 0.0130842218 | R133: 0.6830508735 | S133: 1.952398218 | T133: 531.815 | U133: 0 | V133: =T133*Table1343[[#This Row],[Number of Buildings]]/1000000000 -> 0.004361407267 | W133: =U133*Table1343[[#This Row],[Number of Buildings]]/1000000000 -> 0 | X133: =Table1343[[#This Row],[Wtd Air Handlers Heat (Tbtu)]]+Table1343[[#This Row],[Wtd Site Space Heating (TBtu)]] -> 0.9876573174 | Y133: =Table1343[[#This Row],[Wtd Site Total Cooling (TBtu)]]+Table1343[[#This Row],[Wtd Air Handlers Cool (Tbtu)]] -> 0.01762430394
A134: Single Family Detached | B134: 10133 | C134: South Atlantic | D134: 1990s | E134: Siding | F134: heat pump | G134: central AC | H134: 126.4703237 | I134: 22087.02824 | J134: =IF(Table1343[[#This Row],[Housing Type]]="Multi-Family (2-4 units)",Table1343[[#This Row],[Number of Homes/ Units]]/3,IF(Table1343[[#This Row],[Housing Type]]="Multi-Family (5+ units)",Table1343[[#This Row],[Number of Homes/ Units]]/12.5720642567977,IF(Table1343[[#This Row],[Housing Type]]="Single Family Detached",Table1343[[#This Row],[Number of Homes/ Units]],IF(Table1343[[#This Row],[Housing Type]]="Single Family Attached",Table1343[[#This Row],[Number of Homes/ Units]],IF(Table1343[[#This Row],[Housing Type]]="Mobile Home",Table1343[[#This Row],[Number of Homes/ Units]]))))) -> 22087.02824 | K134: Mixed-Humid | L134: 454.9486077 | M134: Metropolitan Area | N134: 0.5267372363 | O134: 0.2866401516 | P134: 0.1206833014 | Q134: 0.0179003216 | R134: 0.962287558 | S134: 1.896348247 | T134: 472.763 | U134: 337.682 | V134: =T134*Table1343[[#This Row],[Number of Buildings]]/1000000000 -> 0.01044192973 | W134: =U134*Table1343[[#This Row],[Number of Buildings]]/1000000000 -> 0.00745839187 | X134: =Table1343[[#This Row],[Wtd Air Handlers Heat (Tbtu)]]+Table1343[[#This Row],[Wtd Site Space Heating (TBtu)]] -> 0.537179166 | Y134: =Table1343[[#This Row],[Wtd Site Total Cooling (TBtu)]]+Table1343[[#This Row],[Wtd Air Handlers Cool (Tbtu)]] -> 0.1281416933
A135: Single Family Detached | B135: 10134 | C135: South Atlantic | D135: 1970s | E135: Siding | F135: central furnace | G135: central AC | H135: 90.00000992 | I135: 30991.73895 | J135: =IF(Table1343[[#This Row],[Housing Type]]="Multi-Family (2-4 units)",Table1343[[#This Row],[Number of Homes/ Units]]/3,IF(Table1343[[#This Row],[Housing Type]]="Multi-Family (5+ units)",Table1343[[#This Row],[Number of Homes/ Units]]/12.5720642567977,IF(Table1343[[#This Row],[Housing Type]]="Single Family Detached",Table1343[[#This Row],[Number of Homes/ Units]],IF(Table1343[[#This Row],[Housing Type]]="Single Family Attached",Table1343[[#This Row],[Number of Homes/ Units]],IF(Table1343[[#This Row],[Housing Type]]="Mobile Home",Table1343[[#This Row],[Number of Homes/ Units]]))))) -> 30991.73895 | K135: Mixed-Humid | L135: 434.3225066 | M135: Metropolitan Area | N135: 1.26104456 | O135: 0.3514057205 | P135: 0.3897179561 | Q135: 0.05074150352 | R135: 1.728950924 | S135: 3.731119161 | T135: 921.323 | U135: 715.936 | V135: =T135*Table1343[[#This Row],[Number of Buildings]]/1000000000 -> 0.0285534019 | W135: =U135*Table1343[[#This Row],[Number of Buildings]]/1000000000 -> 0.02218810162 | X135: =Table1343[[#This Row],[Wtd Air Handlers Heat (Tbtu)]]+Table1343[[#This Row],[Wtd Site Space Heating (TBtu)]] -> 1.289597962 | Y135: =Table1343[[#This Row],[Wtd Site Total Cooling (TBtu)]]+Table1343[[#This Row],[Wtd Air Handlers Cool (Tbtu)]] -> 0.4119060578
A136: Single Family Detached | B136: 10135 | C136: Pacific | D136: 2000s | E136: Stucco | F136: central furnace | G136: central AC | H136: 51.76095531 | I136: 13170.72654 | J136: =IF(Table1343[[#This Row],[Housing Type]]="Multi-Family (2-4 units)",Table1343[[#This Row],[Number of Homes/ Units]]/3,IF(Table1343[[#This Row],[Housing Type]]="Multi-Family (5+ units)",Table1343[[#This Row],[Number of Homes/ Units]]/12.5720642567977,IF(Table1343[[#This Row],[Housing Type]]="Single Family Detached",Table1343[[#This Row],[Number of Homes/ Units]],IF(Table1343[[#This Row],[Housing Type]]="Single Family Attached",Table1343[[#This Row],[Number of Homes/ Units]],IF(Table1343[[#This Row],[Housing Type]]="Mobile Home",Table1343[[#This Row],[Number of Homes/ Units]]))))) -> 13170.72654 | K136: Marine | L136: 234.8532045 | M136: Metropolitan Area | N136: 0.2052499946 | O136: 0.2986540872 | P136: 0.0254288271 | Q136: 0.01775795889 | R136: 0.7675440559 | S136: 1.296876965 | T136: 1225.653 | U136: 122.637 | V136: =T136*Table1343[[#This Row],[Number of Buildings]]/1000000000 -> 0.0161427405 | W136: =U136*Table1343[[#This Row],[Number of Buildings]]/1000000000 -> 0.001615218391 | X136: =Table1343[[#This Row],[Wtd Air Handlers Heat (Tbtu)]]+Table1343[[#This Row],[Wtd Site Space Heating (TBtu)]] -> 0.2213927351 | Y136: =Table1343[[#This Row],[Wtd Site Total Cooling (TBtu)]]+Table1343[[#This Row],[Wtd Air Handlers Cool (Tbtu)]] -> 0.02704404549
A137: Single Family Detached | B137: 10136 | C137: Mountain South | D137: 1990s | E137: Stucco | F137: radiator | G137: central AC | H137: 41.24185652 | I137: 15621.91535 | J137: =IF(Table1343[[#This Row],[Housing Type]]="Multi-Family (2-4 units)",Table1343[[#This Row],[Number of Homes/ Units]]/3,IF(Table1343[[#This Row],[Housing Type]]="Multi-Family (5+ units)",Table1343[[#This Row],[Number of Homes/ Units]]/12.5720642567977,IF(Table1343[[#This Row],[Housing Type]]="Single Family Detached",Table1343[[#This Row],[Number of Homes/ Units]],IF(Table1343[[#This Row],[Housing Type]]="Single Family Attached",Table1343[[#This Row],[Number of Homes/ Units]],IF(Table1343[[#This Row],[Housing Type]]="Mobile Home",Table1343[[#This Row],[Number of Homes/ Units]]))))) -> 15621.91535 | K137: Hot-Dry/Mixed-Dry | L137: 47.77466033 | M137: Metropolitan Area | N137: 1.072222658 | O137: 0.2683894891 | P137: 0.05168813759 | Q137: 0.001793723942 | R137: 0.1779269921 | S137: 1.570227276 | T137: 39.385 | U137: 75.436 | V137: =T137*Table1343[[#This Row],[Number of Buildings]]/1000000000 -> 0.0006152691361 | W137: =U137*Table1343[[#This Row],[Number of Buildings]]/1000000000 -> 0.001178454806 | X137: =Table1343[[#This Row],[Wtd Air Handlers Heat (Tbtu)]]+Table1343[[#This Row],[Wtd Site Space Heating (TBtu)]] -> 1.072837927 | Y137: =Table1343[[#This Row],[Wtd Site Total Cooling (TBtu)]]+Table1343[[#This Row],[Wtd Air Handlers Cool (Tbtu)]] -> 0.05286659239
A138: Multi-Family (5+ units) | B138: 10137 | C138: West South Central | D138: 1980s | E138: Siding | F138: heat pump | G138: central AC | H138: 62.52287519 | I138: 40311.33152 | J138: =IF(Table1343[[#This Row],[Housing Type]]="Multi-Family (2-4 units)",Table1343[[#This Row],[Number of Homes/ Units]]/3,IF(Table1343[[#This Row],[Housing Type]]="Multi-Family (5+ units)",Table1343[[#This Row],[Number of Homes/ Units]]/12.5720642567977,IF(Table1343[[#This Row],[Housing Type]]="Single Family Detached",Table1343[[#This Row],[Number of Homes/ Units]],IF(Table1343[[#This Row],[Housing Type]]="Single Family Attached",Table1343[[#This Row],[Number of Homes/ Units]],IF(Table1343[[#This Row],[Housing Type]]="Mobile Home",Table1343[[#This Row],[Number of Homes/ Units]]))))) -> 3206.421054 | K138: Hot-Humid | L138: 246.740057 | M138: Micropolitan Area | N138: 0.04845253525 | O138: 0.1705765125 | P138: 0.1359198852 | Q138: 0.008492388211 | R138: 0.4791112607 | S138: 0.8418770851 | T138: 22.255 | U138: 188.415 | V138: =T138*Table1343[[#This Row],[Number of Buildings]]/1000000000 -> 7.135890055e-05 | W138: =U138*Table1343[[#This Row],[Number of Buildings]]/1000000000 -> 0.0006041378228 | X138: =Table1343[[#This Row],[Wtd Air Handlers Heat (Tbtu)]]+Table1343[[#This Row],[Wtd Site Space Heating (TBtu)]] -> 0.04852389416 | Y138: =Table1343[[#This Row],[Wtd Site Total Cooling (TBtu)]]+Table1343[[#This Row],[Wtd Air Handlers Cool (Tbtu)]] -> 0.136524023
A139: Single Family Detached | B139: 10138 | C139: West North Central | D139: 1980s | E139: Siding | F139: central furnace | G139: central AC | H139: 57.09829317 | I139: 9368.054663 | J139: =IF(Table1343[[#This Row],[Housing Type]]="Multi-Family (2-4 units)",Table1343[[#This Row],[Number of Homes/ Units]]/3,IF(Table1343[[#This Row],[Housing Type]]="Multi-Family (5+ units)",Table1343[[#This Row],[Number of Homes/ Units]]/12.5720642567977,IF(Table1343[[#This Row],[Housing Type]]="Single Family Detached",Table1343[[#This Row],[Number of Homes/ Units]],IF(Table1343[[#This Row],[Housing Type]]="Single Family Attached",Table1343[[#This Row],[Number of Homes/ Units]],IF(Table1343[[#This Row],[Housing Type]]="Mobile Home",Table1343[[#This Row],[Number of Homes/ Units]]))))) -> 9368.054663 | K139: Cold/Very Cold | L139: 247.89498 | M139: Metropolitan Area | N139: 0.8020966999 | O139: 0.08723457558 | P139: 0.1416236835 | Q139: 0.04686404007 | R139: 0.6857949711 | S139: 1.71674993 | T139: 3929.432 | U139: 1073.105 | V139: =T139*Table1343[[#This Row],[Number of Buildings]]/1000000000 -> 0.03681113377 | W139: =U139*Table1343[[#This Row],[Number of Buildings]]/1000000000 -> 0.0100529063 | X139: =Table1343[[#This Row],[Wtd Air Handlers Heat (Tbtu)]]+Table1343[[#This Row],[Wtd Site Space Heating (TBtu)]] -> 0.8389078337 | Y139: =Table1343[[#This Row],[Wtd Site Total Cooling (TBtu)]]+Table1343[[#This Row],[Wtd Air Handlers Cool (Tbtu)]] -> 0.1516765898
A140: Single Family Detached | B140: 10139 | C140: South Atlantic | D140: 2000s | E140: Siding | F140: heat pump | G140: central AC | H140: 34.45659312 | I140: 12341.18665 | J140: =IF(Table1343[[#This Row],[Housing Type]]="Multi-Family (2-4 units)",Table1343[[#This Row],[Number of Homes/ Units]]/3,IF(Table1343[[#This Row],[Housing Type]]="Multi-Family (5+ units)",Table1343[[#This Row],[Number of Homes/ Units]]/12.5720642567977,IF(Table1343[[#This Row],[Housing Type]]="Single Family Detached",Table1343[[#This Row],[Number of Homes/ Units]],IF(Table1343[[#This Row],[Housing Type]]="Single Family Attached",Table1343[[#This Row],[Number of Homes/ Units]],IF(Table1343[[#This Row],[Housing Type]]="Mobile Home",Table1343[[#This Row],[Number of Homes/ Units]]))))) -> 12341.18665 | K140: Hot-Humid | L140: 227.5924248 | M140: Metropolitan Area | N140: 0.1638965246 | O140: 0.1128776764 | P140: 0.2355227479 | Q140: 0.01470084622 | R140: 0.2969816847 | S140: 0.8092786336 | T140: 225.592 | U140: 965.61 | V140: =T140*Table1343[[#This Row],[Number of Buildings]]/1000000000 -> 0.002784072979 | W140: =U140*Table1343[[#This Row],[Number of Buildings]]/1000000000 -> 0.01191677324 | X140: =Table1343[[#This Row],[Wtd Air Handlers Heat (Tbtu)]]+Table1343[[#This Row],[Wtd Site Space Heating (TBtu)]] -> 0.1666805976 | Y140: =Table1343[[#This Row],[Wtd Site Total Cooling (TBtu)]]+Table1343[[#This Row],[Wtd Air Handlers Cool (Tbtu)]] -> 0.2474395212
A141: Single Family Attached | B141: 10140 | C141: East North Central | D141: 1990s | E141: Siding | F141: central furnace | G141: central AC | H141: 19.50537664 | I141: 12832.48463 | J141: =IF(Table1343[[#This Row],[Housing Type]]="Multi-Family (2-4 units)",Table1343[[#This Row],[Number of Homes/ Units]]/3,IF(Table1343[[#This Row],[Housing Type]]="Multi-Family (5+ units)",Table1343[[#This Row],[Number of Homes/ Units]]/12.5720642567977,IF(Table1343[[#This Row],[Housing Type]]="Single Family Detached",Table1343[[#This Row],[Number of Homes/ Units]],IF(Table1343[[#This Row],[Housing Type]]="Single Family Attached",Table1343[[#This Row],[Number of Homes/ Units]],IF(Table1343[[#This Row],[Housing Type]]="Mobile Home",Table1343[[#This Row],[Number of Homes/ Units]]))))) -> 12832.48463 | K141: Cold/Very Cold | L141: 37.65050992 | M141: Metropolitan Area | N141: 0.1831954213 | O141: 0.2728943991 | P141: 0.02063735577 | Q141: 0.009787964819 | R141: 0.1956410065 | S141: 0.6723681827 | T141: 690.572 | U141: 72.177 | V141: =T141*Table1343[[#This Row],[Number of Buildings]]/1000000000 -> 0.008861754576 | W141: =U141*Table1343[[#This Row],[Number of Buildings]]/1000000000 -> 0.0009262102431 | X141: =Table1343[[#This Row],[Wtd Air Handlers Heat (Tbtu)]]+Table1343[[#This Row],[Wtd Site Space Heating (TBtu)]] -> 0.1920571759 | Y141: =Table1343[[#This Row],[Wtd Site Total Cooling (TBtu)]]+Table1343[[#This Row],[Wtd Air Handlers Cool (Tbtu)]] -> 0.02156356601
A142: Single Family Detached | B142: 10141 | C142: South Atlantic | D142: 1980s | E142: Stucco | F142: heat pump | G142: central AC | H142: 58.48743466 | I142: 18415.43912 | J142: =IF(Table1343[[#This Row],[Housing Type]]="Multi-Family (2-4 units)",Table1343[[#This Row],[Number of Homes/ Units]]/3,IF(Table1343[[#This Row],[Housing Type]]="Multi-Family (5+ units)",Table1343[[#This Row],[Number of Homes/ Units]]/12.5720642567977,IF(Table1343[[#This Row],[Housing Type]]="Single Family Detached",Table1343[[#This Row],[Number of Homes/ Units]],IF(Table1343[[#This Row],[Housing Type]]="Single Family Attached",Table1343[[#This Row],[Number of Homes/ Units]],IF(Table1343[[#This Row],[Housing Type]]="Mobile Home",Table1343[[#This Row],[Number of Homes/ Units]]))))) -> 18415.43912 | K142: Hot-Humid | L142: 322.2869243 | M142: Metropolitan Area | N142: 0.03630143437 | O142: 0.1600006644 | P142: 0.3899582673 | Q142: 0.02498840656 | R142: 0.5133826101 | S142: 1.099642976 | T142: 38.586 | U142: 1318.341 | V142: =T142*Table1343[[#This Row],[Number of Buildings]]/1000000000 -> 0.0007105781339 | W142: =U142*Table1343[[#This Row],[Number of Buildings]]/1000000000 -> 0.02427782842 | X142: =Table1343[[#This Row],[Wtd Air Handlers Heat (Tbtu)]]+Table1343[[#This Row],[Wtd Site Space Heating (TBtu)]] -> 0.0370120125 | Y142: =Table1343[[#This Row],[Wtd Site Total Cooling (TBtu)]]+Table1343[[#This Row],[Wtd Air Handlers Cool (Tbtu)]] -> 0.4142360957
A143: Single Family Detached | B143: 10142 | C143: South Atlantic | D143: Before 1950 | E143: Siding | F143: central furnace | G143: central AC | H143: 47.81275739 | I143: 23906.37869 | J143: =IF(Table1343[[#This Row],[Housing Type]]="Multi-Family (2-4 units)",Table1343[[#This Row],[Number of Homes/ Units]]/3,IF(Table1343[[#This Row],[Housing Type]]="Multi-Family (5+ units)",Table1343[[#This Row],[Number of Homes/ Units]]/12.5720642567977,IF(Table1343[[#This Row],[Housing Type]]="Single Family Detached",Table1343[[#This Row],[Number of Homes/ Units]],IF(Table1343[[#This Row],[Housing Type]]="Single Family Attached",Table1343[[#This Row],[Number of Homes/ Units]],IF(Table1343[[#This Row],[Housing Type]]="Mobile Home",Table1343[[#This Row],[Number of Homes/ Units]]))))) -> 23906.37869 | K143: Cold/Very Cold | L143: 330.0717608 | M143: Micropolitan Area | N143: 1.022465346 | O143: 0.4932381503 | P143: 0.1654522697 | Q143: 0.06656661818 | R143: 0.690314997 | S143: 2.371470763 | T143: 2474.449 | U143: 310.022 | V143: =T143*Table1343[[#This Row],[Number of Buildings]]/1000000000 -> 0.05915511484 | W143: =U143*Table1343[[#This Row],[Number of Buildings]]/1000000000 -> 0.007411503334 | X143: =Table1343[[#This Row],[Wtd Air Handlers Heat (Tbtu)]]+Table1343[[#This Row],[Wtd Site Space Heating (TBtu)]] -> 1.08162046 | Y143: =Table1343[[#This Row],[Wtd Site Total Cooling (TBtu)]]+Table1343[[#This Row],[Wtd Air Handlers Cool (Tbtu)]] -> 0.172863773
A144: Single Family Detached | B144: 10143 | C144: South Atlantic | D144: Before 1950 | E144: Siding | F144: built-in electric unit | G144: window/wall unit | H144: 53.04838003 | I144: 15380.80024 | J144: =IF(Table1343[[#This Row],[Housing Type]]="Multi-Family (2-4 units)",Table1343[[#This Row],[Number of Homes/ Units]]/3,IF(Table1343[[#This Row],[Housing Type]]="Multi-Family (5+ units)",Table1343[[#This Row],[Number of Homes/ Units]]/12.5720642567977,IF(Table1343[[#This Row],[Housing Type]]="Single Family Detached",Table1343[[#This Row],[Number of Homes/ Units]],IF(Table1343[[#This Row],[Housing Type]]="Single Family Attached",Table1343[[#This Row],[Number of Homes/ Units]],IF(Table1343[[#This Row],[Housing Type]]="Mobile Home",Table1343[[#This Row],[Number of Homes/ Units]]))))) -> 15380.80024 | K144: Mixed-Humid | L144: 196.5666271 | M144: Metropolitan Area | N144: 0.3178046468 | O144: 0.08437745513 | P144: 0.08928210009 | Q144: 0 | R144: 0.1792211295 | S144: 0.6706853316 | T144: 0 | U144: 0 | V144: =T144*Table1343[[#This Row],[Number of Buildings]]/1000000000 -> 0 | W144: =U144*Table1343[[#This Row],[Number of Buildings]]/1000000000 -> 0 | X144: =Table1343[[#This Row],[Wtd Air Handlers Heat (Tbtu)]]+Table1343[[#This Row],[Wtd Site Space Heating (TBtu)]] -> 0.3178046468 | Y144: =Table1343[[#This Row],[Wtd Site Total Cooling (TBtu)]]+Table1343[[#This Row],[Wtd Air Handlers Cool (Tbtu)]] -> 0.08928210009
A145: Multi-Family (2-4 units) | B145: 10144 | C145: Middle Atlantic | D145: 1980s | E145: Brick | F145: radiator | G145: window/wall unit | H145: 31.75931865 | I145: 22116.51717 | J145: =IF(Table1343[[#This Row],[Housing Type]]="Multi-Family (2-4 units)",Table1343[[#This Row],[Number of Homes/ Units]]/3,IF(Table1343[[#This Row],[Housing Type]]="Multi-Family (5+ units)",Table1343[[#This Row],[Number of Homes/ Units]]/12.5720642567977,IF(Table1343[[#This Row],[Housing Type]]="Single Family Detached",Table1343[[#This Row],[Number of Homes/ Units]],IF(Table1343[[#This Row],[Housing Type]]="Single Family Attached",Table1343[[#This Row],[Number of Homes/ Units]],IF(Table1343[[#This Row],[Housing Type]]="Mobile Home",Table1343[[#This Row],[Number of Homes/ Units]]))))) -> 7372.17239 | K145: Cold/Very Cold | L145: 94.14930585 | M145: Metropolitan Area | N145: 0.5474913231 | O145: 0.472469406 | P145: 0.06595678428 | Q145: 0.002451195714 | R145: 0.2528294336 | S145: 1.340381077 | T145: 110.831 | U145: 0 | V145: =T145*Table1343[[#This Row],[Number of Buildings]]/1000000000 -> 0.0008170652382 | W145: =U145*Table1343[[#This Row],[Number of Buildings]]/1000000000 -> 0 | X145: =Table1343[[#This Row],[Wtd Air Handlers Heat (Tbtu)]]+Table1343[[#This Row],[Wtd Site Space Heating (TBtu)]] -> 0.5483083883 | Y145: =Table1343[[#This Row],[Wtd Site Total Cooling (TBtu)]]+Table1343[[#This Row],[Wtd Air Handlers Cool (Tbtu)]] -> 0.06595678428
A146: Single Family Detached | B146: 10145 | C146: Pacific | D146: 1970s | E146: Wood | F146: built-in electric unit | G146: window/wall unit | H146: 12.75186138 | I146: 8788.326241 | J146: =IF(Table1343[[#This Row],[Housing Type]]="Multi-Family (2-4 units)",Table1343[[#This Row],[Number of Homes/ Units]]/3,IF(Table1343[[#This Row],[Housing Type]]="Multi-Family (5+ units)",Table1343[[#This Row],[Number of Homes/ Units]]/12.5720642567977,IF(Table1343[[#This Row],[Housing Type]]="Single Family Detached",Table1343[[#This Row],[Number of Homes/ Units]],IF(Table1343[[#This Row],[Housing Type]]="Single Family Attached",Table1343[[#This Row],[Number of Homes/ Units]],IF(Table1343[[#This Row],[Housing Type]]="Mobile Home",Table1343[[#This Row],[Number of Homes/ Units]]))))) -> 8788.326241 | K146: Marine | L146: 224.3581825 | M146: Metropolitan Area | N146: 0.2355502566 | O146: 0.2317345674 | P146: 0.01238275167 | Q146: 0 | R146: 0.285842552 | S146: 0.7655101277 | T146: 0 | U146: 0 | V146: =T146*Table1343[[#This Row],[Number of Buildings]]/1000000000 -> 0 | W146: =U146*Table1343[[#This Row],[Number of Buildings]]/1000000000 -> 0 | X146: =Table1343[[#This Row],[Wtd Air Handlers Heat (Tbtu)]]+Table1343[[#This Row],[Wtd Site Space Heating (TBtu)]] -> 0.2355502566 | Y146: =Table1343[[#This Row],[Wtd Site Total Cooling (TBtu)]]+Table1343[[#This Row],[Wtd Air Handlers Cool (Tbtu)]] -> 0.01238275167
A147: Single Family Detached | B147: 10146 | C147: East North Central | D147: 1990s | E147: Brick | F147: central furnace | G147: window/wall unit | H147: 41.00375111 | I147: 24349.02085 | J147: =IF(Table1343[[#This Row],[Housing Type]]="Multi-Family (2-4 units)",Table1343[[#This Row],[Number of Homes/ Units]]/3,IF(Table1343[[#This Row],[Housing Type]]="Multi-Family (5+ units)",Table1343[[#This Row],[Number of Homes/ Units]]/12.5720642567977,IF(Table1343[[#This Row],[Housing Type]]="Single Family Detached",Table1343[[#This Row],[Number of Homes/ Units]],IF(Table1343[[#This Row],[Housing Type]]="Single Family Attached",Table1343[[#This Row],[Number of Homes/ Units]],IF(Table1343[[#This Row],[Housing Type]]="Mobile Home",Table1343[[#This Row],[Number of Homes/ Units]]))))) -> 24349.02085 | K147: Cold/Very Cold | L147: 307.7529966 | M147: Metropolitan Area | N147: 2.906347559 | O147: 0.752000395 | P147: 0.03966082956 | Q147: 0.0358875105 | R147: 0.4532456765 | S147: 4.15125446 | T147: 1473.879 | U147: 0 | V147: =T147*Table1343[[#This Row],[Number of Buildings]]/1000000000 -> 0.0358875105 | W147: =U147*Table1343[[#This Row],[Number of Buildings]]/1000000000 -> 0 | X147: =Table1343[[#This Row],[Wtd Air Handlers Heat (Tbtu)]]+Table1343[[#This Row],[Wtd Site Space Heating (TBtu)]] -> 2.942235069 | Y147: =Table1343[[#This Row],[Wtd Site Total Cooling (TBtu)]]+Table1343[[#This Row],[Wtd Air Handlers Cool (Tbtu)]] -> 0.03966082956
A148: Single Family Detached | B148: 10147 | C148: West South Central | D148: 2010s | E148: Stone | F148: heat pump | G148: central AC | H148: 50.90250439 | I148: 13926.81379 | J148: =IF(Table1343[[#This Row],[Housing Type]]="Multi-Family (2-4 units)",Table1343[[#This Row],[Number of Homes/ Units]]/3,IF(Table1343[[#This Row],[Housing Type]]="Multi-Family (5+ units)",Table1343[[#This Row],[Number of Homes/ Units]]/12.5720642567977,IF(Table1343[[#This Row],[Housing Type]]="Single Family Detached",Table1343[[#This Row],[Number of Homes/ Units]],IF(Table1343[[#This Row],[Housing Type]]="Single Family Attached",Table1343[[#This Row],[Number of Homes/ Units]],IF(Table1343[[#This Row],[Housing Type]]="Mobile Home",Table1343[[#This Row],[Number of Homes/ Units]]))))) -> 13926.81379 | K148: Hot-Humid | L148: 307.0739049 | M148: Rural | N148: 0.2734290207 | O148: 0.1128844298 | P148: 0.3753788266 | Q148: 0.02885053676 | R148: 0.445528132 | S148: 1.207220409 | T148: 384.84 | U148: 1686.742 | V148: =T148*Table1343[[#This Row],[Number of Buildings]]/1000000000 -> 0.005359595019 | W148: =U148*Table1343[[#This Row],[Number of Buildings]]/1000000000 -> 0.02349094175 | X148: =Table1343[[#This Row],[Wtd Air Handlers Heat (Tbtu)]]+Table1343[[#This Row],[Wtd Site Space Heating (TBtu)]] -> 0.2787886157 | Y148: =Table1343[[#This Row],[Wtd Site Total Cooling (TBtu)]]+Table1343[[#This Row],[Wtd Air Handlers Cool (Tbtu)]] -> 0.3988697684
A149: Single Family Detached | B149: 10148 | C149: Mountain North | D149: Before 1950 | E149: Wood | F149: heater burning gas/oil/kerosene | G149: window/wall unit | H149: 27.9033699 | I149: 15441.82064 | J149: =IF(Table1343[[#This Row],[Housing Type]]="Multi-Family (2-4 units)",Table1343[[#This Row],[Number of Homes/ Units]]/3,IF(Table1343[[#This Row],[Housing Type]]="Multi-Family (5+ units)",Table1343[[#This Row],[Number of Homes/ Units]]/12.5720642567977,IF(Table1343[[#This Row],[Housing Type]]="Single Family Detached",Table1343[[#This Row],[Number of Homes/ Units]],IF(Table1343[[#This Row],[Housing Type]]="Single Family Attached",Table1343[[#This Row],[Number of Homes/ Units]],IF(Table1343[[#This Row],[Housing Type]]="Mobile Home",Table1343[[#This Row],[Number of Homes/ Units]]))))) -> 15441.82064 | K149: Cold/Very Cold | L149: 293.6306976 | M149: Metropolitan Area | N149: 1.701262548 | O149: 0.225098724 | P149: 0.02956941881 | Q149: 0 | R149: 0.3385937277 | S149: 2.294524419 | T149: 0 | U149: 0 | V149: =T149*Table1343[[#This Row],[Number of Buildings]]/1000000000 -> 0 | W149: =U149*Table1343[[#This Row],[Number of Buildings]]/1000000000 -> 0 | X149: =Table1343[[#This Row],[Wtd Air Handlers Heat (Tbtu)]]+Table1343[[#This Row],[Wtd Site Space Heating (TBtu)]] -> 1.701262548 | Y149: =Table1343[[#This Row],[Wtd Site Total Cooling (TBtu)]]+Table1343[[#This Row],[Wtd Air Handlers Cool (Tbtu)]] -> 0.02956941881
A150: Single Family Detached | B150: 10149 | C150: East South Central | D150: 2010s | E150: Siding | F150: central furnace | G150: central AC | H150: 25.58708995 | I150: 13661.01973 | J150: =IF(Table1343[[#This Row],[Housing Type]]="Multi-Family (2-4 units)",Table1343[[#This Row],[Number of Homes/ Units]]/3,IF(Table1343[[#This Row],[Housing Type]]="Multi-Family (5+ units)",Table1343[[#This Row],[Number of Homes/ Units]]/12.5720642567977,IF(Table1343[[#This Row],[Housing Type]]="Single Family Detached",Table1343[[#This Row],[Number of Homes/ Units]],IF(Table1343[[#This Row],[Housing Type]]="Single Family Attached",Table1343[[#This Row],[Number of Homes/ Units]],IF(Table1343[[#This Row],[Housing Type]]="Mobile Home",Table1343[[#This Row],[Number of Homes/ Units]]))))) -> 13661.01973 | K150: Mixed-Humid | L150: 296.5062858 | M150: Metropolitan Area | N150: 0.4333025735 | O150: 0.2348779286 | P150: 0.1407015361 | Q150: 0.01434904333 | R150: 0.2027973871 | S150: 1.011679425 | T150: 543.964 | U150: 506.4 | V150: =T150*Table1343[[#This Row],[Number of Buildings]]/1000000000 -> 0.007431102936 | W150: =U150*Table1343[[#This Row],[Number of Buildings]]/1000000000 -> 0.006917940391 | X150: =Table1343[[#This Row],[Wtd Air Handlers Heat (Tbtu)]]+Table1343[[#This Row],[Wtd Site Space Heating (TBtu)]] -> 0.4407336764 | Y150: =Table1343[[#This Row],[Wtd Site Total Cooling (TBtu)]]+Table1343[[#This Row],[Wtd Air Handlers Cool (Tbtu)]] -> 0.1476194765
A151: Single Family Attached | B151: 10150 | C151: West North Central | D151: 1970s | E151: Brick | F151: built-in electric unit | G151: window/wall unit | H151: 7.291799607 | I151: 7564.107476 | J151: =IF(Table1343[[#This Row],[Housing Type]]="Multi-Family (2-4 units)",Table1343[[#This Row],[Number of Homes/ Units]]/3,IF(Table1343[[#This Row],[Housing Type]]="Multi-Family (5+ units)",Table1343[[#This Row],[Number of Homes/ Units]]/12.5720642567977,IF(Table1343[[#This Row],[Housing Type]]="Single Family Detached",Table1343[[#This Row],[Number of Homes/ Units]],IF(Table1343[[#This Row],[Housing Type]]="Single Family Attached",Table1343[[#This Row],[Number of Homes/ Units]],IF(Table1343[[#This Row],[Housing Type]]="Mobile Home",Table1343[[#This Row],[Number of Homes/ Units]]))))) -> 7564.107476 | L151: 45.6561358 | M151: Metropolitan Area | N151: 0.03659435774 | O151: 0.04269808568 | P151: 0.002658866983 | Q151: 0 | R151: 0.07382742871 | S151: 0.1557787391 | T151: 0 | U151: 0 | V151: =T151*Table1343[[#This Row],[Number of Buildings]]/1000000000 -> 0 | W151: =U151*Table1343[[#This Row],[Number of Buildings]]/1000000000 -> 0 | X151: =Table1343[[#This Row],[Wtd Air Handlers Heat (Tbtu)]]+Table1343[[#This Row],[Wtd Site Space Heating (TBtu)]] -> 0.03659435774 | Y151: =Table1343[[#This Row],[Wtd Site Total Cooling (TBtu)]]+Table1343[[#This Row],[Wtd Air Handlers Cool (Tbtu)]] -> 0.002658866983
A152: Multi-Family (2-4 units) | B152: 10151 | C152: Pacific | D152: 1960s | E152: Brick | F152: built-in furnace | G152: N/A | H152: 14.6781458 | I152: 22721.58793 | J152: =IF(Table1343[[#This Row],[Housing Type]]="Multi-Family (2-4 units)",Table1343[[#This Row],[Number of Homes/ Units]]/3,IF(Table1343[[#This Row],[Housing Type]]="Multi-Family (5+ units)",Table1343[[#This Row],[Number of Homes/ Units]]/12.5720642567977,IF(Table1343[[#This Row],[Housing Type]]="Single Family Detached",Table1343[[#This Row],[Number of Homes/ Units]],IF(Table1343[[#This Row],[Housing Type]]="Single Family Attached",Table1343[[#This Row],[Number of Homes/ Units]],IF(Table1343[[#This Row],[Housing Type]]="Mobile Home",Table1343[[#This Row],[Number of Homes/ Units]]))))) -> 7573.862643 | K152: Marine | L152: 28.37978592 | M152: Metropolitan Area | N152: 0.3295254185 | O152: 0.2461890641 | P152: 0 | Q152: 0 | R152: 0.1216043254 | S152: 0.697318808 | T152: 0 | U152: 0 | V152: =T152*Table1343[[#This Row],[Number of Buildings]]/1000000000 -> 0 | W152: =U152*Table1343[[#This Row],[Number of Buildings]]/1000000000 -> 0 | X152: =Table1343[[#This Row],[Wtd Air Handlers Heat (Tbtu)]]+Table1343[[#This Row],[Wtd Site Space Heating (TBtu)]] -> 0.3295254185 | Y152: =Table1343[[#This Row],[Wtd Site Total Cooling (TBtu)]]+Table1343[[#This Row],[Wtd Air Handlers Cool (Tbtu)]] -> 0
A153: Single Family Detached | B153: 10152 | C153: West South Central | D153: 1970s | E153: Siding | F153: central furnace | G153: central AC | H153: 45.70340041 | I153: 20312.6224 | J153: =IF(Table1343[[#This Row],[Housing Type]]="Multi-Family (2-4 units)",Table1343[[#This Row],[Number of Homes/ Units]]/3,IF(Table1343[[#This Row],[Housing Type]]="Multi-Family (5+ units)",Table1343[[#This Row],[Number of Homes/ Units]]/12.5720642567977,IF(Table1343[[#This Row],[Housing Type]]="Single Family Detached",Table1343[[#This Row],[Number of Homes/ Units]],IF(Table1343[[#This Row],[Housing Type]]="Single Family Attached",Table1343[[#This Row],[Number of Homes/ Units]],IF(Table1343[[#This Row],[Housing Type]]="Mobile Home",Table1343[[#This Row],[Number of Homes/ Units]]))))) -> 20312.6224 | K153: Mixed-Humid | L153: 218.9345224 | M153: Micropolitan Area | N153: 2.04942532 | O153: 0.4473829693 | P153: 0.1890426704 | Q153: 0.03212987642 | R153: 0.6691986137 | S153: 3.355049573 | T153: 1086.447 | U153: 495.322 | V153: =T153*Table1343[[#This Row],[Number of Buildings]]/1000000000 -> 0.02206858767 | W153: =U153*Table1343[[#This Row],[Number of Buildings]]/1000000000 -> 0.01006128875 | X153: =Table1343[[#This Row],[Wtd Air Handlers Heat (Tbtu)]]+Table1343[[#This Row],[Wtd Site Space Heating (TBtu)]] -> 2.071493907 | Y153: =Table1343[[#This Row],[Wtd Site Total Cooling (TBtu)]]+Table1343[[#This Row],[Wtd Air Handlers Cool (Tbtu)]] -> 0.1991039591
A154: Single Family Detached | B154: 10153 | C154: South Atlantic | D154: 2000s | E154: Concrete | F154: heat pump | G154: central AC | H154: 31.95307928 | I154: 14952.30663 | J154: =IF(Table1343[[#This Row],[Housing Type]]="Multi-Family (2-4 units)",Table1343[[#This Row],[Number of Homes/ Units]]/3,IF(Table1343[[#This Row],[Housing Type]]="Multi-Family (5+ units)",Table1343[[#This Row],[Number of Homes/ Units]]/12.5720642567977,IF(Table1343[[#This Row],[Housing Type]]="Single Family Detached",Table1343[[#This Row],[Number of Homes/ Units]],IF(Table1343[[#This Row],[Housing Type]]="Single Family Attached",Table1343[[#This Row],[Number of Homes/ Units]],IF(Table1343[[#This Row],[Housing Type]]="Mobile Home",Table1343[[#This Row],[Number of Homes/ Units]]))))) -> 14952.30663 | K154: Hot-Humid | L154: 208.2374999 | M154: Rural | N154: 0.0915163553 | O154: 0.1235018661 | P154: 0.1851060273 | Q154: 0.0113777484 | R154: 0.3103821192 | S154: 0.710506368 | T154: 109.062 | U154: 651.874 | V154: =T154*Table1343[[#This Row],[Number of Buildings]]/1000000000 -> 0.001630728466 | W154: =U154*Table1343[[#This Row],[Number of Buildings]]/1000000000 -> 0.009747019932 | X154: =Table1343[[#This Row],[Wtd Air Handlers Heat (Tbtu)]]+Table1343[[#This Row],[Wtd Site Space Heating (TBtu)]] -> 0.09314708376 | Y154: =Table1343[[#This Row],[Wtd Site Total Cooling (TBtu)]]+Table1343[[#This Row],[Wtd Air Handlers Cool (Tbtu)]] -> 0.1948530473
A155: Single Family Detached | B155: 10154 | C155: South Atlantic | D155: 1970s | E155: Wood | F155: central furnace | G155: central AC | H155: 85.97496938 | I155: 20031.44673 | J155: =IF(Table1343[[#This Row],[Housing Type]]="Multi-Family (2-4 units)",Table1343[[#This Row],[Number of Homes/ Units]]/3,IF(Table1343[[#This Row],[Housing Type]]="Multi-Family (5+ units)",Table1343[[#This Row],[Number of Homes/ Units]]/12.5720642567977,IF(Table1343[[#This Row],[Housing Type]]="Single Family Detached",Table1343[[#This Row],[Number of Homes/ Units]],IF(Table1343[[#This Row],[Housing Type]]="Single Family Attached",Table1343[[#This Row],[Number of Homes/ Units]],IF(Table1343[[#This Row],[Housing Type]]="Mobile Home",Table1343[[#This Row],[Number of Homes/ Units]]))))) -> 20031.44673 | K155: Mixed-Humid | L155: 200.9352018 | M155: Metropolitan Area | N155: 1.130085886 | O155: 0.2865841794 | P155: 0.3089521341 | Q155: 0.03808655086 | R155: 0.2682802045 | S155: 1.993902404 | T155: 1169.139 | U155: 732.199 | V155: =T155*Table1343[[#This Row],[Number of Buildings]]/1000000000 -> 0.0234195456 | W155: =U155*Table1343[[#This Row],[Number of Buildings]]/1000000000 -> 0.01466700526 | X155: =Table1343[[#This Row],[Wtd Air Handlers Heat (Tbtu)]]+Table1343[[#This Row],[Wtd Site Space Heating (TBtu)]] -> 1.153505431 | Y155: =Table1343[[#This Row],[Wtd Site Total Cooling (TBtu)]]+Table1343[[#This Row],[Wtd Air Handlers Cool (Tbtu)]] -> 0.3236191394
A156: Single Family Detached | B156: 10155 | C156: South Atlantic | D156: 1990s | E156: Brick | F156: central furnace | G156: central AC | H156: 87.97655335 | I156: 26675.72873 | J156: =IF(Table1343[[#This Row],[Housing Type]]="Multi-Family (2-4 units)",Table1343[[#This Row],[Number of Homes/ Units]]/3,IF(Table1343[[#This Row],[Housing Type]]="Multi-Family (5+ units)",Table1343[[#This Row],[Number of Homes/ Units]]/12.5720642567977,IF(Table1343[[#This Row],[Housing Type]]="Single Family Detached",Table1343[[#This Row],[Number of Homes/ Units]],IF(Table1343[[#This Row],[Housing Type]]="Single Family Attached",Table1343[[#This Row],[Number of Homes/ Units]],IF(Table1343[[#This Row],[Housing Type]]="Mobile Home",Table1343[[#This Row],[Number of Homes/ Units]]))))) -> 26675.72873 | K156: Mixed-Humid | L156: 608.3922514 | M156: Metropolitan Area | N156: 0.4848864017 | O156: 0.3296115196 | P156: 0.6577646505 | Q156: 0.05642572849 | R156: 1.467150862 | S156: 2.939413434 | T156: 813.615 | U156: 1301.631 | V156: =T156*Table1343[[#This Row],[Number of Buildings]]/1000000000 -> 0.02170377303 | W156: =U156*Table1343[[#This Row],[Number of Buildings]]/1000000000 -> 0.03472195546 | X156: =Table1343[[#This Row],[Wtd Air Handlers Heat (Tbtu)]]+Table1343[[#This Row],[Wtd Site Space Heating (TBtu)]] -> 0.5065901747 | Y156: =Table1343[[#This Row],[Wtd Site Total Cooling (TBtu)]]+Table1343[[#This Row],[Wtd Air Handlers Cool (Tbtu)]] -> 0.692486606
A157: Single Family Detached | B157: 10156 | C157: New England | D157: 1970s | E157: Shingle | F157: central furnace | G157: N/A | H157: 16.36335739 | I157: 15902.19377 | J157: =IF(Table1343[[#This Row],[Housing Type]]="Multi-Family (2-4 units)",Table1343[[#This Row],[Number of Homes/ Units]]/3,IF(Table1343[[#This Row],[Housing Type]]="Multi-Family (5+ units)",Table1343[[#This Row],[Number of Homes/ Units]]/12.5720642567977,IF(Table1343[[#This Row],[Housing Type]]="Single Family Detached",Table1343[[#This Row],[Number of Homes/ Units]],IF(Table1343[[#This Row],[Housing Type]]="Single Family Attached",Table1343[[#This Row],[Number of Homes/ Units]],IF(Table1343[[#This Row],[Housing Type]]="Mobile Home",Table1343[[#This Row],[Number of Homes/ Units]]))))) -> 15902.19377 | K157: Cold/Very Cold | L157: 144.8110536 | M157: Metropolitan Area | N157: 1.147271132 | O157: 0.2865496283 | P157: 0 | Q157: 0.0180632542 | R157: 0.4760320592 | S157: 1.90985282 | T157: 1135.897 | U157: 0 | V157: =T157*Table1343[[#This Row],[Number of Buildings]]/1000000000 -> 0.0180632542 | W157: =U157*Table1343[[#This Row],[Number of Buildings]]/1000000000 -> 0 | X157: =Table1343[[#This Row],[Wtd Air Handlers Heat (Tbtu)]]+Table1343[[#This Row],[Wtd Site Space Heating (TBtu)]] -> 1.165334386 | Y157: =Table1343[[#This Row],[Wtd Site Total Cooling (TBtu)]]+Table1343[[#This Row],[Wtd Air Handlers Cool (Tbtu)]] -> 0
A158: Single Family Detached | B158: 10157 | C158: East North Central | D158: 1960s | E158: Siding | F158: central furnace | G158: window/wall unit | H158: 44.1106752 | I158: 26831.31095 | J158: =IF(Table1343[[#This Row],[Housing Type]]="Multi-Family (2-4 units)",Table1343[[#This Row],[Number of Homes/ Units]]/3,IF(Table1343[[#This Row],[Housing Type]]="Multi-Family (5+ units)",Table1343[[#This Row],[Number of Homes/ Units]]/12.5720642567977,IF(Table1343[[#This Row],[Housing Type]]="Single Family Detached",Table1343[[#This Row],[Number of Homes/ Units]],IF(Table1343[[#This Row],[Housing Type]]="Single Family Attached",Table1343[[#This Row],[Number of Homes/ Units]],IF(Table1343[[#This Row],[Housing Type]]="Mobile Home",Table1343[[#This Row],[Number of Homes/ Units]]))))) -> 26831.31095 | K158: Cold/Very Cold | L158: 232.5435913 | M158: Metropolitan Area | N158: 1.140831441 | O158: 0.5917070903 | P158: 0.1164518337 | Q158: 0.09651383537 | R158: 0.5804731156 | S158: 2.429463481 | T158: 3597.06 | U158: 0 | V158: =T158*Table1343[[#This Row],[Number of Buildings]]/1000000000 -> 0.09651383537 | W158: =U158*Table1343[[#This Row],[Number of Buildings]]/1000000000 -> 0 | X158: =Table1343[[#This Row],[Wtd Air Handlers Heat (Tbtu)]]+Table1343[[#This Row],[Wtd Site Space Heating (TBtu)]] -> 1.237345277 | Y158: =Table1343[[#This Row],[Wtd Site Total Cooling (TBtu)]]+Table1343[[#This Row],[Wtd Air Handlers Cool (Tbtu)]] -> 0.1164518337
A159: Single Family Detached | B159: 10158 | C159: South Atlantic | D159: 1990s | E159: Siding | F159: central furnace | G159: central AC | H159: 69.54439617 | I159: 27144.57306 | J159: =IF(Table1343[[#This Row],[Housing Type]]="Multi-Family (2-4 units)",Table1343[[#This Row],[Number of Homes/ Units]]/3,IF(Table1343[[#This Row],[Housing Type]]="Multi-Family (5+ units)",Table1343[[#This Row],[Number of Homes/ Units]]/12.5720642567977,IF(Table1343[[#This Row],[Housing Type]]="Single Family Detached",Table1343[[#This Row],[Number of Homes/ Units]],IF(Table1343[[#This Row],[Housing Type]]="Single Family Attached",Table1343[[#This Row],[Number of Homes/ Units]],IF(Table1343[[#This Row],[Housing Type]]="Mobile Home",Table1343[[#This Row],[Number of Homes/ Units]]))))) -> 27144.57306 | K159: Mixed-Humid | L159: 386.6680642 | M159: Metropolitan Area | N159: 1.055969006 | O159: 0.7156843398 | P159: 0.2004440237 | Q159: 0.03022382628 | R159: 1.099584961 | S159: 3.07168233 | T159: 710.36 | U159: 403.079 | V159: =T159*Table1343[[#This Row],[Number of Buildings]]/1000000000 -> 0.01928241892 | W159: =U159*Table1343[[#This Row],[Number of Buildings]]/1000000000 -> 0.01094140736 | X159: =Table1343[[#This Row],[Wtd Air Handlers Heat (Tbtu)]]+Table1343[[#This Row],[Wtd Site Space Heating (TBtu)]] -> 1.075251425 | Y159: =Table1343[[#This Row],[Wtd Site Total Cooling (TBtu)]]+Table1343[[#This Row],[Wtd Air Handlers Cool (Tbtu)]] -> 0.2113854311
A160: Multi-Family (5+ units) | B160: 10159 | C160: West North Central | D160: 1970s | E160: Wood | F160: central furnace | G160: central AC | H160: 16.49736801 | I160: 17042.73555 | J160: =IF(Table1343[[#This Row],[Housing Type]]="Multi-Family (2-4 units)",Table1343[[#This Row],[Number of Homes/ Units]]/3,IF(Table1343[[#This Row],[Housing Type]]="Multi-Family (5+ units)",Table1343[[#This Row],[Number of Homes/ Units]]/12.5720642567977,IF(Table1343[[#This Row],[Housing Type]]="Single Family Detached",Table1343[[#This Row],[Number of Homes/ Units]],IF(Table1343[[#This Row],[Housing Type]]="Single Family Attached",Table1343[[#This Row],[Number of Homes/ Units]],IF(Table1343[[#This Row],[Housing Type]]="Mobile Home",Table1343[[#This Row],[Number of Homes/ Units]]))))) -> 1355.603599 | K160: Cold/Very Cold | L160: 38.28987987 | M160: Metropolitan Area | N160: 0.3514269214 | O160: 0.1771071705 | P160: 0.01767733838 | Q160: 0.005026652594 | R160: 0.1080040418 | S160: 0.6588422975 | T160: 248.478 | U160: 46.466 | V160: =T160*Table1343[[#This Row],[Number of Buildings]]/1000000000 -> 0.000336837671 | W160: =U160*Table1343[[#This Row],[Number of Buildings]]/1000000000 -> 6.298947682e-05 | X160: =Table1343[[#This Row],[Wtd Air Handlers Heat (Tbtu)]]+Table1343[[#This Row],[Wtd Site Space Heating (TBtu)]] -> 0.3517637591 | Y160: =Table1343[[#This Row],[Wtd Site Total Cooling (TBtu)]]+Table1343[[#This Row],[Wtd Air Handlers Cool (Tbtu)]] -> 0.01774032785
A161: Multi-Family (5+ units) | B161: 10160 | C161: Middle Atlantic | D161: Before 1950 | E161: Brick | F161: central furnace | G161: window/wall unit | H161: 12.87757833 | I161: 34710.45373 | J161: =IF(Table1343[[#This Row],[Housing Type]]="Multi-Family (2-4 units)",Table1343[[#This Row],[Number of Homes/ Units]]/3,IF(Table1343[[#This Row],[Housing Type]]="Multi-Family (5+ units)",Table1343[[#This Row],[Number of Homes/ Units]]/12.5720642567977,IF(Table1343[[#This Row],[Housing Type]]="Single Family Detached",Table1343[[#This Row],[Number of Homes/ Units]],IF(Table1343[[#This Row],[Housing Type]]="Single Family Attached",Table1343[[#This Row],[Number of Homes/ Units]],IF(Table1343[[#This Row],[Housing Type]]="Mobile Home",Table1343[[#This Row],[Number of Homes/ Units]]))))) -> 2760.919211 | K161: Cold/Very Cold | L161: 240.1269189 | M161: Metropolitan Area | N161: 0.4544609271 | O161: 0.6552473886 | P161: 0.01864288057 | Q161: 0.006994468821 | R161: 0.9986079523 | S161: 2.133397267 | T161: 201.509 | U161: 0 | V161: =T161*Table1343[[#This Row],[Number of Buildings]]/1000000000 -> 0.0005563500693 | W161: =U161*Table1343[[#This Row],[Number of Buildings]]/1000000000 -> 0 | X161: =Table1343[[#This Row],[Wtd Air Handlers Heat (Tbtu)]]+Table1343[[#This Row],[Wtd Site Space Heating (TBtu)]] -> 0.4550172772 | Y161: =Table1343[[#This Row],[Wtd Site Total Cooling (TBtu)]]+Table1343[[#This Row],[Wtd Air Handlers Cool (Tbtu)]] -> 0.01864288057
A162: Single Family Detached | B162: 10161 | C162: South Atlantic | D162: 1960s | E162: Siding | F162: central furnace | G162: central AC | H162: 95.19221603 | I162: 48198.59039 | J162: =IF(Table1343[[#This Row],[Housing Type]]="Multi-Family (2-4 units)",Table1343[[#This Row],[Number of Homes/ Units]]/3,IF(Table1343[[#This Row],[Housing Type]]="Multi-Family (5+ units)",Table1343[[#This Row],[Number of Homes/ Units]]/12.5720642567977,IF(Table1343[[#This Row],[Housing Type]]="Single Family Detached",Table1343[[#This Row],[Number of Homes/ Units]],IF(Table1343[[#This Row],[Housing Type]]="Single Family Attached",Table1343[[#This Row],[Number of Homes/ Units]],IF(Table1343[[#This Row],[Housing Type]]="Mobile Home",Table1343[[#This Row],[Number of Homes/ Units]]))))) -> 48198.59039 | K162: Mixed-Humid | L162: 688.4166589 | M162: Metropolitan Area | N162: 2.009137611 | O162: 0.9405555348 | P162: 0.3932703253 | Q162: 0.08859517856 | R162: 0.9439789843 | S162: 4.286942456 | T162: 1474.582 | U162: 363.546 | V162: =T162*Table1343[[#This Row],[Number of Buildings]]/1000000000 -> 0.07107277381 | W162: =U162*Table1343[[#This Row],[Number of Buildings]]/1000000000 -> 0.01752240474 | X162: =Table1343[[#This Row],[Wtd Air Handlers Heat (Tbtu)]]+Table1343[[#This Row],[Wtd Site Space Heating (TBtu)]] -> 2.080210385 | Y162: =Table1343[[#This Row],[Wtd Site Total Cooling (TBtu)]]+Table1343[[#This Row],[Wtd Air Handlers Cool (Tbtu)]] -> 0.41079273
A163: Single Family Detached | B163: 10162 | C163: West South Central | D163: 2000s | E163: Brick | F163: central furnace | G163: both central and individual units | H163: 32.51226163 | I163: 11058.59239 | J163: =IF(Table1343[[#This Row],[Housing Type]]="Multi-Family (2-4 units)",Table1343[[#This Row],[Number of Homes/ Units]]/3,IF(Table1343[[#This Row],[Housing Type]]="Multi-Family (5+ units)",Table1343[[#This Row],[Number of Homes/ Units]]/12.5720642567977,IF(Table1343[[#This Row],[Housing Type]]="Single Family Detached",Table1343[[#This Row],[Number of Homes/ Units]],IF(Table1343[[#This Row],[Housing Type]]="Single Family Attached",Table1343[[#This Row],[Number of Homes/ Units]],IF(Table1343[[#This Row],[Housing Type]]="Mobile Home",Table1343[[#This Row],[Number of Homes/ Units]]))))) -> 11058.59239 | K163: Hot-Humid | L163: 257.2794569 | M163: Rural | N163: 0.2326780257 | O163: 0.08692529138 | P163: 0.1337190394 | Q163: 0.009241853656 | R163: 0.4245151325 | S163: 0.877837489 | T163: 325.272 | U163: 510.445 | V163: =T163*Table1343[[#This Row],[Number of Buildings]]/1000000000 -> 0.003597050464 | W163: =U163*Table1343[[#This Row],[Number of Buildings]]/1000000000 -> 0.005644803193 | X163: =Table1343[[#This Row],[Wtd Air Handlers Heat (Tbtu)]]+Table1343[[#This Row],[Wtd Site Space Heating (TBtu)]] -> 0.2362750761 | Y163: =Table1343[[#This Row],[Wtd Site Total Cooling (TBtu)]]+Table1343[[#This Row],[Wtd Air Handlers Cool (Tbtu)]] -> 0.1393638426
A164: Mobile Home | B164: 10163 | C164: Middle Atlantic | D164: 1960s | E164: Siding | F164: central furnace | G164: window/wall unit | H164: 79.29084378 | I164: 42906.30075 | J164: =IF(Table1343[[#This Row],[Housing Type]]="Multi-Family (2-4 units)",Table1343[[#This Row],[Number of Homes/ Units]]/3,IF(Table1343[[#This Row],[Housing Type]]="Multi-Family (5+ units)",Table1343[[#This Row],[Number of Homes/ Units]]/12.5720642567977,IF(Table1343[[#This Row],[Housing Type]]="Single Family Detached",Table1343[[#This Row],[Number of Homes/ Units]],IF(Table1343[[#This Row],[Housing Type]]="Single Family Attached",Table1343[[#This Row],[Number of Homes/ Units]],IF(Table1343[[#This Row],[Housing Type]]="Mobile Home",Table1343[[#This Row],[Number of Homes/ Units]]))))) -> 42906.30075 | K164: Cold/Very Cold | L164: 408.596702 | M164: Micropolitan Area | N164: 2.406321831 | O164: 0.5215043321 | P164: 0.09186878294 | Q164: 0.04108012278 | R164: 0.7396153798 | S164: 3.759310326 | T164: 957.438 | U164: 0 | V164: =T164*Table1343[[#This Row],[Number of Buildings]]/1000000000 -> 0.04108012278 | W164: =U164*Table1343[[#This Row],[Number of Buildings]]/1000000000 -> 0 | X164: =Table1343[[#This Row],[Wtd Air Handlers Heat (Tbtu)]]+Table1343[[#This Row],[Wtd Site Space Heating (TBtu)]] -> 2.447401954 | Y164: =Table1343[[#This Row],[Wtd Site Total Cooling (TBtu)]]+Table1343[[#This Row],[Wtd Air Handlers Cool (Tbtu)]] -> 0.09186878294
A165: Single Family Attached | B165: 10164 | C165: South Atlantic | D165: 2000s | E165: Siding | F165: heat pump | G165: central AC | H165: 51.16476626 | I165: 9900.303069 | J165: =IF(Table1343[[#This Row],[Housing Type]]="Multi-Family (2-4 units)",Table1343[[#This Row],[Number of Homes/ Units]]/3,IF(Table1343[[#This Row],[Housing Type]]="Multi-Family (5+ units)",Table1343[[#This Row],[Number of Homes/ Units]]/12.5720642567977,IF(Table1343[[#This Row],[Housing Type]]="Single Family Detached",Table1343[[#This Row],[Number of Homes/ Units]],IF(Table1343[[#This Row],[Housing Type]]="Single Family Attached",Table1343[[#This Row],[Number of Homes/ Units]],IF(Table1343[[#This Row],[Housing Type]]="Mobile Home",Table1343[[#This Row],[Number of Homes/ Units]]))))) -> 9900.303069 | K165: Hot-Humid | L165: 148.3956427 | M165: Metropolitan Area | N165: 0.07509584814 | O165: 0.08404895951 | P165: 0.1765405708 | Q165: 0.01224512055 | R165: 0.1706458214 | S165: 0.5063311999 | T165: 148.248 | U165: 1088.595 | V165: =T165*Table1343[[#This Row],[Number of Buildings]]/1000000000 -> 0.001467700129 | W165: =U165*Table1343[[#This Row],[Number of Buildings]]/1000000000 -> 0.01077742042 | X165: =Table1343[[#This Row],[Wtd Air Handlers Heat (Tbtu)]]+Table1343[[#This Row],[Wtd Site Space Heating (TBtu)]] -> 0.07656354827 | Y165: =Table1343[[#This Row],[Wtd Site Total Cooling (TBtu)]]+Table1343[[#This Row],[Wtd Air Handlers Cool (Tbtu)]] -> 0.1873179912
A166: Single Family Detached | B166: 10165 | C166: Pacific | D166: Before 1950 | E166: Wood | F166: built-in electric unit | G166: window/wall unit | H166: 26.87264596 | I166: 38389.49423 | J166: =IF(Table1343[[#This Row],[Housing Type]]="Multi-Family (2-4 units)",Table1343[[#This Row],[Number of Homes/ Units]]/3,IF(Table1343[[#This Row],[Housing Type]]="Multi-Family (5+ units)",Table1343[[#This Row],[Number of Homes/ Units]]/12.5720642567977,IF(Table1343[[#This Row],[Housing Type]]="Single Family Detached",Table1343[[#This Row],[Number of Homes/ Units]],IF(Table1343[[#This Row],[Housing Type]]="Single Family Attached",Table1343[[#This Row],[Number of Homes/ Units]],IF(Table1343[[#This Row],[Housing Type]]="Mobile Home",Table1343[[#This Row],[Number of Homes/ Units]]))))) -> 38389.49423 | K166: Marine | L166: 529.2286611 | M166: Metropolitan Area | N166: 0.8269277872 | O166: 0.2460150813 | P166: 0.01515924348 | Q166: 0 | R166: 0.7176261022 | S166: 1.805728214 | T166: 0 | U166: 0 | V166: =T166*Table1343[[#This Row],[Number of Buildings]]/1000000000 -> 0 | W166: =U166*Table1343[[#This Row],[Number of Buildings]]/1000000000 -> 0 | X166: =Table1343[[#This Row],[Wtd Air Handlers Heat (Tbtu)]]+Table1343[[#This Row],[Wtd Site Space Heating (TBtu)]] -> 0.8269277872 | Y166: =Table1343[[#This Row],[Wtd Site Total Cooling (TBtu)]]+Table1343[[#This Row],[Wtd Air Handlers Cool (Tbtu)]] -> 0.01515924348
A167: Single Family Detached | B167: 10166 | C167: West South Central | D167: 2010s | E167: Concrete | F167: heat pump | G167: central AC | H167: 37.83367614 | I167: 12939.01373 | J167: =IF(Table1343[[#This Row],[Housing Type]]="Multi-Family (2-4 units)",Table1343[[#This Row],[Number of Homes/ Units]]/3,IF(Table1343[[#This Row],[Housing Type]]="Multi-Family (5+ units)",Table1343[[#This Row],[Number of Homes/ Units]]/12.5720642567977,IF(Table1343[[#This Row],[Housing Type]]="Single Family Detached",Table1343[[#This Row],[Number of Homes/ Units]],IF(Table1343[[#This Row],[Housing Type]]="Single Family Attached",Table1343[[#This Row],[Number of Homes/ Units]],IF(Table1343[[#This Row],[Housing Type]]="Mobile Home",Table1343[[#This Row],[Number of Homes/ Units]]))))) -> 12939.01373 | K167: Mixed-Humid | L167: 306.4217231 | M167: Micropolitan Area | N167: 0.2880262238 | O167: 0.1322532693 | P167: 0.2150204267 | Q167: 0.01979823075 | R167: 0.4102109996 | S167: 1.045510919 | T167: 597.808 | U167: 932.311 | V167: =T167*Table1343[[#This Row],[Number of Buildings]]/1000000000 -> 0.00773504592 | W167: =U167*Table1343[[#This Row],[Number of Buildings]]/1000000000 -> 0.01206318483 | X167: =Table1343[[#This Row],[Wtd Air Handlers Heat (Tbtu)]]+Table1343[[#This Row],[Wtd Site Space Heating (TBtu)]] -> 0.2957612697 | Y167: =Table1343[[#This Row],[Wtd Site Total Cooling (TBtu)]]+Table1343[[#This Row],[Wtd Air Handlers Cool (Tbtu)]] -> 0.2270836115
A168: Multi-Family (2-4 units) | B168: 10167 | C168: West South Central | D168: 1980s | E168: Wood | F168: portable electric heaters | G168: window/wall unit | H168: 21.03938439 | I168: 26168.38855 | J168: =IF(Table1343[[#This Row],[Housing Type]]="Multi-Family (2-4 units)",Table1343[[#This Row],[Number of Homes/ Units]]/3,IF(Table1343[[#This Row],[Housing Type]]="Multi-Family (5+ units)",Table1343[[#This Row],[Number of Homes/ Units]]/12.5720642567977,IF(Table1343[[#This Row],[Housing Type]]="Single Family Detached",Table1343[[#This Row],[Number of Homes/ Units]],IF(Table1343[[#This Row],[Housing Type]]="Single Family Attached",Table1343[[#This Row],[Number of Homes/ Units]],IF(Table1343[[#This Row],[Housing Type]]="Mobile Home",Table1343[[#This Row],[Number of Homes/ Units]]))))) -> 8722.796183 | K168: Hot-Humid | L168: 582.4084443 | M168: Metropolitan Area | N168: 0.1731626121 | O168: 0.6929935684 | P168: 0.1822328111 | Q168: 0 | R168: 0.9387886626 | S168: 1.987177654 | T168: 0 | U168: 0 | V168: =T168*Table1343[[#This Row],[Number of Buildings]]/1000000000 -> 0 | W168: =U168*Table1343[[#This Row],[Number of Buildings]]/1000000000 -> 0 | X168: =Table1343[[#This Row],[Wtd Air Handlers Heat (Tbtu)]]+Table1343[[#This Row],[Wtd Site Space Heating (TBtu)]] -> 0.1731626121 | Y168: =Table1343[[#This Row],[Wtd Site Total Cooling (TBtu)]]+Table1343[[#This Row],[Wtd Air Handlers Cool (Tbtu)]] -> 0.1822328111
A169: Single Family Detached | B169: 10168 | C169: East North Central | D169: 1990s | E169: Siding | F169: central furnace | G169: central AC | H169: 46.60352866 | I169: 22744.5235 | J169: =IF(Table1343[[#This Row],[Housing Type]]="Multi-Family (2-4 units)",Table1343[[#This Row],[Number of Homes/ Units]]/3,IF(Table1343[[#This Row],[Housing Type]]="Multi-Family (5+ units)",Table1343[[#This Row],[Number of Homes/ Units]]/12.5720642567977,IF(Table1343[[#This Row],[Housing Type]]="Single Family Detached",Table1343[[#This Row],[Number of Homes/ Units]],IF(Table1343[[#This Row],[Housing Type]]="Single Family Attached",Table1343[[#This Row],[Number of Homes/ Units]],IF(Table1343[[#This Row],[Housing Type]]="Mobile Home",Table1343[[#This Row],[Number of Homes/ Units]]))))) -> 22744.5235 | K169: Cold/Very Cold | L169: 256.7591502 | M169: Metropolitan Area | N169: 0.1615199152 | O169: 0.2757320858 | P169: 0.07763333619 | Q169: 0.04047738222 | R169: 0.7613173365 | S169: 1.276202674 | T169: 1631.671 | U169: 147.983 | V169: =T169*Table1343[[#This Row],[Number of Buildings]]/1000000000 -> 0.0371115794 | W169: =U169*Table1343[[#This Row],[Number of Buildings]]/1000000000 -> 0.003365802821 | X169: =Table1343[[#This Row],[Wtd Air Handlers Heat (Tbtu)]]+Table1343[[#This Row],[Wtd Site Space Heating (TBtu)]] -> 0.1986314946 | Y169: =Table1343[[#This Row],[Wtd Site Total Cooling (TBtu)]]+Table1343[[#This Row],[Wtd Air Handlers Cool (Tbtu)]] -> 0.08099913902
A170: Single Family Attached | B170: 10169 | C170: West North Central | D170: 1990s | E170: Brick | F170: heat pump | G170: central AC | H170: 11.62756106 | I170: 7094.302047 | J170: =IF(Table1343[[#This Row],[Housing Type]]="Multi-Family (2-4 units)",Table1343[[#This Row],[Number of Homes/ Units]]/3,IF(Table1343[[#This Row],[Housing Type]]="Multi-Family (5+ units)",Table1343[[#This Row],[Number of Homes/ Units]]/12.5720642567977,IF(Table1343[[#This Row],[Housing Type]]="Single Family Detached",Table1343[[#This Row],[Number of Homes/ Units]],IF(Table1343[[#This Row],[Housing Type]]="Single Family Attached",Table1343[[#This Row],[Number of Homes/ Units]],IF(Table1343[[#This Row],[Housing Type]]="Mobile Home",Table1343[[#This Row],[Number of Homes/ Units]]))))) -> 7094.302047 | K170: Mixed-Humid | L170: 64.53536882 | M170: Micropolitan Area | N170: 0.1013051505 | O170: 0.03995984812 | P170: 0.03426560658 | Q170: 0.003388813296 | R170: 0.04466406562 | S170: 0.2201946709 | T170: 249.976 | U170: 227.705 | V170: =T170*Table1343[[#This Row],[Number of Buildings]]/1000000000 -> 0.001773405249 | W170: =U170*Table1343[[#This Row],[Number of Buildings]]/1000000000 -> 0.001615408048 | X170: =Table1343[[#This Row],[Wtd Air Handlers Heat (Tbtu)]]+Table1343[[#This Row],[Wtd Site Space Heating (TBtu)]] -> 0.1030785558 | Y170: =Table1343[[#This Row],[Wtd Site Total Cooling (TBtu)]]+Table1343[[#This Row],[Wtd Air Handlers Cool (Tbtu)]] -> 0.03588101463
A171: Single Family Detached | B171: 10170 | C171: West South Central | D171: 1990s | E171: Wood | F171: central furnace | G171: window/wall unit | H171: 8.310954897 | I171: 10273.12101 | J171: =IF(Table1343[[#This Row],[Housing Type]]="Multi-Family (2-4 units)",Table1343[[#This Row],[Number of Homes/ Units]]/3,IF(Table1343[[#This Row],[Housing Type]]="Multi-Family (5+ units)",Table1343[[#This Row],[Number of Homes/ Units]]/12.5720642567977,IF(Table1343[[#This Row],[Housing Type]]="Single Family Detached",Table1343[[#This Row],[Number of Homes/ Units]],IF(Table1343[[#This Row],[Housing Type]]="Single Family Attached",Table1343[[#This Row],[Number of Homes/ Units]],IF(Table1343[[#This Row],[Housing Type]]="Mobile Home",Table1343[[#This Row],[Number of Homes/ Units]]))))) -> 10273.12101 | K171: Hot-Humid | L171: 146.6488024 | M171: Metropolitan Area | N171: 0.1493648204 | O171: 0.1963177091 | P171: 0.09542931197 | Q171: 0.002917422543 | R171: 0.4164524781 | S171: 0.8575643195 | T171: 283.986 | U171: 0 | V171: =T171*Table1343[[#This Row],[Number of Buildings]]/1000000000 -> 0.002917422543 | W171: =U171*Table1343[[#This Row],[Number of Buildings]]/1000000000 -> 0 | X171: =Table1343[[#This Row],[Wtd Air Handlers Heat (Tbtu)]]+Table1343[[#This Row],[Wtd Site Space Heating (TBtu)]] -> 0.152282243 | Y171: =Table1343[[#This Row],[Wtd Site Total Cooling (TBtu)]]+Table1343[[#This Row],[Wtd Air Handlers Cool (Tbtu)]] -> 0.09542931197
A172: Single Family Detached | B172: 10171 | C172: West North Central | D172: 1990s | E172: Siding | F172: central furnace | G172: central AC | H172: 17.24764473 | I172: 14843.06775 | J172: =IF(Table1343[[#This Row],[Housing Type]]="Multi-Family (2-4 units)",Table1343[[#This Row],[Number of Homes/ Units]]/3,IF(Table1343[[#This Row],[Housing Type]]="Multi-Family (5+ units)",Table1343[[#This Row],[Number of Homes/ Units]]/12.5720642567977,IF(Table1343[[#This Row],[Housing Type]]="Single Family Detached",Table1343[[#This Row],[Number of Homes/ Units]],IF(Table1343[[#This Row],[Housing Type]]="Single Family Attached",Table1343[[#This Row],[Number of Homes/ Units]],IF(Table1343[[#This Row],[Housing Type]]="Mobile Home",Table1343[[#This Row],[Number of Homes/ Units]]))))) -> 14843.06775 | K172: Mixed-Humid | L172: 141.9064368 | M172: Metropolitan Area | N172: 0.5404437261 | O172: 0.4042468683 | P172: 0.1024041056 | Q172: 0.01638109159 | R172: 0.3274733269 | S172: 1.374568027 | T172: 803.849 | U172: 299.77 | V172: =T172*Table1343[[#This Row],[Number of Buildings]]/1000000000 -> 0.01193158517 | W172: =U172*Table1343[[#This Row],[Number of Buildings]]/1000000000 -> 0.004449506419 | X172: =Table1343[[#This Row],[Wtd Air Handlers Heat (Tbtu)]]+Table1343[[#This Row],[Wtd Site Space Heating (TBtu)]] -> 0.5523753113 | Y172: =Table1343[[#This Row],[Wtd Site Total Cooling (TBtu)]]+Table1343[[#This Row],[Wtd Air Handlers Cool (Tbtu)]] -> 0.106853612
A173: Single Family Detached | B173: 10172 | C173: West South Central | D173: 1990s | E173: Brick | F173: central furnace | G173: central AC | H173: 36.47791431 | I173: 23640.90363 | J173: =IF(Table1343[[#This Row],[Housing Type]]="Multi-Family (2-4 units)",Table1343[[#This Row],[Number of Homes/ Units]]/3,IF(Table1343[[#This Row],[Housing Type]]="Multi-Family (5+ units)",Table1343[[#This Row],[Number of Homes/ Units]]/12.5720642567977,IF(Table1343[[#This Row],[Housing Type]]="Single Family Detached",Table1343[[#This Row],[Number of Homes/ Units]],IF(Table1343[[#This Row],[Housing Type]]="Single Family Attached",Table1343[[#This Row],[Number of Homes/ Units]],IF(Table1343[[#This Row],[Housing Type]]="Mobile Home",Table1343[[#This Row],[Number of Homes/ Units]]))))) -> 23640.90363 | K173: Hot-Humid | L173: 322.3975041 | M173: Micropolitan Area | N173: 0.9522089311 | O173: 0.2132713529 | P173: 0.4059769637 | Q173: 0.02944786607 | R173: 0.683862807 | S173: 2.255320055 | T173: 430.634 | U173: 814.998 | V173: =T173*Table1343[[#This Row],[Number of Buildings]]/1000000000 -> 0.01018057689 | W173: =U173*Table1343[[#This Row],[Number of Buildings]]/1000000000 -> 0.01926728918 | X173: =Table1343[[#This Row],[Wtd Air Handlers Heat (Tbtu)]]+Table1343[[#This Row],[Wtd Site Space Heating (TBtu)]] -> 0.962389508 | Y173: =Table1343[[#This Row],[Wtd Site Total Cooling (TBtu)]]+Table1343[[#This Row],[Wtd Air Handlers Cool (Tbtu)]] -> 0.4252442529
A174: Single Family Detached | B174: 10173 | C174: West South Central | D174: Before 1950 | E174: Wood | F174: portable electric heaters | G174: N/A | H174: 32.82431745 | I174: 20362.47981 | J174: =IF(Table1343[[#This Row],[Housing Type]]="Multi-Family (2-4 units)",Table1343[[#This Row],[Number of Homes/ Units]]/3,IF(Table1343[[#This Row],[Housing Type]]="Multi-Family (5+ units)",Table1343[[#This Row],[Number of Homes/ Units]]/12.5720642567977,IF(Table1343[[#This Row],[Housing Type]]="Single Family Detached",Table1343[[#This Row],[Number of Homes/ Units]],IF(Table1343[[#This Row],[Housing Type]]="Single Family Attached",Table1343[[#This Row],[Number of Homes/ Units]],IF(Table1343[[#This Row],[Housing Type]]="Mobile Home",Table1343[[#This Row],[Number of Homes/ Units]]))))) -> 20362.47981 | K174: Hot-Humid | L174: 156.3660074 | M174: Metropolitan Area | N174: 0.4534089555 | O174: 0.5308944018 | P174: 0 | Q174: 0 | R174: 0.1390312247 | S174: 1.123334582 | T174: 0 | U174: 0 | V174: =T174*Table1343[[#This Row],[Number of Buildings]]/1000000000 -> 0 | W174: =U174*Table1343[[#This Row],[Number of Buildings]]/1000000000 -> 0 | X174: =Table1343[[#This Row],[Wtd Air Handlers Heat (Tbtu)]]+Table1343[[#This Row],[Wtd Site Space Heating (TBtu)]] -> 0.4534089555 | Y174: =Table1343[[#This Row],[Wtd Site Total Cooling (TBtu)]]+Table1343[[#This Row],[Wtd Air Handlers Cool (Tbtu)]] -> 0
A175: Multi-Family (5+ units) | B175: 10174 | C175: Pacific | D175: 1980s | E175: Concrete | F175: N/A | G175: N/A | H175: 17.88858362 | I175: 30789.30056 | J175: =IF(Table1343[[#This Row],[Housing Type]]="Multi-Family (2-4 units)",Table1343[[#This Row],[Number of Homes/ Units]]/3,IF(Table1343[[#This Row],[Housing Type]]="Multi-Family (5+ units)",Table1343[[#This Row],[Number of Homes/ Units]]/12.5720642567977,IF(Table1343[[#This Row],[Housing Type]]="Single Family Detached",Table1343[[#This Row],[Number of Homes/ Units]],IF(Table1343[[#This Row],[Housing Type]]="Single Family Attached",Table1343[[#This Row],[Number of Homes/ Units]],IF(Table1343[[#This Row],[Housing Type]]="Mobile Home",Table1343[[#This Row],[Number of Homes/ Units]]))))) -> 2449.025071 | K175: Hot-Humid | L175: 67.93003356 | M175: Metropolitan Area | N175: 0 | O175: 0.05755674873 | P175: 0 | Q175: 0 | R175: 0.2348210357 | S175: 0.2923777844 | T175: 0 | U175: 0 | V175: =T175*Table1343[[#This Row],[Number of Buildings]]/1000000000 -> 0 | W175: =U175*Table1343[[#This Row],[Number of Buildings]]/1000000000 -> 0 | X175: =Table1343[[#This Row],[Wtd Air Handlers Heat (Tbtu)]]+Table1343[[#This Row],[Wtd Site Space Heating (TBtu)]] -> 0 | Y175: =Table1343[[#This Row],[Wtd Site Total Cooling (TBtu)]]+Table1343[[#This Row],[Wtd Air Handlers Cool (Tbtu)]] -> 0
A176: Single Family Detached | B176: 10175 | C176: New England | D176: Before 1950 | E176: Wood | F176: radiator | G176: both central and individual units | H176: 43.90385708 | I176: 14595.69717 | J176: =IF(Table1343[[#This Row],[Housing Type]]="Multi-Family (2-4 units)",Table1343[[#This Row],[Number of Homes/ Units]]/3,IF(Table1343[[#This Row],[Housing Type]]="Multi-Family (5+ units)",Table1343[[#This Row],[Number of Homes/ Units]]/12.5720642567977,IF(Table1343[[#This Row],[Housing Type]]="Single Family Detached",Table1343[[#This Row],[Number of Homes/ Units]],IF(Table1343[[#This Row],[Housing Type]]="Single Family Attached",Table1343[[#This Row],[Number of Homes/ Units]],IF(Table1343[[#This Row],[Housing Type]]="Mobile Home",Table1343[[#This Row],[Number of Homes/ Units]]))))) -> 14595.69717 | K176: Cold/Very Cold | L176: 89.46690924 | M176: Metropolitan Area | N176: 1.076202127 | O176: 0.2222366685 | P176: 0.09711679145 | Q176: 0.007771975212 | R176: 0.2214094428 | S176: 1.61696503 | T176: 259.984 | U176: 272.5 | V176: =T176*Table1343[[#This Row],[Number of Buildings]]/1000000000 -> 0.003794647733 | W176: =U176*Table1343[[#This Row],[Number of Buildings]]/1000000000 -> 0.003977327479 | X176: =Table1343[[#This Row],[Wtd Air Handlers Heat (Tbtu)]]+Table1343[[#This Row],[Wtd Site Space Heating (TBtu)]] -> 1.079996775 | Y176: =Table1343[[#This Row],[Wtd Site Total Cooling (TBtu)]]+Table1343[[#This Row],[Wtd Air Handlers Cool (Tbtu)]] -> 0.1010941189
A177: Single Family Detached | B177: 10176 | C177: West South Central | D177: 1990s | E177: Brick | F177: heat pump | G177: central AC | H177: 42.39753049 | I177: 20403.04643 | J177: =IF(Table1343[[#This Row],[Housing Type]]="Multi-Family (2-4 units)",Table1343[[#This Row],[Number of Homes/ Units]]/3,IF(Table1343[[#This Row],[Housing Type]]="Multi-Family (5+ units)",Table1343[[#This Row],[Number of Homes/ Units]]/12.5720642567977,IF(Table1343[[#This Row],[Housing Type]]="Single Family Detached",Table1343[[#This Row],[Number of Homes/ Units]],IF(Table1343[[#This Row],[Housing Type]]="Single Family Attached",Table1343[[#This Row],[Number of Homes/ Units]],IF(Table1343[[#This Row],[Housing Type]]="Mobile Home",Table1343[[#This Row],[Number of Homes/ Units]]))))) -> 20403.04643 | K177: Hot-Humid | L177: 301.1198298 | M177: Metropolitan Area | N177: 0.1769431146 | O177: 0.1776725847 | P177: 0.3239994184 | Q177: 0.01986920072 | R177: 0.3488057075 | S177: 1.027420825 | T177: 152.389 | U177: 821.446 | V177: =T177*Table1343[[#This Row],[Number of Buildings]]/1000000000 -> 0.003109199842 | W177: =U177*Table1343[[#This Row],[Number of Buildings]]/1000000000 -> 0.01676000088 | X177: =Table1343[[#This Row],[Wtd Air Handlers Heat (Tbtu)]]+Table1343[[#This Row],[Wtd Site Space Heating (TBtu)]] -> 0.1800523145 | Y177: =Table1343[[#This Row],[Wtd Site Total Cooling (TBtu)]]+Table1343[[#This Row],[Wtd Air Handlers Cool (Tbtu)]] -> 0.3407594192
A178: Single Family Detached | B178: 10177 | C178: East South Central | D178: 1950s | E178: Brick | F178: central furnace | G178: both central and individual units | H178: 14.69768831 | I178: 10101.504 | J178: =IF(Table1343[[#This Row],[Housing Type]]="Multi-Family (2-4 units)",Table1343[[#This Row],[Number of Homes/ Units]]/3,IF(Table1343[[#This Row],[Housing Type]]="Multi-Family (5+ units)",Table1343[[#This Row],[Number of Homes/ Units]]/12.5720642567977,IF(Table1343[[#This Row],[Housing Type]]="Single Family Detached",Table1343[[#This Row],[Number of Homes/ Units]],IF(Table1343[[#This Row],[Housing Type]]="Single Family Attached",Table1343[[#This Row],[Number of Homes/ Units]],IF(Table1343[[#This Row],[Housing Type]]="Mobile Home",Table1343[[#This Row],[Number of Homes/ Units]]))))) -> 10101.504 | K178: Hot-Humid | L178: 138.8648198 | M178: Metropolitan Area | N178: 0.3203717449 | O178: 0.1175966891 | P178: 0.2727661951 | Q178: 0.01328568999 | R178: 0.2672930083 | S178: 0.9780276375 | T178: 229.997 | U178: 1085.222 | V178: =T178*Table1343[[#This Row],[Number of Buildings]]/1000000000 -> 0.002323315615 | W178: =U178*Table1343[[#This Row],[Number of Buildings]]/1000000000 -> 0.01096237437 | X178: =Table1343[[#This Row],[Wtd Air Handlers Heat (Tbtu)]]+Table1343[[#This Row],[Wtd Site Space Heating (TBtu)]] -> 0.3226950606 | Y178: =Table1343[[#This Row],[Wtd Site Total Cooling (TBtu)]]+Table1343[[#This Row],[Wtd Air Handlers Cool (Tbtu)]] -> 0.2837285695
A179: Single Family Detached | B179: 10178 | C179: Middle Atlantic | D179: Before 1950 | E179: Brick | F179: central furnace | G179: central AC | H179: 37.83280452 | I179: 33539.72032 | J179: =IF(Table1343[[#This Row],[Housing Type]]="Multi-Family (2-4 units)",Table1343[[#This Row],[Number of Homes/ Units]]/3,IF(Table1343[[#This Row],[Housing Type]]="Multi-Family (5+ units)",Table1343[[#This Row],[Number of Homes/ Units]]/12.5720642567977,IF(Table1343[[#This Row],[Housing Type]]="Single Family Detached",Table1343[[#This Row],[Number of Homes/ Units]],IF(Table1343[[#This Row],[Housing Type]]="Single Family Attached",Table1343[[#This Row],[Number of Homes/ Units]],IF(Table1343[[#This Row],[Housing Type]]="Mobile Home",Table1343[[#This Row],[Number of Homes/ Units]]))))) -> 33539.72032 | K179: Cold/Very Cold | L179: 156.1426586 | M179: Metropolitan Area | N179: 1.853532932 | O179: 0.8021318258 | P179: 0.1231418546 | Q179: 0.03117651163 | R179: 0.4578636013 | S179: 3.236670214 | T179: 767.956 | U179: 161.584 | V179: =T179*Table1343[[#This Row],[Number of Buildings]]/1000000000 -> 0.02575702946 | W179: =U179*Table1343[[#This Row],[Number of Buildings]]/1000000000 -> 0.005419482168 | X179: =Table1343[[#This Row],[Wtd Air Handlers Heat (Tbtu)]]+Table1343[[#This Row],[Wtd Site Space Heating (TBtu)]] -> 1.879289962 | Y179: =Table1343[[#This Row],[Wtd Site Total Cooling (TBtu)]]+Table1343[[#This Row],[Wtd Air Handlers Cool (Tbtu)]] -> 0.1285613367
A180: Multi-Family (5+ units) | B180: 10179 | C180: Pacific | D180: 1980s | E180: Stucco | F180: built-in furnace | G180: N/A | H180: 6.191000556 | I180: 8423.130008 | J180: =IF(Table1343[[#This Row],[Housing Type]]="Multi-Family (2-4 units)",Table1343[[#This Row],[Number of Homes/ Units]]/3,IF(Table1343[[#This Row],[Housing Type]]="Multi-Family (5+ units)",Table1343[[#This Row],[Number of Homes/ Units]]/12.5720642567977,IF(Table1343[[#This Row],[Housing Type]]="Single Family Detached",Table1343[[#This Row],[Number of Homes/ Units]],IF(Table1343[[#This Row],[Housing Type]]="Single Family Attached",Table1343[[#This Row],[Number of Homes/ Units]],IF(Table1343[[#This Row],[Housing Type]]="Mobile Home",Table1343[[#This Row],[Number of Homes/ Units]]))))) -> 669.9878267 | K180: Marine | L180: 24.71935963 | M180: Metropolitan Area | N180: 0.04206583565 | O180: 0.07651662269 | P180: 0 | Q180: 0 | R180: 0.0832256289 | S180: 0.2018080872 | T180: 0 | U180: 0 | V180: =T180*Table1343[[#This Row],[Number of Buildings]]/1000000000 -> 0 | W180: =U180*Table1343[[#This Row],[Number of Buildings]]/1000000000 -> 0 | X180: =Table1343[[#This Row],[Wtd Air Handlers Heat (Tbtu)]]+Table1343[[#This Row],[Wtd Site Space Heating (TBtu)]] -> 0.04206583565 | Y180: =Table1343[[#This Row],[Wtd Site Total Cooling (TBtu)]]+Table1343[[#This Row],[Wtd Air Handlers Cool (Tbtu)]] -> 0
A181: Single Family Detached | B181: 10180 | C181: West South Central | D181: 2000s | E181: Brick | F181: central furnace | G181: central AC | H181: 16.92502813 | I181: 15057.85421 | J181: =IF(Table1343[[#This Row],[Housing Type]]="Multi-Family (2-4 units)",Table1343[[#This Row],[Number of Homes/ Units]]/3,IF(Table1343[[#This Row],[Housing Type]]="Multi-Family (5+ units)",Table1343[[#This Row],[Number of Homes/ Units]]/12.5720642567977,IF(Table1343[[#This Row],[Housing Type]]="Single Family Detached",Table1343[[#This Row],[Number of Homes/ Units]],IF(Table1343[[#This Row],[Housing Type]]="Single Family Attached",Table1343[[#This Row],[Number of Homes/ Units]],IF(Table1343[[#This Row],[Housing Type]]="Mobile Home",Table1343[[#This Row],[Number of Homes/ Units]]))))) -> 15057.85421 | K181: Hot-Humid | L181: 298.8231168 | M181: Rural | N181: 0.2881595962 | O181: 0.1271129694 | P181: 0.1034100547 | Q181: 0.009371541667 | R181: 0.5008997462 | S181: 1.019582366 | T181: 311.321 | U181: 311.048 | V181: =T181*Table1343[[#This Row],[Number of Buildings]]/1000000000 -> 0.004687826231 | W181: =U181*Table1343[[#This Row],[Number of Buildings]]/1000000000 -> 0.004683715436 | X181: =Table1343[[#This Row],[Wtd Air Handlers Heat (Tbtu)]]+Table1343[[#This Row],[Wtd Site Space Heating (TBtu)]] -> 0.2928474224 | Y181: =Table1343[[#This Row],[Wtd Site Total Cooling (TBtu)]]+Table1343[[#This Row],[Wtd Air Handlers Cool (Tbtu)]] -> 0.1080937701
A182: Single Family Detached | B182: 10181 | C182: Mountain South | D182: 1980s | E182: Stucco | F182: central furnace | G182: N/A | H182: 19.10672638 | I182: 9728.475753 | J182: =IF(Table1343[[#This Row],[Housing Type]]="Multi-Family (2-4 units)",Table1343[[#This Row],[Number of Homes/ Units]]/3,IF(Table1343[[#This Row],[Housing Type]]="Multi-Family (5+ units)",Table1343[[#This Row],[Number of Homes/ Units]]/12.5720642567977,IF(Table1343[[#This Row],[Housing Type]]="Single Family Detached",Table1343[[#This Row],[Number of Homes/ Units]],IF(Table1343[[#This Row],[Housing Type]]="Single Family Attached",Table1343[[#This Row],[Number of Homes/ Units]],IF(Table1343[[#This Row],[Housing Type]]="Mobile Home",Table1343[[#This Row],[Number of Homes/ Units]]))))) -> 9728.475753 | K182: Cold/Very Cold | L182: 23.83004728 | M182: Metropolitan Area | N182: 0.1327394967 | O182: 0.0507767577 | P182: 0.02315086348 | Q182: 0.002050393007 | R182: 0.05184446765 | S182: 0.2585115855 | T182: 210.762 | U182: 0 | V182: =T182*Table1343[[#This Row],[Number of Buildings]]/1000000000 -> 0.002050393007 | W182: =U182*Table1343[[#This Row],[Number of Buildings]]/1000000000 -> 0 | X182: =Table1343[[#This Row],[Wtd Air Handlers Heat (Tbtu)]]+Table1343[[#This Row],[Wtd Site Space Heating (TBtu)]] -> 0.1347898897 | Y182: =Table1343[[#This Row],[Wtd Site Total Cooling (TBtu)]]+Table1343[[#This Row],[Wtd Air Handlers Cool (Tbtu)]] -> 0.02315086348
A183: Single Family Detached | B183: 10182 | C183: East South Central | D183: 1960s | E183: Siding | F183: portable electric heaters | G183: window/wall unit | H183: 56.44430838 | I183: 17250.7055 | J183: =IF(Table1343[[#This Row],[Housing Type]]="Multi-Family (2-4 units)",Table1343[[#This Row],[Number of Homes/ Units]]/3,IF(Table1343[[#This Row],[Housing Type]]="Multi-Family (5+ units)",Table1343[[#This Row],[Number of Homes/ Units]]/12.5720642567977,IF(Table1343[[#This Row],[Housing Type]]="Single Family Detached",Table1343[[#This Row],[Number of Homes/ Units]],IF(Table1343[[#This Row],[Housing Type]]="Single Family Attached",Table1343[[#This Row],[Number of Homes/ Units]],IF(Table1343[[#This Row],[Housing Type]]="Mobile Home",Table1343[[#This Row],[Number of Homes/ Units]]))))) -> 17250.7055 | K183: Mixed-Humid | L183: 133.086519 | M183: Micropolitan Area | N183: 0.1185628223 | O183: 0.1201574431 | P183: 0.06786479296 | Q183: 0 | R183: 0.4755942223 | S183: 0.7821792807 | T183: 0 | U183: 0 | V183: =T183*Table1343[[#This Row],[Number of Buildings]]/1000000000 -> 0 | W183: =U183*Table1343[[#This Row],[Number of Buildings]]/1000000000 -> 0 | X183: =Table1343[[#This Row],[Wtd Air Handlers Heat (Tbtu)]]+Table1343[[#This Row],[Wtd Site Space Heating (TBtu)]] -> 0.1185628223 | Y183: =Table1343[[#This Row],[Wtd Site Total Cooling (TBtu)]]+Table1343[[#This Row],[Wtd Air Handlers Cool (Tbtu)]] -> 0.06786479296
A184: Single Family Detached | B184: 10183 | C184: West South Central | D184: 1950s | E184: Siding | F184: built-in electric unit | G184: central AC | H184: 88.42084033 | I184: 46269.40886 | J184: =IF(Table1343[[#This Row],[Housing Type]]="Multi-Family (2-4 units)",Table1343[[#This Row],[Number of Homes/ Units]]/3,IF(Table1343[[#This Row],[Housing Type]]="Multi-Family (5+ units)",Table1343[[#This Row],[Number of Homes/ Units]]/12.5720642567977,IF(Table1343[[#This Row],[Housing Type]]="Single Family Detached",Table1343[[#This Row],[Number of Homes/ Units]],IF(Table1343[[#This Row],[Housing Type]]="Single Family Attached",Table1343[[#This Row],[Number of Homes/ Units]],IF(Table1343[[#This Row],[Housing Type]]="Mobile Home",Table1343[[#This Row],[Number of Homes/ Units]]))))) -> 46269.40886 | K184: Hot-Humid | L184: 1425.18589 | M184: Metropolitan Area | N184: 1.766341762 | O184: 0.741641944 | P184: 1.199439249 | Q184: 0.06090821697 | R184: 1.155311373 | S184: 4.862734328 | T184: 0 | U184: 1316.382 | V184: =T184*Table1343[[#This Row],[Number of Buildings]]/1000000000 -> 0 | W184: =U184*Table1343[[#This Row],[Number of Buildings]]/1000000000 -> 0.06090821697 | X184: =Table1343[[#This Row],[Wtd Air Handlers Heat (Tbtu)]]+Table1343[[#This Row],[Wtd Site Space Heating (TBtu)]] -> 1.766341762 | Y184: =Table1343[[#This Row],[Wtd Site Total Cooling (TBtu)]]+Table1343[[#This Row],[Wtd Air Handlers Cool (Tbtu)]] -> 1.260347465
A185: Single Family Attached | B185: 10184 | C185: New England | D185: 1980s | E185: Shingle | F185: heater burning gas/oil/kerosene | G185: window/wall unit | H185: 22.53505316 | I185: 7862.893636 | J185: =IF(Table1343[[#This Row],[Housing Type]]="Multi-Family (2-4 units)",Table1343[[#This Row],[Number of Homes/ Units]]/3,IF(Table1343[[#This Row],[Housing Type]]="Multi-Family (5+ units)",Table1343[[#This Row],[Number of Homes/ Units]]/12.5720642567977,IF(Table1343[[#This Row],[Housing Type]]="Single Family Detached",Table1343[[#This Row],[Number of Homes/ Units]],IF(Table1343[[#This Row],[Housing Type]]="Single Family Attached",Table1343[[#This Row],[Number of Homes/ Units]],IF(Table1343[[#This Row],[Housing Type]]="Mobile Home",Table1343[[#This Row],[Number of Homes/ Units]]))))) -> 7862.893636 | K185: Cold/Very Cold | L185: 98.36200805 | M185: Metropolitan Area | N185: 0.4194396134 | O185: 0.05890516646 | P185: 0.008806574542 | Q185: 0 | R185: 0.31029518 | S185: 0.7974465345 | T185: 0 | U185: 0 | V185: =T185*Table1343[[#This Row],[Number of Buildings]]/1000000000 -> 0 | W185: =U185*Table1343[[#This Row],[Number of Buildings]]/1000000000 -> 0 | X185: =Table1343[[#This Row],[Wtd Air Handlers Heat (Tbtu)]]+Table1343[[#This Row],[Wtd Site Space Heating (TBtu)]] -> 0.4194396134 | Y185: =Table1343[[#This Row],[Wtd Site Total Cooling (TBtu)]]+Table1343[[#This Row],[Wtd Air Handlers Cool (Tbtu)]] -> 0.008806574542
A186: Multi-Family (5+ units) | B186: 10185 | C186: West South Central | D186: 2000s | E186: Brick | F186: fireplace | G186: central AC | H186: 43.40476892 | I186: 41655.24849 | J186: =IF(Table1343[[#This Row],[Housing Type]]="Multi-Family (2-4 units)",Table1343[[#This Row],[Number of Homes/ Units]]/3,IF(Table1343[[#This Row],[Housing Type]]="Multi-Family (5+ units)",Table1343[[#This Row],[Number of Homes/ Units]]/12.5720642567977,IF(Table1343[[#This Row],[Housing Type]]="Single Family Detached",Table1343[[#This Row],[Number of Homes/ Units]],IF(Table1343[[#This Row],[Housing Type]]="Single Family Attached",Table1343[[#This Row],[Number of Homes/ Units]],IF(Table1343[[#This Row],[Housing Type]]="Mobile Home",Table1343[[#This Row],[Number of Homes/ Units]]))))) -> 3313.318134 | K186: Hot-Humid | L186: 232.2696656 | M186: Micropolitan Area | N186: 0.1200525922 | O186: 0.1740528735 | P186: 0.1266967379 | Q186: 0.005878555288 | R186: 0.3662779324 | S186: 0.7924911025 | T186: 0 | U186: 141.124 | V186: =T186*Table1343[[#This Row],[Number of Buildings]]/1000000000 -> 0 | W186: =U186*Table1343[[#This Row],[Number of Buildings]]/1000000000 -> 0.0004675887084 | X186: =Table1343[[#This Row],[Wtd Air Handlers Heat (Tbtu)]]+Table1343[[#This Row],[Wtd Site Space Heating (TBtu)]] -> 0.1200525922 | Y186: =Table1343[[#This Row],[Wtd Site Total Cooling (TBtu)]]+Table1343[[#This Row],[Wtd Air Handlers Cool (Tbtu)]] -> 0.1271643266
A187: Single Family Detached | B187: 10186 | C187: West South Central | D187: 1970s | E187: Brick | F187: central furnace | G187: window/wall unit | H187: 13.97235399 | I187: 14707.74104 | J187: =IF(Table1343[[#This Row],[Housing Type]]="Multi-Family (2-4 units)",Table1343[[#This Row],[Number of Homes/ Units]]/3,IF(Table1343[[#This Row],[Housing Type]]="Multi-Family (5+ units)",Table1343[[#This Row],[Number of Homes/ Units]]/12.5720642567977,IF(Table1343[[#This Row],[Housing Type]]="Single Family Detached",Table1343[[#This Row],[Number of Homes/ Units]],IF(Table1343[[#This Row],[Housing Type]]="Single Family Attached",Table1343[[#This Row],[Number of Homes/ Units]],IF(Table1343[[#This Row],[Housing Type]]="Mobile Home",Table1343[[#This Row],[Number of Homes/ Units]]))))) -> 14707.74104 | K187: Hot-Humid | L187: 145.1301202 | M187: Metropolitan Area | N187: 0.2420159524 | O187: 0.06807680907 | P187: 0.09189401014 | Q187: 0.003956308801 | R187: 0.09319721895 | S187: 0.4951839905 | T187: 268.995 | U187: 0 | V187: =T187*Table1343[[#This Row],[Number of Buildings]]/1000000000 -> 0.003956308801 | W187: =U187*Table1343[[#This Row],[Number of Buildings]]/1000000000 -> 0 | X187: =Table1343[[#This Row],[Wtd Air Handlers Heat (Tbtu)]]+Table1343[[#This Row],[Wtd Site Space Heating (TBtu)]] -> 0.2459722612 | Y187: =Table1343[[#This Row],[Wtd Site Total Cooling (TBtu)]]+Table1343[[#This Row],[Wtd Air Handlers Cool (Tbtu)]] -> 0.09189401014
A188: Single Family Detached | B188: 10187 | C188: East North Central | D188: 1970s | E188: Siding | F188: central furnace | G188: central AC | H188: 35.61452545 | I188: 20053.22379 | J188: =IF(Table1343[[#This Row],[Housing Type]]="Multi-Family (2-4 units)",Table1343[[#This Row],[Number of Homes/ Units]]/3,IF(Table1343[[#This Row],[Housing Type]]="Multi-Family (5+ units)",Table1343[[#This Row],[Number of Homes/ Units]]/12.5720642567977,IF(Table1343[[#This Row],[Housing Type]]="Single Family Detached",Table1343[[#This Row],[Number of Homes/ Units]],IF(Table1343[[#This Row],[Housing Type]]="Single Family Attached",Table1343[[#This Row],[Number of Homes/ Units]],IF(Table1343[[#This Row],[Housing Type]]="Mobile Home",Table1343[[#This Row],[Number of Homes/ Units]]))))) -> 20053.22379 | K188: Cold/Very Cold | L188: 166.5388151 | M188: Metropolitan Area | N188: 0.0915619169 | O188: 0.1701357819 | P188: 0.0269327429 | Q188: 0.003223475511 | R188: 0.2796000138 | S188: 0.5682304554 | T188: 96.07 | U188: 64.676 | V188: =T188*Table1343[[#This Row],[Number of Buildings]]/1000000000 -> 0.00192651321 | W188: =U188*Table1343[[#This Row],[Number of Buildings]]/1000000000 -> 0.001296962302 | X188: =Table1343[[#This Row],[Wtd Air Handlers Heat (Tbtu)]]+Table1343[[#This Row],[Wtd Site Space Heating (TBtu)]] -> 0.09348843011 | Y188: =Table1343[[#This Row],[Wtd Site Total Cooling (TBtu)]]+Table1343[[#This Row],[Wtd Air Handlers Cool (Tbtu)]] -> 0.0282297052
A189: Single Family Detached | B189: 10188 | C189: West South Central | D189: 1960s | E189: Brick | F189: central furnace | G189: N/A | H189: 49.96233773 | I189: 19216.28374 | J189: =IF(Table1343[[#This Row],[Housing Type]]="Multi-Family (2-4 units)",Table1343[[#This Row],[Number of Homes/ Units]]/3,IF(Table1343[[#This Row],[Housing Type]]="Multi-Family (5+ units)",Table1343[[#This Row],[Number of Homes/ Units]]/12.5720642567977,IF(Table1343[[#This Row],[Housing Type]]="Single Family Detached",Table1343[[#This Row],[Number of Homes/ Units]],IF(Table1343[[#This Row],[Housing Type]]="Single Family Attached",Table1343[[#This Row],[Number of Homes/ Units]],IF(Table1343[[#This Row],[Housing Type]]="Mobile Home",Table1343[[#This Row],[Number of Homes/ Units]]))))) -> 19216.28374 | K189: Hot-Humid | L189: 189.2611786 | M189: Metropolitan Area | N189: 0.3459680124 | O189: 0.2020877021 | P189: 0 | Q189: 0.008381873939 | R189: 0.6816781035 | S189: 1.229733818 | T189: 436.186 | U189: 0 | V189: =T189*Table1343[[#This Row],[Number of Buildings]]/1000000000 -> 0.008381873939 | W189: =U189*Table1343[[#This Row],[Number of Buildings]]/1000000000 -> 0 | X189: =Table1343[[#This Row],[Wtd Air Handlers Heat (Tbtu)]]+Table1343[[#This Row],[Wtd Site Space Heating (TBtu)]] -> 0.3543498863 | Y189: =Table1343[[#This Row],[Wtd Site Total Cooling (TBtu)]]+Table1343[[#This Row],[Wtd Air Handlers Cool (Tbtu)]] -> 0
A190: Single Family Detached | B190: 10189 | C190: East North Central | D190: 2000s | E190: Siding | F190: central furnace | G190: central AC | H190: 54.03631191 | I190: 15991.80583 | J190: =IF(Table1343[[#This Row],[Housing Type]]="Multi-Family (2-4 units)",Table1343[[#This Row],[Number of Homes/ Units]]/3,IF(Table1343[[#This Row],[Housing Type]]="Multi-Family (5+ units)",Table1343[[#This Row],[Number of Homes/ Units]]/12.5720642567977,IF(Table1343[[#This Row],[Housing Type]]="Single Family Detached",Table1343[[#This Row],[Number of Homes/ Units]],IF(Table1343[[#This Row],[Housing Type]]="Single Family Attached",Table1343[[#This Row],[Number of Homes/ Units]],IF(Table1343[[#This Row],[Housing Type]]="Mobile Home",Table1343[[#This Row],[Number of Homes/ Units]]))))) -> 15991.80583 | K190: Cold/Very Cold | L190: 95.52078335 | M190: Metropolitan Area | N190: 0.9468973397 | O190: 0.465419504 | P190: 0.03189855124 | Q190: 0.01475205707 | R190: 0.3747194505 | S190: 1.818934845 | T190: 804.248 | U190: 118.228 | V190: =T190*Table1343[[#This Row],[Number of Buildings]]/1000000000 -> 0.01286137786 | W190: =U190*Table1343[[#This Row],[Number of Buildings]]/1000000000 -> 0.00189067922 | X190: =Table1343[[#This Row],[Wtd Air Handlers Heat (Tbtu)]]+Table1343[[#This Row],[Wtd Site Space Heating (TBtu)]] -> 0.9597587175 | Y190: =Table1343[[#This Row],[Wtd Site Total Cooling (TBtu)]]+Table1343[[#This Row],[Wtd Air Handlers Cool (Tbtu)]] -> 0.03378923046
A191: Single Family Attached | B191: 10190 | C191: Pacific | D191: 1960s | E191: Wood | F191: built-in electric unit | G191: N/A | H191: 6.454453889 | I191: 8037.925143 | J191: =IF(Table1343[[#This Row],[Housing Type]]="Multi-Family (2-4 units)",Table1343[[#This Row],[Number of Homes/ Units]]/3,IF(Table1343[[#This Row],[Housing Type]]="Multi-Family (5+ units)",Table1343[[#This Row],[Number of Homes/ Units]]/12.5720642567977,IF(Table1343[[#This Row],[Housing Type]]="Single Family Detached",Table1343[[#This Row],[Number of Homes/ Units]],IF(Table1343[[#This Row],[Housing Type]]="Single Family Attached",Table1343[[#This Row],[Number of Homes/ Units]],IF(Table1343[[#This Row],[Housing Type]]="Mobile Home",Table1343[[#This Row],[Number of Homes/ Units]]))))) -> 8037.925143 | K191: Marine | L191: 92.90634972 | M191: Metropolitan Area | N191: 0.1420886936 | O191: 0.09510355675 | P191: 0 | Q191: 0 | R191: 0.07980421827 | S191: 0.3169964686 | T191: 0 | U191: 0 | V191: =T191*Table1343[[#This Row],[Number of Buildings]]/1000000000 -> 0 | W191: =U191*Table1343[[#This Row],[Number of Buildings]]/1000000000 -> 0 | X191: =Table1343[[#This Row],[Wtd Air Handlers Heat (Tbtu)]]+Table1343[[#This Row],[Wtd Site Space Heating (TBtu)]] -> 0.1420886936 | Y191: =Table1343[[#This Row],[Wtd Site Total Cooling (TBtu)]]+Table1343[[#This Row],[Wtd Air Handlers Cool (Tbtu)]] -> 0
A192: Single Family Detached | B192: 10191 | C192: South Atlantic | D192: 1980s | E192: Stucco | F192: heat pump | G192: central AC | H192: 40.74692838 | I192: 24399.35831 | J192: =IF(Table1343[[#This Row],[Housing Type]]="Multi-Family (2-4 units)",Table1343[[#This Row],[Number of Homes/ Units]]/3,IF(Table1343[[#This Row],[Housing Type]]="Multi-Family (5+ units)",Table1343[[#This Row],[Number of Homes/ Units]]/12.5720642567977,IF(Table1343[[#This Row],[Housing Type]]="Single Family Detached",Table1343[[#This Row],[Number of Homes/ Units]],IF(Table1343[[#This Row],[Housing Type]]="Single Family Attached",Table1343[[#This Row],[Number of Homes/ Units]],IF(Table1343[[#This Row],[Housing Type]]="Mobile Home",Table1343[[#This Row],[Number of Homes/ Units]]))))) -> 24399.35831 | K192: Hot-Humid | L192: 406.6505877 | M192: Metropolitan Area | N192: 0.01563266887 | O192: 0.1704996903 | P192: 0.2993025365 | Q192: 0.01273922217 | R192: 1.304351095 | S192: 1.789785991 | T192: 15.263 | U192: 506.85 | V192: =T192*Table1343[[#This Row],[Number of Buildings]]/1000000000 -> 0.0003724074059 | W192: =U192*Table1343[[#This Row],[Number of Buildings]]/1000000000 -> 0.01236681476 | X192: =Table1343[[#This Row],[Wtd Air Handlers Heat (Tbtu)]]+Table1343[[#This Row],[Wtd Site Space Heating (TBtu)]] -> 0.01600507628 | Y192: =Table1343[[#This Row],[Wtd Site Total Cooling (TBtu)]]+Table1343[[#This Row],[Wtd Air Handlers Cool (Tbtu)]] -> 0.3116693513
A193: Single Family Detached | B193: 10192 | C193: West North Central | D193: 1970s | E193: Siding | F193: central furnace | G193: central AC | H193: 101.1167056 | I193: 15244.49051 | J193: =IF(Table1343[[#This Row],[Housing Type]]="Multi-Family (2-4 units)",Table1343[[#This Row],[Number of Homes/ Units]]/3,IF(Table1343[[#This Row],[Housing Type]]="Multi-Family (5+ units)",Table1343[[#This Row],[Number of Homes/ Units]]/12.5720642567977,IF(Table1343[[#This Row],[Housing Type]]="Single Family Detached",Table1343[[#This Row],[Number of Homes/ Units]],IF(Table1343[[#This Row],[Housing Type]]="Single Family Attached",Table1343[[#This Row],[Number of Homes/ Units]],IF(Table1343[[#This Row],[Housing Type]]="Mobile Home",Table1343[[#This Row],[Number of Homes/ Units]]))))) -> 15244.49051 | K193: Mixed-Humid | L193: 239.7512456 | M193: Metropolitan Area | N193: 1.231833449 | O193: 0.150778103 | P193: 0.2343596047 | Q193: 0.06658468747 | R193: 0.4180867531 | S193: 2.03505791 | T193: 3264.491 | U193: 1103.296 | V193: =T193*Table1343[[#This Row],[Number of Buildings]]/1000000000 -> 0.04976550207 | W193: =U193*Table1343[[#This Row],[Number of Buildings]]/1000000000 -> 0.0168191854 | X193: =Table1343[[#This Row],[Wtd Air Handlers Heat (Tbtu)]]+Table1343[[#This Row],[Wtd Site Space Heating (TBtu)]] -> 1.281598951 | Y193: =Table1343[[#This Row],[Wtd Site Total Cooling (TBtu)]]+Table1343[[#This Row],[Wtd Air Handlers Cool (Tbtu)]] -> 0.2511787901
A194: Single Family Detached | B194: 10193 | C194: East North Central | D194: 2000s | E194: Siding | F194: heat pump | G194: central AC | H194: 39.12953929 | I194: 18985.70562 | J194: =IF(Table1343[[#This Row],[Housing Type]]="Multi-Family (2-4 units)",Table1343[[#This Row],[Number of Homes/ Units]]/3,IF(Table1343[[#This Row],[Housing Type]]="Multi-Family (5+ units)",Table1343[[#This Row],[Number of Homes/ Units]]/12.5720642567977,IF(Table1343[[#This Row],[Housing Type]]="Single Family Detached",Table1343[[#This Row],[Number of Homes/ Units]],IF(Table1343[[#This Row],[Housing Type]]="Single Family Attached",Table1343[[#This Row],[Number of Homes/ Units]],IF(Table1343[[#This Row],[Housing Type]]="Mobile Home",Table1343[[#This Row],[Number of Homes/ Units]]))))) -> 18985.70562 | K194: Cold/Very Cold | L194: 494.0444749 | M194: Metropolitan Area | N194: 0.6298481639 | O194: 0.2403759114 | P194: 0.0822881111 | Q194: 0.0156180971 | R194: 0.7331675385 | S194: 1.685679725 | T194: 610.608 | U194: 212.016 | V194: =T194*Table1343[[#This Row],[Number of Buildings]]/1000000000 -> 0.01159282374 | W194: =U194*Table1343[[#This Row],[Number of Buildings]]/1000000000 -> 0.004025273363 | X194: =Table1343[[#This Row],[Wtd Air Handlers Heat (Tbtu)]]+Table1343[[#This Row],[Wtd Site Space Heating (TBtu)]] -> 0.6414409877 | Y194: =Table1343[[#This Row],[Wtd Site Total Cooling (TBtu)]]+Table1343[[#This Row],[Wtd Air Handlers Cool (Tbtu)]] -> 0.08631338446
A195: Multi-Family (2-4 units) | B195: 10194 | C195: East North Central | D195: 1970s | E195: Siding | F195: central furnace | G195: central AC | H195: 65.82844411 | I195: 47805.69652 | J195: =IF(Table1343[[#This Row],[Housing Type]]="Multi-Family (2-4 units)",Table1343[[#This Row],[Number of Homes/ Units]]/3,IF(Table1343[[#This Row],[Housing Type]]="Multi-Family (5+ units)",Table1343[[#This Row],[Number of Homes/ Units]]/12.5720642567977,IF(Table1343[[#This Row],[Housing Type]]="Single Family Detached",Table1343[[#This Row],[Number of Homes/ Units]],IF(Table1343[[#This Row],[Housing Type]]="Single Family Attached",Table1343[[#This Row],[Number of Homes/ Units]],IF(Table1343[[#This Row],[Housing Type]]="Mobile Home",Table1343[[#This Row],[Number of Homes/ Units]]))))) -> 15935.23217 | K195: Cold/Very Cold | L195: 174.9715742 | M195: Metropolitan Area | N195: 2.411661558 | O195: 0.4692952806 | P195: 0.1717265554 | Q195: 0.0484718689 | R195: 0.4012832157 | S195: 3.486281188 | T195: 849.554 | U195: 164.381 | V195: =T195*Table1343[[#This Row],[Number of Buildings]]/1000000000 -> 0.01353784023 | W195: =U195*Table1343[[#This Row],[Number of Buildings]]/1000000000 -> 0.0026194494 | X195: =Table1343[[#This Row],[Wtd Air Handlers Heat (Tbtu)]]+Table1343[[#This Row],[Wtd Site Space Heating (TBtu)]] -> 2.425199398 | Y195: =Table1343[[#This Row],[Wtd Site Total Cooling (TBtu)]]+Table1343[[#This Row],[Wtd Air Handlers Cool (Tbtu)]] -> 0.1743460048
A196: Multi-Family (5+ units) | B196: 10195 | C196: Pacific | D196: 1950s | E196: Stucco | F196: portable electric heaters | G196: N/A | H196: 13.29520895 | I196: 17609.54828 | J196: =IF(Table1343[[#This Row],[Housing Type]]="Multi-Family (2-4 units)",Table1343[[#This Row],[Number of Homes/ Units]]/3,IF(Table1343[[#This Row],[Housing Type]]="Multi-Family (5+ units)",Table1343[[#This Row],[Number of Homes/ Units]]/12.5720642567977,IF(Table1343[[#This Row],[Housing Type]]="Single Family Detached",Table1343[[#This Row],[Number of Homes/ Units]],IF(Table1343[[#This Row],[Housing Type]]="Single Family Attached",Table1343[[#This Row],[Number of Homes/ Units]],IF(Table1343[[#This Row],[Housing Type]]="Mobile Home",Table1343[[#This Row],[Number of Homes/ Units]]))))) -> 1400.688695 | K196: Cold/Very Cold | L196: 116.5977675 | M196: Metropolitan Area | N196: 0.1043936637 | O196: 0.1458857744 | P196: 0 | Q196: 0 | R196: 0.1475521308 | S196: 0.3978315689 | T196: 0 | U196: 0 | V196: =T196*Table1343[[#This Row],[Number of Buildings]]/1000000000 -> 0 | W196: =U196*Table1343[[#This Row],[Number of Buildings]]/1000000000 -> 0 | X196: =Table1343[[#This Row],[Wtd Air Handlers Heat (Tbtu)]]+Table1343[[#This Row],[Wtd Site Space Heating (TBtu)]] -> 0.1043936637 | Y196: =Table1343[[#This Row],[Wtd Site Total Cooling (TBtu)]]+Table1343[[#This Row],[Wtd Air Handlers Cool (Tbtu)]] -> 0
A197: Single Family Detached | B197: 10196 | C197: Pacific | D197: 1990s | E197: Wood | F197: N/A | G197: N/A | H197: 16.91100868 | I197: 13976.04023 | J197: =IF(Table1343[[#This Row],[Housing Type]]="Multi-Family (2-4 units)",Table1343[[#This Row],[Number of Homes/ Units]]/3,IF(Table1343[[#This Row],[Housing Type]]="Multi-Family (5+ units)",Table1343[[#This Row],[Number of Homes/ Units]]/12.5720642567977,IF(Table1343[[#This Row],[Housing Type]]="Single Family Detached",Table1343[[#This Row],[Number of Homes/ Units]],IF(Table1343[[#This Row],[Housing Type]]="Single Family Attached",Table1343[[#This Row],[Number of Homes/ Units]],IF(Table1343[[#This Row],[Housing Type]]="Mobile Home",Table1343[[#This Row],[Number of Homes/ Units]]))))) -> 13976.04023 | K197: Hot-Dry/Mixed-Dry | L197: 117.0328173 | M197: Metropolitan Area | N197: 0 | O197: 0.3396784476 | P197: 0.1228568708 | Q197: 0 | R197: 0.4472857674 | S197: 0.9098210858 | T197: 0 | U197: 0 | V197: =T197*Table1343[[#This Row],[Number of Buildings]]/1000000000 -> 0 | W197: =U197*Table1343[[#This Row],[Number of Buildings]]/1000000000 -> 0 | X197: =Table1343[[#This Row],[Wtd Air Handlers Heat (Tbtu)]]+Table1343[[#This Row],[Wtd Site Space Heating (TBtu)]] -> 0 | Y197: =Table1343[[#This Row],[Wtd Site Total Cooling (TBtu)]]+Table1343[[#This Row],[Wtd Air Handlers Cool (Tbtu)]] -> 0.1228568708
A198: Single Family Detached | B198: 10197 | C198: West North Central | D198: 2000s | E198: Stucco | F198: central furnace | G198: central AC | H198: 84.04796928 | I198: 19527.8739 | J198: =IF(Table1343[[#This Row],[Housing Type]]="Multi-Family (2-4 units)",Table1343[[#This Row],[Number of Homes/ Units]]/3,IF(Table1343[[#This Row],[Housing Type]]="Multi-Family (5+ units)",Table1343[[#This Row],[Number of Homes/ Units]]/12.5720642567977,IF(Table1343[[#This Row],[Housing Type]]="Single Family Detached",Table1343[[#This Row],[Number of Homes/ Units]],IF(Table1343[[#This Row],[Housing Type]]="Single Family Attached",Table1343[[#This Row],[Number of Homes/ Units]],IF(Table1343[[#This Row],[Housing Type]]="Mobile Home",Table1343[[#This Row],[Number of Homes/ Units]]))))) -> 19527.8739 | K198: Cold/Very Cold | L198: 585.6208441 | M198: Metropolitan Area | N198: 2.47800438 | O198: 0.6530630514 | P198: 0.04903964672 | Q198: 0.0580539867 | R198: 1.914463352 | S198: 5.09457043 | T198: 2829.856 | U198: 143.022 | V198: =T198*Table1343[[#This Row],[Number of Buildings]]/1000000000 -> 0.05526107112 | W198: =U198*Table1343[[#This Row],[Number of Buildings]]/1000000000 -> 0.002792915581 | X198: =Table1343[[#This Row],[Wtd Air Handlers Heat (Tbtu)]]+Table1343[[#This Row],[Wtd Site Space Heating (TBtu)]] -> 2.533265451 | Y198: =Table1343[[#This Row],[Wtd Site Total Cooling (TBtu)]]+Table1343[[#This Row],[Wtd Air Handlers Cool (Tbtu)]] -> 0.0518325623
A199: Single Family Detached | B199: 10198 | C199: South Atlantic | D199: 1980s | E199: Concrete | F199: central furnace | G199: central AC | H199: 37.68726457 | I199: 18330.3816 | J199: =IF(Table1343[[#This Row],[Housing Type]]="Multi-Family (2-4 units)",Table1343[[#This Row],[Number of Homes/ Units]]/3,IF(Table1343[[#This Row],[Housing Type]]="Multi-Family (5+ units)",Table1343[[#This Row],[Number of Homes/ Units]]/12.5720642567977,IF(Table1343[[#This Row],[Housing Type]]="Single Family Detached",Table1343[[#This Row],[Number of Homes/ Units]],IF(Table1343[[#This Row],[Housing Type]]="Single Family Attached",Table1343[[#This Row],[Number of Homes/ Units]],IF(Table1343[[#This Row],[Housing Type]]="Mobile Home",Table1343[[#This Row],[Number of Homes/ Units]]))))) -> 18330.3816 | K199: Hot-Humid | L199: 437.0589139 | M199: Metropolitan Area | N199: 0.02732577808 | O199: 0.1594586291 | P199: 0.9091051372 | Q199: 0.04596420174 | R199: 0.3953554811 | S199: 1.491245025 | T199: 26.399 | U199: 2481.143 | V199: =T199*Table1343[[#This Row],[Number of Buildings]]/1000000000 -> 0.0004839037439 | W199: =U199*Table1343[[#This Row],[Number of Buildings]]/1000000000 -> 0.04548029799 | X199: =Table1343[[#This Row],[Wtd Air Handlers Heat (Tbtu)]]+Table1343[[#This Row],[Wtd Site Space Heating (TBtu)]] -> 0.02780968182 | Y199: =Table1343[[#This Row],[Wtd Site Total Cooling (TBtu)]]+Table1343[[#This Row],[Wtd Air Handlers Cool (Tbtu)]] -> 0.9545854352
A200: Multi-Family (5+ units) | B200: 10199 | C200: West North Central | D200: 1970s | E200: Brick | F200: radiator | G200: N/A | H200: 6.601165159 | I200: 11980.33604 | J200: =IF(Table1343[[#This Row],[Housing Type]]="Multi-Family (2-4 units)",Table1343[[#This Row],[Number of Homes/ Units]]/3,IF(Table1343[[#This Row],[Housing Type]]="Multi-Family (5+ units)",Table1343[[#This Row],[Number of Homes/ Units]]/12.5720642567977,IF(Table1343[[#This Row],[Housing Type]]="Single Family Detached",Table1343[[#This Row],[Number of Homes/ Units]],IF(Table1343[[#This Row],[Housing Type]]="Single Family Attached",Table1343[[#This Row],[Number of Homes/ Units]],IF(Table1343[[#This Row],[Housing Type]]="Mobile Home",Table1343[[#This Row],[Number of Homes/ Units]]))))) -> 952.93309 | K200: Cold/Very Cold | L200: 32.09532026 | M200: Metropolitan Area | N200: 0.161287502 | O200: 0.1299371073 | P200: 0 | Q200: 0.001365494741 | R200: 0.1081587373 | S200: 0.400640228 | T200: 113.978 | U200: 0 | V200: =T200*Table1343[[#This Row],[Number of Buildings]]/1000000000 -> 0.0001086134077 | W200: =U200*Table1343[[#This Row],[Number of Buildings]]/1000000000 -> 0 | X200: =Table1343[[#This Row],[Wtd Air Handlers Heat (Tbtu)]]+Table1343[[#This Row],[Wtd Site Space Heating (TBtu)]] -> 0.1613961154 | Y200: =Table1343[[#This Row],[Wtd Site Total Cooling (TBtu)]]+Table1343[[#This Row],[Wtd Air Handlers Cool (Tbtu)]] -> 0
... 2050 more rows
